Body Name,Body,Service Label,Service Code,CIPFA Detailed Expenditure Type,CIPFA Detailed Expenditure Code,Date,Transaction Number,Net Amount,Supplier Name,,,,,,,#REF!
Nottinghamshire County Council,1111/1001,Surplus or Deficit from Trading Undertak,TRADING,Premises Related,BJA,05/10/2015,9-10001,743.65,Biffa Waste Services Ltd,,,,,,,
Nottinghamshire County Council,1111/1001,Surplus or Deficit from Trading Undertak,TRADING,Premises Related,BJA,30/10/2015,9-10001,523.03,Biffa Waste Services Ltd,,,,,,,
Nottinghamshire County Council,1111/1001,Surplus or Deficit from Trading Undertak,TRADING,Supplies & Services,DDA,14/10/2015,9-10001,"1,688.80",Hamelin Paperbrands Ltd,,,,,,,
Nottinghamshire County Council,1111/1001,Surplus or Deficit from Trading Undertak,TRADING,Supplies & Services,DDA,02/10/2015,9-10001,595,Springfield Business Supplies Ltd,,,,,,,
Nottinghamshire County Council,1111/1001,Surplus or Deficit from Trading Undertak,TRADING,Supplies & Services,DDA,02/10/2015,9-10001,587.36,Plastoreg Smidt Gmbh,,,,,,,
Nottinghamshire County Council,1111/1001,Surplus or Deficit from Trading Undertak,TRADING,Supplies & Services,DDA,22/10/2015,9-10001,742.26,Henkel Loctite Adhesives Ltd,,,,,,,
Nottinghamshire County Council,1111/1001,Surplus or Deficit from Trading Undertak,TRADING,Supplies & Services,DDA,22/10/2015,9-10001,"1,426.36",Henkel Loctite Adhesives Ltd,,,,,,,
Nottinghamshire County Council,1111/1001,Surplus or Deficit from Trading Undertak,TRADING,Supplies & Services,DAA,21/10/2015,9-10001,668,North West Tools,,,,,,,
Nottinghamshire County Council,1111/1001,Surplus or Deficit from Trading Undertak,TRADING,Supplies & Services,DAA,12/10/2015,9-10001,"1,088.19",Reliance Medical Ltd,,,,,,,
Nottinghamshire County Council,1111/1001,Surplus or Deficit from Trading Undertak,TRADING,Supplies & Services,DAA,07/10/2015,9-10001,523.05,Synergy Health (Uk) Ltd,,,,,,,
Nottinghamshire County Council,1111/1001,Surplus or Deficit from Trading Undertak,TRADING,Supplies & Services,DAA,12/10/2015,9-10001,"1,256.00",Vivid Laminating Technologies Ltd,,,,,,,
Nottinghamshire County Council,1111/1001,Surplus or Deficit from Trading Undertak,TRADING,Supplies & Services,DAA,13/10/2015,9-10001,544.28,Vivid Laminating Technologies Ltd,,,,,,,
Nottinghamshire County Council,1111/1001,Surplus or Deficit from Trading Undertak,TRADING,Supplies & Services,DAA,12/10/2015,9-10001,587.2,Supplies Team Ltd,,,,,,,
Nottinghamshire County Council,1111/1001,Surplus or Deficit from Trading Undertak,TRADING,Supplies & Services,DAA,02/10/2015,9-10001,880,Premier Paper Group Ltd,,,,,,,
Nottinghamshire County Council,1111/1001,Surplus or Deficit from Trading Undertak,TRADING,Supplies & Services,DAA,13/10/2015,9-10001,617.6,Heritage Envelopes Ltd,,,,,,,
Nottinghamshire County Council,1111/1001,Surplus or Deficit from Trading Undertak,TRADING,Supplies & Services,DAA,12/10/2015,9-10001,"1,953.60",Omser (Scotland) Ltd,,,,,,,
Nottinghamshire County Council,1111/1001,Surplus or Deficit from Trading Undertak,TRADING,Supplies & Services,DAA,07/10/2015,9-10001,"1,628.25",Antalis Key Accounts,,,,,,,
Nottinghamshire County Council,1111/1001,Surplus or Deficit from Trading Undertak,TRADING,Supplies & Services,DAA,08/10/2015,9-10001,"1,682.70",Antalis Key Accounts,,,,,,,
Nottinghamshire County Council,1111/1001,Surplus or Deficit from Trading Undertak,TRADING,Supplies & Services,DAA,21/10/2015,9-10001,623.2,Antalis Key Accounts,,,,,,,
Nottinghamshire County Council,1111/1001,Surplus or Deficit from Trading Undertak,TRADING,Supplies & Services,DAA,15/10/2015,9-10001,541.58,Xma Ltd,,,,,,,
Nottinghamshire County Council,1111/1001,Surplus or Deficit from Trading Undertak,TRADING,Supplies & Services,DAA,21/10/2015,9-10001,574.5,Xma Ltd,,,,,,,
Nottinghamshire County Council,1111/1001,Surplus or Deficit from Trading Undertak,TRADING,Supplies & Services,DAA,22/10/2015,9-10001,"1,258.50",Rocom Ltd.,,,,,,,
Nottinghamshire County Council,1111/1001,Surplus or Deficit from Trading Undertak,TRADING,Premises Related,BAA,21/10/2015,9-10001,763,Avery Uk,,,,,,,
Nottinghamshire County Council,1111/1001,Surplus or Deficit from Trading Undertak,TRADING,Premises Related,BAA,28/10/2015,9-10001,702.8,Avery Uk,,,,,,,
Nottinghamshire County Council,1111/1001,Surplus or Deficit from Trading Undertak,TRADING,Premises Related,BJA,30/10/2015,9-10001,787,Freudenberg Household Products Lp,,,,,,,
Nottinghamshire County Council,1111/1001,Surplus or Deficit from Trading Undertak,TRADING,Premises Related,BJA,02/10/2015,9-10001,534,Kimberley Clark European Services Ltd,,,,,,,
Nottinghamshire County Council,1111/1001,Surplus or Deficit from Trading Undertak,TRADING,Premises Related,BJA,28/10/2015,9-10001,"3,231.36",Peacock Salt,,,,,,,
Nottinghamshire County Council,1111/1001,Surplus or Deficit from Trading Undertak,TRADING,Premises Related,BJA,28/10/2015,9-10001,754.58,Ecover (Uk) Ltd,,,,,,,
Nottinghamshire County Council,1111/1001,Surplus or Deficit from Trading Undertak,TRADING,Premises Related,BJA,30/10/2015,9-10001,605.71,Linton Metalware Ltd,,,,,,,
Nottinghamshire County Council,1111/1001,Surplus or Deficit from Trading Undertak,TRADING,Premises Related,BJA,07/10/2015,9-10001,979.2,Cromwell Polythene Ltd,,,,,,,
Nottinghamshire County Council,1111/1001,Surplus or Deficit from Trading Undertak,TRADING,Premises Related,BJA,21/10/2015,9-10001,523.2,Cromwell Polythene Ltd,,,,,,,
Nottinghamshire County Council,1111/1001,Surplus or Deficit from Trading Undertak,TRADING,Premises Related,BJA,13/10/2015,9-10001,843.76,3M (United Kingdom) Plc,,,,,,,
Nottinghamshire County Council,1111/1001,Surplus or Deficit from Trading Undertak,TRADING,Premises Related,BJA,22/10/2015,9-10001,639.24,3M (United Kingdom) Plc,,,,,,,
Nottinghamshire County Council,1111/1001,Surplus or Deficit from Trading Undertak,TRADING,Premises Related,BJA,12/10/2015,9-10001,606.52,Evans Vanodine International Ltd,,,,,,,
Nottinghamshire County Council,1111/1001,Surplus or Deficit from Trading Undertak,TRADING,Premises Related,BJA,21/10/2015,9-10001,602.96,Evans Vanodine International Ltd,,,,,,,
Nottinghamshire County Council,1111/1001,Surplus or Deficit from Trading Undertak,TRADING,Premises Related,BJA,12/10/2015,9-10001,"1,073.14",Johnson Diversey,,,,,,,
Nottinghamshire County Council,1111/1001,Surplus or Deficit from Trading Undertak,TRADING,Premises Related,BJA,12/10/2015,9-10001,979.8,Johnson Diversey,,,,,,,
Nottinghamshire County Council,1111/1001,Surplus or Deficit from Trading Undertak,TRADING,Premises Related,BJA,28/10/2015,9-10001,"1,439.54",Johnson Diversey,,,,,,,
Nottinghamshire County Council,1111/1001,Surplus or Deficit from Trading Undertak,TRADING,Premises Related,BJA,09/10/2015,9-10001,"1,292.60",Premiere Products (James Briggs Ltd),,,,,,,
Nottinghamshire County Council,1111/1001,Surplus or Deficit from Trading Undertak,TRADING,Premises Related,BJA,09/10/2015,9-10001,"4,196.80",Premiere Products (James Briggs Ltd),,,,,,,
Nottinghamshire County Council,1111/1001,Surplus or Deficit from Trading Undertak,TRADING,Premises Related,BJA,27/10/2015,9-10001,"4,299.70",Premiere Products (James Briggs Ltd),,,,,,,
Nottinghamshire County Council,1111/1001,Surplus or Deficit from Trading Undertak,TRADING,Premises Related,BJA,12/10/2015,9-10001,595.38,Cromwell Tools Ltd,,,,,,,
Nottinghamshire County Council,1111/1001,Surplus or Deficit from Trading Undertak,TRADING,Premises Related,BJA,07/10/2015,9-10001,790,Candor Services,,,,,,,
Nottinghamshire County Council,1111/1001,Surplus or Deficit from Trading Undertak,TRADING,Supplies & Services,DAA,22/10/2015,9-10001,612,Dudson Bros Ltd,,,,,,,
Nottinghamshire County Council,1111/1001,Surplus or Deficit from Trading Undertak,TRADING,Supplies & Services,DAA,22/10/2015,9-10001,565.84,Coptrin Limited,,,,,,,
Nottinghamshire County Council,1111/1001,Surplus or Deficit from Trading Undertak,TRADING,Supplies & Services,DAA,21/10/2015,9-10001,848.54,W V Howe (Hardware) Ltd,,,,,,,
Nottinghamshire County Council,1111/1001,Surplus or Deficit from Trading Undertak,TRADING,Supplies & Services,DAA,28/10/2015,9-10001,821.3,Catering Supplies (Wakefield) Ltd,,,,,,,
Nottinghamshire County Council,1111/1001,Surplus or Deficit from Trading Undertak,TRADING,Supplies & Services,DAA,08/10/2015,9-10001,"3,787.98",Sca Hygiene,,,,,,,
Nottinghamshire County Council,1111/1001,Surplus or Deficit from Trading Undertak,TRADING,Supplies & Services,DAA,28/10/2015,9-10001,"3,125.58",Sca Hygiene,,,,,,,
Nottinghamshire County Council,1111/1001,Surplus or Deficit from Trading Undertak,TRADING,Supplies & Services,DAA,13/10/2015,9-10001,848.68,Dualit Ltd,,,,,,,
Nottinghamshire County Council,1111/1001,Surplus or Deficit from Trading Undertak,TRADING,Supplies & Services,DCA,07/10/2015,9-10001,848.9,Shermond,,,,,,,
Nottinghamshire County Council,1111/1001,Surplus or Deficit from Trading Undertak,TRADING,Supplies & Services,DCA,07/10/2015,9-10001,"1,923.60",Shermond,,,,,,,
Nottinghamshire County Council,1111/1001,Surplus or Deficit from Trading Undertak,TRADING,Supplies & Services,DCA,08/10/2015,9-10001,"1,256.94",Shermond,,,,,,,
Nottinghamshire County Council,1111/1001,Surplus or Deficit from Trading Undertak,TRADING,Supplies & Services,DCA,21/10/2015,9-10001,"1,199.97",Shermond,,,,,,,
Nottinghamshire County Council,1111/1001,Surplus or Deficit from Trading Undertak,TRADING,Supplies & Services,DCA,22/10/2015,9-10001,"1,782.80",Shermond,,,,,,,
Nottinghamshire County Council,1111/1001,Surplus or Deficit from Trading Undertak,TRADING,Supplies & Services,DCA,30/10/2015,9-10001,"2,003.72",Shermond,,,,,,,
Nottinghamshire County Council,1111/1001,Surplus or Deficit from Trading Undertak,TRADING,Supplies & Services,DCA,12/10/2015,9-10001,772.5,Lion Haircare Ltd,,,,,,,
Nottinghamshire County Council,1111/1001,Surplus or Deficit from Trading Undertak,TRADING,Supplies & Services,DCA,12/10/2015,9-10001,772.5,Lion Haircare Ltd,,,,,,,
Nottinghamshire County Council,1111/1001,Surplus or Deficit from Trading Undertak,TRADING,Supplies & Services,DKA,02/10/2015,9-10001,575.83,Bunzl Cleaning & Hygiene Supplies,,,,,,,
Nottinghamshire County Council,1111/1001,Surplus or Deficit from Trading Undertak,TRADING,Supplies & Services,DKA,07/10/2015,9-10001,"1,063.00",Bunzl Cleaning & Hygiene Supplies,,,,,,,
Nottinghamshire County Council,1111/1001,Surplus or Deficit from Trading Undertak,TRADING,Supplies & Services,DKA,14/10/2015,9-10001,797.25,Bunzl Cleaning & Hygiene Supplies,,,,,,,
Nottinghamshire County Council,1111/1001,Surplus or Deficit from Trading Undertak,TRADING,Supplies & Services,DKA,29/10/2015,9-10001,531.5,Bunzl Cleaning & Hygiene Supplies,,,,,,,
Nottinghamshire County Council,1111/1001,Surplus or Deficit from Trading Undertak,TRADING,Supplies & Services,DKA,29/10/2015,9-10001,"1,063.00",Bunzl Cleaning & Hygiene Supplies,,,,,,,
Nottinghamshire County Council,1111/1001,Surplus or Deficit from Trading Undertak,TRADING,Supplies & Services,DAA,06/10/2015,9-10001,"5,306.71",R Scott & Sons Ltd,,,,,,,
Nottinghamshire County Council,1111/1001,Surplus or Deficit from Trading Undertak,TRADING,Supplies & Services,DAA,09/10/2015,9-10001,798.45,R Scott & Sons Ltd,,,,,,,
Nottinghamshire County Council,1111/1001,Surplus or Deficit from Trading Undertak,TRADING,Supplies & Services,DAA,02/10/2015,9-10001,"4,180.00",Office Innovations,,,,,,,
Nottinghamshire County Council,1111/1001,Surplus or Deficit from Trading Undertak,TRADING,Supplies & Services,DAA,14/10/2015,9-10001,"1,223.04",Office Innovations,,,,,,,
Nottinghamshire County Council,1111/1001,Surplus or Deficit from Trading Undertak,TRADING,Supplies & Services,DAA,14/10/2015,9-10001,532,Office Innovations,,,,,,,
Nottinghamshire County Council,1111/1001,Surplus or Deficit from Trading Undertak,TRADING,Supplies & Services,DAA,19/10/2015,9-10001,"1,558.00",Office Innovations,,,,,,,
Nottinghamshire County Council,1111/1001,Surplus or Deficit from Trading Undertak,TRADING,Supplies & Services,DAA,30/10/2015,9-10001,823.65,Office Innovations,,,,,,,
Nottinghamshire County Council,1111/1001,Surplus or Deficit from Trading Undertak,TRADING,Supplies & Services,DAA,28/10/2015,9-10001,520.2,Principal Furniture,,,,,,,
Nottinghamshire County Council,1111/1001,Surplus or Deficit from Trading Undertak,TRADING,Supplies & Services,DAA,29/10/2015,9-10001,837,Principal Furniture,,,,,,,
Nottinghamshire County Council,1111/1001,Surplus or Deficit from Trading Undertak,TRADING,Supplies & Services,DAA,12/10/2015,9-10001,990,Advanced Moulds Ltd,,,,,,,
Nottinghamshire County Council,1111/1001,Surplus or Deficit from Trading Undertak,TRADING,Supplies & Services,DAA,21/10/2015,9-10001,572,Advanced Moulds Ltd,,,,,,,
Nottinghamshire County Council,1111/1001,Surplus or Deficit from Trading Undertak,TRADING,Supplies & Services,DAA,29/10/2015,9-10001,806.8,Advanced Moulds Ltd,,,,,,,
Nottinghamshire County Council,1111/1001,Surplus or Deficit from Trading Undertak,TRADING,Supplies & Services,DAA,14/10/2015,9-10001,615.08,Addis Housewares Ltd,,,,,,,
Nottinghamshire County Council,1111/1001,Surplus or Deficit from Trading Undertak,TRADING,Supplies & Services,DAA,21/10/2015,9-10001,"1,351.88",Qmp,,,,,,,
Nottinghamshire County Council,1111/1001,Surplus or Deficit from Trading Undertak,TRADING,Supplies & Services,DAA,02/10/2015,9-10001,683.4,Titan Furniture (Uk) Ltd,,,,,,,
Nottinghamshire County Council,1111/1001,Surplus or Deficit from Trading Undertak,TRADING,Supplies & Services,DAA,08/10/2015,9-10001,891.48,Complete Office Solutions (Uk) Ltd,,,,,,,
Nottinghamshire County Council,1111/1001,Surplus or Deficit from Trading Undertak,TRADING,Supplies & Services,DAA,29/10/2015,9-10001,568.96,Hille Education Products Ltd,,,,,,,
Nottinghamshire County Council,1111/1001,Surplus or Deficit from Trading Undertak,TRADING,Supplies & Services,DAA,02/10/2015,9-10001,661.48,R2 Solutions Ltd,,,,,,,
Nottinghamshire County Council,1111/1001,Surplus or Deficit from Trading Undertak,TRADING,Supplies & Services,DAA,07/10/2015,9-10001,"2,219.51",Gopak Ltd,,,,,,,
Nottinghamshire County Council,1111/1001,Surplus or Deficit from Trading Undertak,TRADING,Supplies & Services,DAA,08/10/2015,9-10001,669.35,Gopak Ltd,,,,,,,
Nottinghamshire County Council,1111/1001,Surplus or Deficit from Trading Undertak,TRADING,Supplies & Services,DAA,02/10/2015,9-10001,567.6,Gratnells Ltd,,,,,,,
Nottinghamshire County Council,1111/1001,Surplus or Deficit from Trading Undertak,TRADING,Supplies & Services,DAA,02/10/2015,9-10001,798.2,Victoria Grant Ltd,,,,,,,
Nottinghamshire County Council,1111/1001,Surplus or Deficit from Trading Undertak,TRADING,Supplies & Services,DAA,22/10/2015,9-10001,890.8,Kent County Supplies,,,,,,,
Nottinghamshire County Council,1111/1001,Surplus or Deficit from Trading Undertak,TRADING,Supplies & Services,DAA,13/10/2015,9-10001,644.84,Craftpacks,,,,,,,
Nottinghamshire County Council,1111/1001,Surplus or Deficit from Trading Undertak,TRADING,Supplies & Services,DAA,07/10/2015,9-10001,904,Grosvenor House Papers Ltd,,,,,,,
Nottinghamshire County Council,1111/1001,Surplus or Deficit from Trading Undertak,TRADING,Supplies & Services,DAA,19/10/2015,9-10001,834.2,Grosvenor House Papers Ltd,,,,,,,
Nottinghamshire County Council,1111/1001,Surplus or Deficit from Trading Undertak,TRADING,Supplies & Services,DAA,14/10/2015,9-10001,574.28,Newell Rubbermaid,,,,,,,
Nottinghamshire County Council,1111/1001,Surplus or Deficit from Trading Undertak,TRADING,Supplies & Services,DAA,02/10/2015,9-10001,739.2,Acco-Rexel Ltd,,,,,,,
Nottinghamshire County Council,1111/1001,Surplus or Deficit from Trading Undertak,TRADING,Supplies & Services,DAA,21/10/2015,9-10001,829.4,R.H.Ritchings Ltd,,,,,,,
Nottinghamshire County Council,1111/1001,Surplus or Deficit from Trading Undertak,TRADING,Supplies & Services,DAA,08/10/2015,9-10001,755.68,Scolaquip Ltd,,,,,,,
Nottinghamshire County Council,1111/1001,Surplus or Deficit from Trading Undertak,TRADING,Supplies & Services,DAA,07/10/2015,9-10001,558.02,Allen Glenold Ltd,,,,,,,
Nottinghamshire County Council,1111/1001,Surplus or Deficit from Trading Undertak,TRADING,Supplies & Services,DAA,12/10/2015,9-10001,543.71,Allen Glenold Ltd,,,,,,,
Nottinghamshire County Council,1111/1001,Surplus or Deficit from Trading Undertak,TRADING,Supplies & Services,DAA,22/10/2015,9-10001,517.86,Allen Glenold Ltd,,,,,,,
Nottinghamshire County Council,1111/1001,Surplus or Deficit from Trading Undertak,TRADING,Supplies & Services,DAA,08/10/2015,9-10001,846.18,Slater Harrison & Co Ltd,,,,,,,
Nottinghamshire County Council,1111/1001,Surplus or Deficit from Trading Undertak,TRADING,Supplies & Services,DAA,21/10/2015,9-10001,616.96,Slater Harrison & Co Ltd,,,,,,,
Nottinghamshire County Council,1111/1001,Surplus or Deficit from Trading Undertak,TRADING,Supplies & Services,DAA,02/10/2015,9-10001,650.42,Creativity International Ltd,,,,,,,
Nottinghamshire County Council,1111/1001,Surplus or Deficit from Trading Undertak,TRADING,Supplies & Services,DAA,28/10/2015,9-10001,832.7,Creativity International Ltd,,,,,,,
Nottinghamshire County Council,1111/1001,Surplus or Deficit from Trading Undertak,TRADING,Supplies & Services,DAA,28/10/2015,9-10001,591.8,Creativity International Ltd,,,,,,,
Nottinghamshire County Council,1111/1001,Surplus or Deficit from Trading Undertak,TRADING,Supplies & Services,DAA,02/10/2015,9-10001,629.9,Kit For Kids Ltd,,,,,,,
Nottinghamshire County Council,1111/1001,Surplus or Deficit from Trading Undertak,TRADING,Supplies & Services,DAA,19/10/2015,9-10001,"1,045.00",Spaceright Europe Ltd,,,,,,,
Nottinghamshire County Council,1111/1001,Surplus or Deficit from Trading Undertak,TRADING,Supplies & Services,DAA,21/10/2015,9-10001,"1,101.05",Brian Clegg (Educational Products) Ltd,,,,,,,
Nottinghamshire County Council,1111/1001,Surplus or Deficit from Trading Undertak,TRADING,Supplies & Services,DAA,21/10/2015,9-10001,"1,079.20",Brian Clegg (Educational Products) Ltd,,,,,,,
Nottinghamshire County Council,1111/1001,Surplus or Deficit from Trading Undertak,TRADING,Supplies & Services,DAA,27/10/2015,9-10001,529.24,Brian Clegg (Educational Products) Ltd,,,,,,,
Nottinghamshire County Council,1111/1001,Surplus or Deficit from Trading Undertak,TRADING,Supplies & Services,DAA,14/10/2015,9-10001,677.93,Profile Education Ltd,,,,,,,
Nottinghamshire County Council,1111/1001,Surplus or Deficit from Trading Undertak,TRADING,Supplies & Services,DAA,07/10/2015,9-10001,"1,457.97",Monarch Computer Furniture,,,,,,,
Nottinghamshire County Council,1111/1001,Surplus or Deficit from Trading Undertak,TRADING,Supplies & Services,DAA,19/10/2015,9-10001,800.08,Monarch Computer Furniture,,,,,,,
Nottinghamshire County Council,1111/1001,Surplus or Deficit from Trading Undertak,TRADING,Supplies & Services,DAA,21/10/2015,9-10001,666.72,Monarch Computer Furniture,,,,,,,
Nottinghamshire County Council,1111/1001,Surplus or Deficit from Trading Undertak,TRADING,Employee Related,AAA,05/10/2015,9-10001,867.6,A&T Active Recruitment,,,,,,,
Nottinghamshire County Council,1111/1001,Surplus or Deficit from Trading Undertak,TRADING,Employee Related,AAA,28/10/2015,9-10001,962.87,A&T Active Recruitment,,,,,,,
Nottinghamshire County Council,1111/1001,Surplus or Deficit from Trading Undertak,TRADING,Employee Related,AAA,28/10/2015,9-10001,742.22,A&T Active Recruitment,,,,,,,
Nottinghamshire County Council,1111/1001,Surplus or Deficit from Trading Undertak,TRADING,Employee Related,AAA,28/10/2015,9-10001,636.91,A&T Active Recruitment,,,,,,,
Nottinghamshire County Council,1111/1001,Children and Young People,CYP,Premises Related,BCA,09/10/2015,9-10251,630.11,Severn Trent Water Ltd,,,,,,,
Nottinghamshire County Council,1111/1001,Children and Young People,CYP,Premises Related,BCA,14/10/2015,9-14925,660.65,British Gas Business,,,,,,,
Nottinghamshire County Council,1111/1001,Children and Young People,CYP,Premises Related,BDA,01/10/2015,9-10003,"5,747.54",Making It! Enterprises Ltd,,,,,,,
Nottinghamshire County Council,1111/1001,Children and Young People,CYP,Premises Related,BDA,01/10/2015,9-10005,"8,121.28",Sherwood Forest Hosp Nhs Trust,,,,,,,
Nottinghamshire County Council,1111/1001,Children and Young People,CYP,Premises Related,BDA,01/10/2015,9-10009,"4,674.76",Making It! Enterprises Ltd,,,,,,,
Nottinghamshire County Council,1111/1001,Children and Young People,CYP,Premises Related,BDA,01/10/2015,9-10010,528,Derbyshire Dales District Council,,,,,,,
Nottinghamshire County Council,1111/1001,Children and Young People,CYP,Premises Related,BDA,01/10/2015,9-10012,606.67,J Sedoo t/a Sedoo Investments,,,,,,,
Nottinghamshire County Council,1111/1001,Children and Young People,CYP,Premises Related,BDA,01/10/2015,9-10013,606.67,J Sedoo t/a Sedoo Investments,,,,,,,
Nottinghamshire County Council,1111/1001,Children and Young People,CYP,Premises Related,BDA,01/10/2015,9-10014,606.67,J Sedoo t/a Sedoo Investments,,,,,,,
Nottinghamshire County Council,1111/1001,Children and Young People,CYP,Premises Related,BDA,01/10/2015,9-10015,960,[redacted],,,,,,,
Nottinghamshire County Council,1111/1001,Children and Young People,CYP,Premises Related,BDA,01/10/2015,9-10016,960,[redacted],,,,,,,
Nottinghamshire County Council,1111/1001,Children and Young People,CYP,Premises Related,BDA,01/10/2015,9-10017,960,[redacted],,,,,,,
Nottinghamshire County Council,1111/1001,Children and Young People,CYP,Premises Related,BDA,01/10/2015,9-10018,960,[redacted],,,,,,,
Nottinghamshire County Council,1111/1001,Children and Young People,CYP,Premises Related,BDA,01/10/2015,9-10023,936,[redacted],,,,,,,
Nottinghamshire County Council,1111/1001,Children and Young People,CYP,Premises Related,BDA,01/10/2015,9-10025,"1,400.00",Park Lodge Project,,,,,,,
Nottinghamshire County Council,1111/1001,Children and Young People,CYP,Premises Related,BDA,06/10/2015,9-10004,"1,099.99",Nottingham City Council,,,,,,,
Nottinghamshire County Council,1111/1001,Children and Young People,CYP,Premises Related,BDA,09/10/2015,9-10026,675,[redacted],,,,,,,
Nottinghamshire County Council,1111/1001,Children and Young People,CYP,Premises Related,BFA,06/10/2015,9-13338,"1,269.83",Severn Trent Water Ltd,,,,,,,
Nottinghamshire County Council,1111/1001,Children and Young People,CYP,Premises Related,BFA,23/10/2015,9-15696,630.11,Severn Trent Water Ltd,,,,,,,
Nottinghamshire County Council,1111/1001,Children and Young People,CYP,Transport Related,CCA,05/10/2015,9-10272,"8,000.00",Travel Wright Ltd,,,,,,,
Nottinghamshire County Council,1111/1001,Children and Young People,CYP,Transport Related,CCA,05/10/2015,9-10274,"40,000.00",Stagecoach Services Ltd,,,,,,,
Nottinghamshire County Council,1111/1001,Children and Young People,CYP,Transport Related,CCA,07/10/2015,9-13473,"3,760.00",Taxicover Uk Ltd,,,,,,,
Nottinghamshire County Council,1111/1001,Children and Young People,CYP,Transport Related,CCA,07/10/2015,9-13474,"2,561.00",Taxicover Uk Ltd,,,,,,,
Nottinghamshire County Council,1111/1001,Children and Young People,CYP,Transport Related,CCA,07/10/2015,9-13475,"3,397.20",Taxicover Uk Ltd,,,,,,,
Nottinghamshire County Council,1111/1001,Children and Young People,CYP,Transport Related,CCA,07/10/2015,9-13476,"3,584.40",Taxicover Uk Ltd,,,,,,,
Nottinghamshire County Council,1111/1001,Children and Young People,CYP,Transport Related,CCA,07/10/2015,9-13477,"3,771.00",Taxicover Uk Ltd,,,,,,,
Nottinghamshire County Council,1111/1001,Children and Young People,CYP,Transport Related,CCA,07/10/2015,9-13478,"3,216.20",Taxicover Uk Ltd,,,,,,,
Nottinghamshire County Council,1111/1001,Children and Young People,CYP,Transport Related,CCA,07/10/2015,9-13479,893.88,Mars Cars Ltd,,,,,,,
Nottinghamshire County Council,1111/1001,Children and Young People,CYP,Transport Related,CCA,07/10/2015,9-13480,"1,170.00",Southside Cars,,,,,,,
Nottinghamshire County Council,1111/1001,Children and Young People,CYP,Transport Related,CCA,07/10/2015,9-13481,"1,870.05",Southside Cars,,,,,,,
Nottinghamshire County Council,1111/1001,Children and Young People,CYP,Transport Related,CCA,07/10/2015,9-13482,"1,394.00",Southside Cars,,,,,,,
Nottinghamshire County Council,1111/1001,Children and Young People,CYP,Transport Related,CCA,07/10/2015,9-13483,"1,987.20",Southside Cars,,,,,,,
Nottinghamshire County Council,1111/1001,Children and Young People,CYP,Transport Related,CCA,07/10/2015,9-13484,"1,380.00",Southside Cars,,,,,,,
Nottinghamshire County Council,1111/1001,Children and Young People,CYP,Transport Related,CCA,07/10/2015,9-13485,"1,000.00",Southside Cars,,,,,,,
Nottinghamshire County Council,1111/1001,Children and Young People,CYP,Transport Related,CCA,07/10/2015,9-13486,"1,228.04",6 Five 2s,,,,,,,
Nottinghamshire County Council,1111/1001,Children and Young People,CYP,Transport Related,CCA,07/10/2015,9-13487,"1,437.30",6 Five 2s,,,,,,,
Nottinghamshire County Council,1111/1001,Children and Young People,CYP,Transport Related,CCA,07/10/2015,9-13488,"1,629.12",6 Five 2s,,,,,,,
Nottinghamshire County Council,1111/1001,Children and Young People,CYP,Transport Related,CCA,07/10/2015,9-13489,"1,605.28",6 Five 2s,,,,,,,
Nottinghamshire County Council,1111/1001,Children and Young People,CYP,Transport Related,CCA,07/10/2015,9-13490,511.68,6 Five 2s,,,,,,,
Nottinghamshire County Council,1111/1001,Children and Young People,CYP,Transport Related,CCA,07/10/2015,9-13491,"1,379.84",6 Five 2s,,,,,,,
Nottinghamshire County Council,1111/1001,Children and Young People,CYP,Transport Related,CCA,07/10/2015,9-13492,617.76,6 Five 2s,,,,,,,
Nottinghamshire County Council,1111/1001,Children and Young People,CYP,Transport Related,CCA,07/10/2015,9-13494,"1,170.00",6 Five 2s,,,,,,,
Nottinghamshire County Council,1111/1001,Children and Young People,CYP,Transport Related,CCA,07/10/2015,9-13495,"1,110.00",6 Five 2s,,,,,,,
Nottinghamshire County Council,1111/1001,Children and Young People,CYP,Transport Related,CCA,07/10/2015,9-13498,"2,440.00",Martins Travel,,,,,,,
Nottinghamshire County Council,1111/1001,Children and Young People,CYP,Transport Related,CCA,07/10/2015,9-13502,"13,343.76",Erewash Community Transport,,,,,,,
Nottinghamshire County Council,1111/1001,Children and Young People,CYP,Transport Related,CCA,07/10/2015,9-13503,"2,024.46",Erewash Community Transport,,,,,,,
Nottinghamshire County Council,1111/1001,Children and Young People,CYP,Transport Related,CCA,07/10/2015,9-13505,"1,080.00",Fozcabs Newark Taxis,,,,,,,
Nottinghamshire County Council,1111/1001,Children and Young People,CYP,Transport Related,CCA,07/10/2015,9-13506,873,Fozcabs Newark Taxis,,,,,,,
Nottinghamshire County Council,1111/1001,Children and Young People,CYP,Transport Related,CCA,07/10/2015,9-13509,"1,680.00",Headland Taxi Services,,,,,,,
Nottinghamshire County Council,1111/1001,Children and Young People,CYP,Transport Related,CCA,07/10/2015,9-13510,"2,090.00",Horizon Travel,,,,,,,
Nottinghamshire County Council,1111/1001,Children and Young People,CYP,Transport Related,CCA,07/10/2015,9-13511,"2,538.76",Horizon Travel,,,,,,,
Nottinghamshire County Council,1111/1001,Children and Young People,CYP,Transport Related,CCA,07/10/2015,9-13513,"1,769.20",Ja Travel Ltd,,,,,,,
Nottinghamshire County Council,1111/1001,Children and Young People,CYP,Transport Related,CCA,07/10/2015,9-13517,"2,754.00",F & J Marriott T/A Unity Coaches,,,,,,,
Nottinghamshire County Council,1111/1001,Children and Young People,CYP,Transport Related,CCA,07/10/2015,9-13518,"2,754.00",F & J Marriott T/A Unity Coaches,,,,,,,
Nottinghamshire County Council,1111/1001,Children and Young People,CYP,Transport Related,CCA,07/10/2015,9-13519,"2,837.20",F & J Marriott T/A Unity Coaches,,,,,,,
Nottinghamshire County Council,1111/1001,Children and Young People,CYP,Transport Related,CCA,07/10/2015,9-13523,"3,400.00",Vallances Coaches,,,,,,,
Nottinghamshire County Council,1111/1001,Children and Young People,CYP,Transport Related,CCA,07/10/2015,9-13525,"2,960.00",Vallances Coaches,,,,,,,
Nottinghamshire County Council,1111/1001,Children and Young People,CYP,Transport Related,CCA,07/10/2015,9-13526,"2,947.34",Vallances Coaches,,,,,,,
Nottinghamshire County Council,1111/1001,Children and Young People,CYP,Transport Related,CCA,07/10/2015,9-13528,"2,337.30",Midfield Travel,,,,,,,
Nottinghamshire County Council,1111/1001,Children and Young People,CYP,Transport Related,CCA,07/10/2015,9-13555,"2,788.40",Travel Wright Ltd,,,,,,,
Nottinghamshire County Council,1111/1001,Children and Young People,CYP,Transport Related,CCA,07/10/2015,9-13557,"1,375.20",Travel Wright Ltd,,,,,,,
Nottinghamshire County Council,1111/1001,Children and Young People,CYP,Transport Related,CCA,07/10/2015,9-13568,936,Travel Wright Ltd,,,,,,,
Nottinghamshire County Council,1111/1001,Children and Young People,CYP,Transport Related,CCA,07/10/2015,9-13577,"2,992.00",K Matthews Travel,,,,,,,
Nottinghamshire County Council,1111/1001,Children and Young People,CYP,Transport Related,CCA,07/10/2015,9-13590,"1,805.70",Rio Cabs,,,,,,,
Nottinghamshire County Council,1111/1001,Children and Young People,CYP,Transport Related,CCA,07/10/2015,9-13594,"3,417.80",L A Travel,,,,,,,
Nottinghamshire County Council,1111/1001,Children and Young People,CYP,Transport Related,CCA,07/10/2015,9-13605,"1,470.00",Sean's Taxi Services,,,,,,,
Nottinghamshire County Council,1111/1001,Children and Young People,CYP,Transport Related,CCA,07/10/2015,9-13798,"1,958.60",F4Control Ltd (t/a First4care),,,,,,,
Nottinghamshire County Council,1111/1001,Children and Young People,CYP,Transport Related,CCA,07/10/2015,9-13799,"2,394.60",F4Control Ltd (t/a First4care),,,,,,,
Nottinghamshire County Council,1111/1001,Children and Young People,CYP,Transport Related,CCA,07/10/2015,9-13800,"1,909.40",F4Control Ltd (t/a First4care),,,,,,,
Nottinghamshire County Council,1111/1001,Children and Young People,CYP,Transport Related,CCA,07/10/2015,9-13801,"3,055.20",F4Control Ltd (t/a First4care),,,,,,,
Nottinghamshire County Council,1111/1001,Children and Young People,CYP,Transport Related,CCA,07/10/2015,9-13802,"2,426.40",F4Control Ltd (t/a First4care),,,,,,,
Nottinghamshire County Council,1111/1001,Children and Young People,CYP,Transport Related,CCA,07/10/2015,9-13803,"1,954.66",F4Control Ltd (t/a First4care),,,,,,,
Nottinghamshire County Council,1111/1001,Children and Young People,CYP,Transport Related,CCA,07/10/2015,9-13804,"2,152.81",F4Control Ltd (t/a First4care),,,,,,,
Nottinghamshire County Council,1111/1001,Children and Young People,CYP,Transport Related,CCA,07/10/2015,9-13806,"2,367.33",F4Control Ltd (t/a First4care),,,,,,,
Nottinghamshire County Council,1111/1001,Children and Young People,CYP,Transport Related,CCA,07/10/2015,9-13807,"3,250.00",Ja Travel Ltd,,,,,,,
Nottinghamshire County Council,1111/1001,Children and Young People,CYP,Transport Related,CCA,07/10/2015,9-13808,"2,880.00",Ja Travel Ltd,,,,,,,
Nottinghamshire County Council,1111/1001,Children and Young People,CYP,Transport Related,CCA,07/10/2015,9-13810,"2,360.00",Sprays Transport Ltd,,,,,,,
Nottinghamshire County Council,1111/1001,Children and Young People,CYP,Transport Related,CCA,07/10/2015,9-13811,"1,689.12",Sprays Transport Ltd,,,,,,,
Nottinghamshire County Council,1111/1001,Children and Young People,CYP,Transport Related,CCA,07/10/2015,9-13812,"1,891.40",Sprays Transport Ltd,,,,,,,
Nottinghamshire County Council,1111/1001,Children and Young People,CYP,Transport Related,CCA,07/10/2015,9-13813,"1,744.20",Sprays Transport Ltd,,,,,,,
Nottinghamshire County Council,1111/1001,Children and Young People,CYP,Transport Related,CCA,07/10/2015,9-13814,"2,200.00",Sprays Transport Ltd,,,,,,,
Nottinghamshire County Council,1111/1001,Children and Young People,CYP,Transport Related,CCA,07/10/2015,9-13815,"2,039.20",Sprays Transport Ltd,,,,,,,
Nottinghamshire County Council,1111/1001,Children and Young People,CYP,Transport Related,CCA,07/10/2015,9-13816,"1,890.00",Sprays Transport Ltd,,,,,,,
Nottinghamshire County Council,1111/1001,Children and Young People,CYP,Transport Related,CCA,07/10/2015,9-13817,"1,982.58",Sprays Transport Ltd,,,,,,,
Nottinghamshire County Council,1111/1001,Children and Young People,CYP,Transport Related,CCA,07/10/2015,9-13819,"1,581.40",Sprays Transport Ltd,,,,,,,
Nottinghamshire County Council,1111/1001,Children and Young People,CYP,Transport Related,CCA,07/10/2015,9-13820,"2,300.00",Sprays Transport Ltd,,,,,,,
Nottinghamshire County Council,1111/1001,Children and Young People,CYP,Transport Related,CCA,07/10/2015,9-13821,"1,610.00",Sprays Transport Ltd,,,,,,,
Nottinghamshire County Council,1111/1001,Children and Young People,CYP,Transport Related,CCA,08/10/2015,9-13924,"2,125.00",F4Control Ltd (t/a First4care),,,,,,,
Nottinghamshire County Council,1111/1001,Children and Young People,CYP,Transport Related,CCA,08/10/2015,9-13925,"1,996.71",F4Control Ltd (t/a First4care),,,,,,,
Nottinghamshire County Council,1111/1001,Children and Young People,CYP,Transport Related,CCA,08/10/2015,9-13927,"2,266.95",F4Control Ltd (t/a First4care),,,,,,,
Nottinghamshire County Council,1111/1001,Children and Young People,CYP,Transport Related,CCA,08/10/2015,9-13928,"2,952.40",F4Control Ltd (t/a First4care),,,,,,,
Nottinghamshire County Council,1111/1001,Children and Young People,CYP,Transport Related,CCA,08/10/2015,9-13929,"1,226.67",F4Control Ltd (t/a First4care),,,,,,,
Nottinghamshire County Council,1111/1001,Children and Young People,CYP,Transport Related,CCA,08/10/2015,9-13931,"2,124.00",F4Control Ltd (t/a First4care),,,,,,,
Nottinghamshire County Council,1111/1001,Children and Young People,CYP,Transport Related,CCA,08/10/2015,9-13932,"2,142.00",F4Control Ltd (t/a First4care),,,,,,,
Nottinghamshire County Council,1111/1001,Children and Young People,CYP,Transport Related,CCA,08/10/2015,9-13933,"2,016.00",F4Control Ltd (t/a First4care),,,,,,,
Nottinghamshire County Council,1111/1001,Children and Young People,CYP,Transport Related,CCA,08/10/2015,9-13934,"2,814.90",F4Control Ltd (t/a First4care),,,,,,,
Nottinghamshire County Council,1111/1001,Children and Young People,CYP,Transport Related,CCA,08/10/2015,9-13935,"2,594.60",F4Control Ltd (t/a First4care),,,,,,,
Nottinghamshire County Council,1111/1001,Children and Young People,CYP,Transport Related,CCA,08/10/2015,9-13939,630,Ace Of Mansfield Ltd,,,,,,,
Nottinghamshire County Council,1111/1001,Children and Young People,CYP,Transport Related,CCA,08/10/2015,9-13943,"1,753.00",Ace Of Mansfield Ltd,,,,,,,
Nottinghamshire County Council,1111/1001,Children and Young People,CYP,Transport Related,CCA,08/10/2015,9-13944,"1,748.00",Ace Of Mansfield Ltd,,,,,,,
Nottinghamshire County Council,1111/1001,Children and Young People,CYP,Transport Related,CCA,08/10/2015,9-13945,920,Alpha Cars,,,,,,,
Nottinghamshire County Council,1111/1001,Children and Young People,CYP,Transport Related,CCA,08/10/2015,9-13946,922.49,Alpha Cars,,,,,,,
Nottinghamshire County Council,1111/1001,Children and Young People,CYP,Transport Related,CCA,08/10/2015,9-13949,558,Alpha Cars,,,,,,,
Nottinghamshire County Council,1111/1001,Children and Young People,CYP,Transport Related,CCA,08/10/2015,9-13950,"2,366.40",Arrow Specialised Transport Ltd,,,,,,,
Nottinghamshire County Council,1111/1001,Children and Young People,CYP,Transport Related,CCA,08/10/2015,9-13951,"1,890.00",Arrow Specialised Transport Ltd,,,,,,,
Nottinghamshire County Council,1111/1001,Children and Young People,CYP,Transport Related,CCA,08/10/2015,9-13952,"1,764.00",Arrow Specialised Transport Ltd,,,,,,,
Nottinghamshire County Council,1111/1001,Children and Young People,CYP,Transport Related,CCA,08/10/2015,9-13954,"2,340.00",Arrow Specialised Transport Ltd,,,,,,,
Nottinghamshire County Council,1111/1001,Children and Young People,CYP,Transport Related,CCA,08/10/2015,9-13955,"1,836.00",Arrow Specialised Transport Ltd,,,,,,,
Nottinghamshire County Council,1111/1001,Children and Young People,CYP,Transport Related,CCA,08/10/2015,9-13956,"2,610.00",Arrow Specialised Transport Ltd,,,,,,,
Nottinghamshire County Council,1111/1001,Children and Young People,CYP,Transport Related,CCA,08/10/2015,9-13957,"2,610.00",Arrow Specialised Transport Ltd,,,,,,,
Nottinghamshire County Council,1111/1001,Children and Young People,CYP,Transport Related,CCA,08/10/2015,9-13958,"1,926.00",Arrow Specialised Transport Ltd,,,,,,,
Nottinghamshire County Council,1111/1001,Children and Young People,CYP,Transport Related,CCA,08/10/2015,9-13959,"1,900.00",Arrow Specialised Transport Ltd,,,,,,,
Nottinghamshire County Council,1111/1001,Children and Young People,CYP,Transport Related,CCA,08/10/2015,9-13960,"2,180.00",Arrow Specialised Transport Ltd,,,,,,,
Nottinghamshire County Council,1111/1001,Children and Young People,CYP,Transport Related,CCA,08/10/2015,9-13961,"2,700.00",Arrow Specialised Transport Ltd,,,,,,,
Nottinghamshire County Council,1111/1001,Children and Young People,CYP,Transport Related,CCA,08/10/2015,9-13962,"1,900.00",Arrow Specialised Transport Ltd,,,,,,,
Nottinghamshire County Council,1111/1001,Children and Young People,CYP,Transport Related,CCA,08/10/2015,9-13963,"1,580.00",Arrow Specialised Transport Ltd,,,,,,,
Nottinghamshire County Council,1111/1001,Children and Young People,CYP,Transport Related,CCA,08/10/2015,9-13964,"3,532.83",Arrow Specialised Transport Ltd,,,,,,,
Nottinghamshire County Council,1111/1001,Children and Young People,CYP,Transport Related,CCA,08/10/2015,9-13965,"3,063.06",Arrow Specialised Transport Ltd,,,,,,,
Nottinghamshire County Council,1111/1001,Children and Young People,CYP,Transport Related,CCA,08/10/2015,9-13966,921.06,Arrow Specialised Transport Ltd,,,,,,,
Nottinghamshire County Council,1111/1001,Children and Young People,CYP,Transport Related,CCA,08/10/2015,9-13967,"2,135.88",Arrow Specialised Transport Ltd,,,,,,,
Nottinghamshire County Council,1111/1001,Children and Young People,CYP,Transport Related,CCA,08/10/2015,9-13968,"1,861.02",Arrow Specialised Transport Ltd,,,,,,,
Nottinghamshire County Council,1111/1001,Children and Young People,CYP,Transport Related,CCA,08/10/2015,9-13969,"1,717.20",Arrow Specialised Transport Ltd,,,,,,,
Nottinghamshire County Council,1111/1001,Children and Young People,CYP,Transport Related,CCA,08/10/2015,9-13970,"2,082.60",Arrow Specialised Transport Ltd,,,,,,,
Nottinghamshire County Council,1111/1001,Children and Young People,CYP,Transport Related,CCA,08/10/2015,9-13971,"2,557.62",Arrow Specialised Transport Ltd,,,,,,,
Nottinghamshire County Council,1111/1001,Children and Young People,CYP,Transport Related,CCA,08/10/2015,9-13972,"2,978.10",Arrow Specialised Transport Ltd,,,,,,,
Nottinghamshire County Council,1111/1001,Children and Young People,CYP,Transport Related,CCA,08/10/2015,9-13973,"1,839.60",Arrow Specialised Transport Ltd,,,,,,,
Nottinghamshire County Council,1111/1001,Children and Young People,CYP,Transport Related,CCA,08/10/2015,9-13974,"10,278.66",Arrow Specialised Transport Ltd,,,,,,,
Nottinghamshire County Council,1111/1001,Children and Young People,CYP,Transport Related,CCA,08/10/2015,9-13975,"1,933.60",Arrow Specialised Transport Ltd,,,,,,,
Nottinghamshire County Council,1111/1001,Children and Young People,CYP,Transport Related,CCA,08/10/2015,9-13976,"1,860.00",Arrow Specialised Transport Ltd,,,,,,,
Nottinghamshire County Council,1111/1001,Children and Young People,CYP,Transport Related,CCA,08/10/2015,9-13977,"2,090.00",Arrow Specialised Transport Ltd,,,,,,,
Nottinghamshire County Council,1111/1001,Children and Young People,CYP,Transport Related,CCA,08/10/2015,9-13978,"2,100.00",Arrow Specialised Transport Ltd,,,,,,,
Nottinghamshire County Council,1111/1001,Children and Young People,CYP,Transport Related,CCA,08/10/2015,9-13979,"2,080.00",Arrow Specialised Transport Ltd,,,,,,,
Nottinghamshire County Council,1111/1001,Children and Young People,CYP,Transport Related,CCA,08/10/2015,9-13980,"2,517.00",Arrow Specialised Transport Ltd,,,,,,,
Nottinghamshire County Council,1111/1001,Children and Young People,CYP,Transport Related,CCA,08/10/2015,9-13981,"2,320.00",Arrow Specialised Transport Ltd,,,,,,,
Nottinghamshire County Council,1111/1001,Children and Young People,CYP,Transport Related,CCA,08/10/2015,9-13982,"1,920.00",Arrow Specialised Transport Ltd,,,,,,,
Nottinghamshire County Council,1111/1001,Children and Young People,CYP,Transport Related,CCA,08/10/2015,9-13983,"2,400.00",Arrow Specialised Transport Ltd,,,,,,,
Nottinghamshire County Council,1111/1001,Children and Young People,CYP,Transport Related,CCA,08/10/2015,9-13984,"2,160.00",Arrow Specialised Transport Ltd,,,,,,,
Nottinghamshire County Council,1111/1001,Children and Young People,CYP,Transport Related,CCA,08/10/2015,9-13985,"2,304.00",Arrow Specialised Transport Ltd,,,,,,,
Nottinghamshire County Council,1111/1001,Children and Young People,CYP,Transport Related,CCA,08/10/2015,9-13987,"1,284.15",Arrow Specialised Transport Ltd,,,,,,,
Nottinghamshire County Council,1111/1001,Children and Young People,CYP,Transport Related,CCA,08/10/2015,9-13989,"2,060.00",Arrow Specialised Transport Ltd,,,,,,,
Nottinghamshire County Council,1111/1001,Children and Young People,CYP,Transport Related,CCA,08/10/2015,9-13990,"2,233.60",Arrow Specialised Transport Ltd,,,,,,,
Nottinghamshire County Council,1111/1001,Children and Young People,CYP,Transport Related,CCA,08/10/2015,9-13991,"1,820.00",Arrow Specialised Transport Ltd,,,,,,,
Nottinghamshire County Council,1111/1001,Children and Young People,CYP,Transport Related,CCA,08/10/2015,9-13992,"1,872.00",Arrow Specialised Transport Ltd,,,,,,,
Nottinghamshire County Council,1111/1001,Children and Young People,CYP,Transport Related,CCA,08/10/2015,9-13993,"2,016.00",Arrow Specialised Transport Ltd,,,,,,,
Nottinghamshire County Council,1111/1001,Children and Young People,CYP,Transport Related,CCA,08/10/2015,9-13994,"2,322.00",Arrow Specialised Transport Ltd,,,,,,,
Nottinghamshire County Council,1111/1001,Children and Young People,CYP,Transport Related,CCA,08/10/2015,9-13995,"2,325.30",Arrow Specialised Transport Ltd,,,,,,,
Nottinghamshire County Council,1111/1001,Children and Young People,CYP,Transport Related,CCA,08/10/2015,9-13997,741.6,Arrow Specialised Transport Ltd,,,,,,,
Nottinghamshire County Council,1111/1001,Children and Young People,CYP,Transport Related,CCA,08/10/2015,9-13999,"1,980.00",Arrow Specialised Transport Ltd,,,,,,,
Nottinghamshire County Council,1111/1001,Children and Young People,CYP,Transport Related,CCA,08/10/2015,9-14000,"1,236.60",Arrow Specialised Transport Ltd,,,,,,,
Nottinghamshire County Council,1111/1001,Children and Young People,CYP,Transport Related,CCA,08/10/2015,9-14002,"1,513.00",Arrow Specialised Transport Ltd,,,,,,,
Nottinghamshire County Council,1111/1001,Children and Young People,CYP,Transport Related,CCA,08/10/2015,9-14003,"2,358.24",Arrow Specialised Transport Ltd,,,,,,,
Nottinghamshire County Council,1111/1001,Children and Young People,CYP,Transport Related,CCA,08/10/2015,9-14005,"2,380.00",Arrow Specialised Transport Ltd,,,,,,,
Nottinghamshire County Council,1111/1001,Children and Young People,CYP,Transport Related,CCA,08/10/2015,9-14006,"1,714.72",Arrow Specialised Transport Ltd,,,,,,,
Nottinghamshire County Council,1111/1001,Children and Young People,CYP,Transport Related,CCA,08/10/2015,9-14007,"1,491.80",Arrow Specialised Transport Ltd,,,,,,,
Nottinghamshire County Council,1111/1001,Children and Young People,CYP,Transport Related,CCA,08/10/2015,9-14008,"2,550.00",Arrow Specialised Transport Ltd,,,,,,,
Nottinghamshire County Council,1111/1001,Children and Young People,CYP,Transport Related,CCA,08/10/2015,9-14009,"1,815.60",Arrow Specialised Transport Ltd,,,,,,,
Nottinghamshire County Council,1111/1001,Children and Young People,CYP,Transport Related,CCA,08/10/2015,9-14010,"2,560.00",Arrow Specialised Transport Ltd,,,,,,,
Nottinghamshire County Council,1111/1001,Children and Young People,CYP,Transport Related,CCA,08/10/2015,9-14011,"1,702.40",Arrow Specialised Transport Ltd,,,,,,,
Nottinghamshire County Council,1111/1001,Children and Young People,CYP,Transport Related,CCA,08/10/2015,9-14012,761.8,Arrow Specialised Transport Ltd,,,,,,,
Nottinghamshire County Council,1111/1001,Children and Young People,CYP,Transport Related,CCA,08/10/2015,9-14014,"1,786.40",Arrow Specialised Transport Ltd,,,,,,,
Nottinghamshire County Council,1111/1001,Children and Young People,CYP,Transport Related,CCA,08/10/2015,9-14015,"1,988.80",Arrow Specialised Transport Ltd,,,,,,,
Nottinghamshire County Council,1111/1001,Children and Young People,CYP,Transport Related,CCA,08/10/2015,9-14016,"1,444.20",Arrow Specialised Transport Ltd,,,,,,,
Nottinghamshire County Council,1111/1001,Children and Young People,CYP,Transport Related,CCA,08/10/2015,9-14020,"2,269.80",Arrow Specialised Transport Ltd,,,,,,,
Nottinghamshire County Council,1111/1001,Children and Young People,CYP,Transport Related,CCA,08/10/2015,9-14021,"2,361.80",Arrow Specialised Transport Ltd,,,,,,,
Nottinghamshire County Council,1111/1001,Children and Young People,CYP,Transport Related,CCA,08/10/2015,9-14022,"2,960.00",Arrow Specialised Transport Ltd,,,,,,,
Nottinghamshire County Council,1111/1001,Children and Young People,CYP,Transport Related,CCA,08/10/2015,9-14023,"1,980.00",Arrow Specialised Transport Ltd,,,,,,,
Nottinghamshire County Council,1111/1001,Children and Young People,CYP,Transport Related,CCA,08/10/2015,9-14024,"2,200.00",Arrow Specialised Transport Ltd,,,,,,,
Nottinghamshire County Council,1111/1001,Children and Young People,CYP,Transport Related,CCA,08/10/2015,9-14025,"2,240.00",Arrow Specialised Transport Ltd,,,,,,,
Nottinghamshire County Council,1111/1001,Children and Young People,CYP,Transport Related,CCA,08/10/2015,9-14033,"1,611.00",Bridges Transport Services,,,,,,,
Nottinghamshire County Council,1111/1001,Children and Young People,CYP,Transport Related,CCA,08/10/2015,9-14036,"1,800.00",Bridges Transport Services,,,,,,,
Nottinghamshire County Council,1111/1001,Children and Young People,CYP,Transport Related,CCA,08/10/2015,9-14037,"2,142.00",Bridges Transport Services,,,,,,,
Nottinghamshire County Council,1111/1001,Children and Young People,CYP,Transport Related,CCA,08/10/2015,9-14038,"1,700.00",Bridges Transport Services,,,,,,,
Nottinghamshire County Council,1111/1001,Children and Young People,CYP,Transport Related,CCA,08/10/2015,9-14039,"1,345.00",Bridges Transport Services,,,,,,,
Nottinghamshire County Council,1111/1001,Children and Young People,CYP,Transport Related,CCA,08/10/2015,9-14040,"1,650.00",Bridges Transport Services,,,,,,,
Nottinghamshire County Council,1111/1001,Children and Young People,CYP,Transport Related,CCA,08/10/2015,9-14041,"1,157.58",Bridges Transport Services,,,,,,,
Nottinghamshire County Council,1111/1001,Children and Young People,CYP,Transport Related,CCA,08/10/2015,9-14042,913,Bridges Transport Services,,,,,,,
Nottinghamshire County Council,1111/1001,Children and Young People,CYP,Transport Related,CCA,08/10/2015,9-14043,"1,285.20",Bridges Transport Services,,,,,,,
Nottinghamshire County Council,1111/1001,Children and Young People,CYP,Transport Related,CCA,08/10/2015,9-14044,"3,204.39",Bridges Transport Services,,,,,,,
Nottinghamshire County Council,1111/1001,Children and Young People,CYP,Transport Related,CCA,08/10/2015,9-14045,"1,471.00",Bridges Transport Services,,,,,,,
Nottinghamshire County Council,1111/1001,Children and Young People,CYP,Transport Related,CCA,08/10/2015,9-14046,"4,161.40",Bridges Transport Services,,,,,,,
Nottinghamshire County Council,1111/1001,Children and Young People,CYP,Transport Related,CCA,08/10/2015,9-14047,"1,859.04",Bridges Transport Services,,,,,,,
Nottinghamshire County Council,1111/1001,Children and Young People,CYP,Transport Related,CCA,08/10/2015,9-14048,"2,514.96",Bridges Transport Services,,,,,,,
Nottinghamshire County Council,1111/1001,Children and Young People,CYP,Transport Related,CCA,08/10/2015,9-14049,"3,007.41",Bridges Transport Services,,,,,,,
Nottinghamshire County Council,1111/1001,Children and Young People,CYP,Transport Related,CCA,08/10/2015,9-14050,"1,394.60",Bridges Transport Services,,,,,,,
Nottinghamshire County Council,1111/1001,Children and Young People,CYP,Transport Related,CCA,08/10/2015,9-14051,973.61,Bridges Transport Services,,,,,,,
Nottinghamshire County Council,1111/1001,Children and Young People,CYP,Transport Related,CCA,08/10/2015,9-14053,"1,200.00",Bridges Transport Services,,,,,,,
Nottinghamshire County Council,1111/1001,Children and Young People,CYP,Transport Related,CCA,08/10/2015,9-14054,"1,782.00",Bridges Transport Services,,,,,,,
Nottinghamshire County Council,1111/1001,Children and Young People,CYP,Transport Related,CCA,08/10/2015,9-14055,"2,275.80",Bridges Transport Services,,,,,,,
Nottinghamshire County Council,1111/1001,Children and Young People,CYP,Transport Related,CCA,08/10/2015,9-14056,"2,390.00",Bridges Transport Services,,,,,,,
Nottinghamshire County Council,1111/1001,Children and Young People,CYP,Transport Related,CCA,08/10/2015,9-14057,"2,742.80",Bridges Transport Services,,,,,,,
Nottinghamshire County Council,1111/1001,Children and Young People,CYP,Transport Related,CCA,08/10/2015,9-14058,"2,640.00",Bridges Transport Services,,,,,,,
Nottinghamshire County Council,1111/1001,Children and Young People,CYP,Transport Related,CCA,08/10/2015,9-14062,"1,450.00",Town Cars (UK) Ltd,,,,,,,
Nottinghamshire County Council,1111/1001,Children and Young People,CYP,Transport Related,CCA,08/10/2015,9-14063,612,Town Cars (UK) Ltd,,,,,,,
Nottinghamshire County Council,1111/1001,Children and Young People,CYP,Transport Related,CCA,08/10/2015,9-14065,"1,218.00",Town Cars (UK) Ltd,,,,,,,
Nottinghamshire County Council,1111/1001,Children and Young People,CYP,Transport Related,CCA,08/10/2015,9-14116,"3,002.00",Taxicover Uk Ltd,,,,,,,
Nottinghamshire County Council,1111/1001,Children and Young People,CYP,Transport Related,CCA,08/10/2015,9-14117,"2,736.00",Taxicover Uk Ltd,,,,,,,
Nottinghamshire County Council,1111/1001,Children and Young People,CYP,Transport Related,CCA,08/10/2015,9-14118,"1,033.56",Southside Cars,,,,,,,
Nottinghamshire County Council,1111/1001,Children and Young People,CYP,Transport Related,CCA,08/10/2015,9-14121,"2,638.74",CBC Taxis Ltd,,,,,,,
Nottinghamshire County Council,1111/1001,Children and Young People,CYP,Transport Related,CCA,08/10/2015,9-14122,999,CBC Taxis Ltd,,,,,,,
Nottinghamshire County Council,1111/1001,Children and Young People,CYP,Transport Related,CCA,08/10/2015,9-14123,"1,387.00",CBC Taxis Ltd,,,,,,,
Nottinghamshire County Council,1111/1001,Children and Young People,CYP,Transport Related,CCA,08/10/2015,9-14128,"2,366.40",Arrow Specialised Transport Ltd,,,,,,,
Nottinghamshire County Council,1111/1001,Children and Young People,CYP,Transport Related,CCA,08/10/2015,9-14129,"1,726.80",Arrow Specialised Transport Ltd,,,,,,,
Nottinghamshire County Council,1111/1001,Children and Young People,CYP,Transport Related,CCA,08/10/2015,9-14130,"1,857.08",Arrow Specialised Transport Ltd,,,,,,,
Nottinghamshire County Council,1111/1001,Children and Young People,CYP,Transport Related,CCA,08/10/2015,9-14131,"2,835.00",Arrow Specialised Transport Ltd,,,,,,,
Nottinghamshire County Council,1111/1001,Children and Young People,CYP,Transport Related,CCA,08/10/2015,9-14132,"2,090.00",Arrow Specialised Transport Ltd,,,,,,,
Nottinghamshire County Council,1111/1001,Children and Young People,CYP,Transport Related,CCA,08/10/2015,9-14133,"1,965.00",Arrow Specialised Transport Ltd,,,,,,,
Nottinghamshire County Council,1111/1001,Children and Young People,CYP,Transport Related,CCA,08/10/2015,9-14134,"1,680.00",Fozcabs Newark Taxis,,,,,,,
Nottinghamshire County Council,1111/1001,Children and Young People,CYP,Transport Related,CCA,08/10/2015,9-14135,"2,060.00",Fozcabs Newark Taxis,,,,,,,
Nottinghamshire County Council,1111/1001,Children and Young People,CYP,Transport Related,CCA,08/10/2015,9-14136,"1,425.00",Fozcabs Newark Taxis,,,,,,,
Nottinghamshire County Council,1111/1001,Children and Young People,CYP,Transport Related,CCA,08/10/2015,9-14138,"2,784.60",Shelleys Taxis Ltd,,,,,,,
Nottinghamshire County Council,1111/1001,Children and Young People,CYP,Transport Related,CCA,08/10/2015,9-14139,"1,160.00",Shelleys Taxis Ltd,,,,,,,
Nottinghamshire County Council,1111/1001,Children and Young People,CYP,Transport Related,CCA,08/10/2015,9-14140,"1,800.00",Shelleys Taxis Ltd,,,,,,,
Nottinghamshire County Council,1111/1001,Children and Young People,CYP,Transport Related,CCA,08/10/2015,9-14141,680,Shelleys Taxis Ltd,,,,,,,
Nottinghamshire County Council,1111/1001,Children and Young People,CYP,Transport Related,CCA,08/10/2015,9-14142,"1,110.00",Shelleys Taxis Ltd,,,,,,,
Nottinghamshire County Council,1111/1001,Children and Young People,CYP,Transport Related,CCA,08/10/2015,9-14143,"1,260.00",Shelleys Taxis Ltd,,,,,,,
Nottinghamshire County Council,1111/1001,Children and Young People,CYP,Transport Related,CCA,08/10/2015,9-14144,"1,170.00",Shelleys Taxis Ltd,,,,,,,
Nottinghamshire County Council,1111/1001,Children and Young People,CYP,Transport Related,CCA,08/10/2015,9-14145,"1,422.00",Shelleys Taxis Ltd,,,,,,,
Nottinghamshire County Council,1111/1001,Children and Young People,CYP,Transport Related,CCA,08/10/2015,9-14146,900,Shelleys Taxis Ltd,,,,,,,
Nottinghamshire County Council,1111/1001,Children and Young People,CYP,Transport Related,CCA,08/10/2015,9-14147,500,Shelleys Taxis Ltd,,,,,,,
Nottinghamshire County Council,1111/1001,Children and Young People,CYP,Transport Related,CCA,08/10/2015,9-14148,"2,460.50",K & S Coaches,,,,,,,
Nottinghamshire County Council,1111/1001,Children and Young People,CYP,Transport Related,CCA,08/10/2015,9-14151,"1,300.00",Abacus Cars,,,,,,,
Nottinghamshire County Council,1111/1001,Children and Young People,CYP,Transport Related,CCA,08/10/2015,9-14160,"1,800.00",Abacus Cars,,,,,,,
Nottinghamshire County Council,1111/1001,Children and Young People,CYP,Transport Related,CCA,08/10/2015,9-14162,"1,400.00",Abacus Cars,,,,,,,
Nottinghamshire County Council,1111/1001,Children and Young People,CYP,Transport Related,CCA,08/10/2015,9-14164,"1,296.00",Abacus Cars,,,,,,,
Nottinghamshire County Council,1111/1001,Children and Young People,CYP,Transport Related,CCA,08/10/2015,9-14166,"1,200.00",Abacus Cars,,,,,,,
Nottinghamshire County Council,1111/1001,Children and Young People,CYP,Transport Related,CCA,08/10/2015,9-14167,"1,400.00",Abacus Cars,,,,,,,
Nottinghamshire County Council,1111/1001,Children and Young People,CYP,Transport Related,CCA,08/10/2015,9-14169,"1,332.00",Abacus Cars,,,,,,,
Nottinghamshire County Council,1111/1001,Children and Young People,CYP,Transport Related,CCA,08/10/2015,9-14177,509.94,Rio Cabs,,,,,,,
Nottinghamshire County Council,1111/1001,Children and Young People,CYP,Transport Related,CCA,09/10/2015,9-14495,"1,578.50",All Wayz Travel,,,,,,,
Nottinghamshire County Council,1111/1001,Children and Young People,CYP,Transport Related,CCA,09/10/2015,9-14497,507,Dial A Trip,,,,,,,
Nottinghamshire County Council,1111/1001,Children and Young People,CYP,Transport Related,CCA,09/10/2015,9-14499,"2,290.00",Ace Of Mansfield Ltd,,,,,,,
Nottinghamshire County Council,1111/1001,Children and Young People,CYP,Transport Related,CCA,09/10/2015,9-14502,"1,599.84",Arrow Specialised Transport Ltd,,,,,,,
Nottinghamshire County Council,1111/1001,Children and Young People,CYP,Transport Related,CCA,09/10/2015,9-14503,"2,363.89",Arrow Specialised Transport Ltd,,,,,,,
Nottinghamshire County Council,1111/1001,Children and Young People,CYP,Transport Related,CCA,09/10/2015,9-14505,"2,632.00",Arrow Specialised Transport Ltd,,,,,,,
Nottinghamshire County Council,1111/1001,Children and Young People,CYP,Transport Related,CCA,09/10/2015,9-14506,"1,972.40",Arrow Specialised Transport Ltd,,,,,,,
Nottinghamshire County Council,1111/1001,Children and Young People,CYP,Transport Related,CCA,09/10/2015,9-14508,945,Ng11 Cars,,,,,,,
Nottinghamshire County Council,1111/1001,Children and Young People,CYP,Transport Related,CCA,09/10/2015,9-14509,"1,870.00",Ng11 Cars,,,,,,,
Nottinghamshire County Council,1111/1001,Children and Young People,CYP,Transport Related,CCA,09/10/2015,9-14511,"1,176.75",Shelleys Taxis Ltd,,,,,,,
Nottinghamshire County Council,1111/1001,Children and Young People,CYP,Transport Related,CCA,09/10/2015,9-14512,896,Shelleys Taxis Ltd,,,,,,,
Nottinghamshire County Council,1111/1001,Children and Young People,CYP,Transport Related,CCA,09/10/2015,9-14513,990,Shelleys Taxis Ltd,,,,,,,
Nottinghamshire County Council,1111/1001,Children and Young People,CYP,Transport Related,CCA,09/10/2015,9-14515,"1,944.00",Sprays Transport Ltd,,,,,,,
Nottinghamshire County Council,1111/1001,Children and Young People,CYP,Transport Related,CCA,09/10/2015,9-14516,"2,070.00",Sprays Transport Ltd,,,,,,,
Nottinghamshire County Council,1111/1001,Children and Young People,CYP,Transport Related,CCA,09/10/2015,9-14518,"2,000.00",Sprays Transport Ltd,,,,,,,
Nottinghamshire County Council,1111/1001,Children and Young People,CYP,Transport Related,CCA,09/10/2015,9-14519,"1,586.00",Sprays Transport Ltd,,,,,,,
Nottinghamshire County Council,1111/1001,Children and Young People,CYP,Transport Related,CCA,09/10/2015,9-14521,576,Elkingtons Park Garage,,,,,,,
Nottinghamshire County Council,1111/1001,Children and Young People,CYP,Transport Related,CCA,09/10/2015,9-14523,"3,520.00",Abacus Cars,,,,,,,
Nottinghamshire County Council,1111/1001,Children and Young People,CYP,Transport Related,CCA,09/10/2015,9-14528,"3,180.98",Gem Mini Travel Ltd,,,,,,,
Nottinghamshire County Council,1111/1001,Children and Young People,CYP,Transport Related,CCA,09/10/2015,9-14529,507,Gem Mini Travel Ltd,,,,,,,
Nottinghamshire County Council,1111/1001,Children and Young People,CYP,Transport Related,CCA,09/10/2015,9-14530,"3,370.98",Gem Mini Travel Ltd,,,,,,,
Nottinghamshire County Council,1111/1001,Children and Young People,CYP,Transport Related,CCA,09/10/2015,9-14531,507,Gem Mini Travel Ltd,,,,,,,
Nottinghamshire County Council,1111/1001,Children and Young People,CYP,Transport Related,CCA,09/10/2015,9-14539,"3,242.54",Marshalls Of Sutton On Trent Ltd,,,,,,,
Nottinghamshire County Council,1111/1001,Children and Young People,CYP,Transport Related,CCA,09/10/2015,9-14548,720,Nunns Cars,,,,,,,
Nottinghamshire County Council,1111/1001,Children and Young People,CYP,Transport Related,CCA,09/10/2015,9-14594,"1,743.75",Nottingham Coaches,,,,,,,
Nottinghamshire County Council,1111/1001,Children and Young People,CYP,Transport Related,CCA,09/10/2015,9-14595,"1,760.00",Eurocab 2000 Ltd,,,,,,,
Nottinghamshire County Council,1111/1001,Children and Young People,CYP,Transport Related,CCA,09/10/2015,9-14596,"1,188.00",Eurocab 2000 Ltd,,,,,,,
Nottinghamshire County Council,1111/1001,Children and Young People,CYP,Transport Related,CCA,09/10/2015,9-14598,"2,070.00",Eurocab 2000 Ltd,,,,,,,
Nottinghamshire County Council,1111/1001,Children and Young People,CYP,Transport Related,CCA,09/10/2015,9-14599,"1,600.00",Trevor Bailey t/a Trevor Bailey Tra,,,,,,,
Nottinghamshire County Council,1111/1001,Children and Young People,CYP,Transport Related,CCA,09/10/2015,9-14600,720,A2B Licensed Taxis,,,,,,,
Nottinghamshire County Council,1111/1001,Children and Young People,CYP,Transport Related,CCA,12/10/2015,9-13600,"1,480.00",Forest Cars,,,,,,,
Nottinghamshire County Council,1111/1001,Children and Young People,CYP,Transport Related,CCA,12/10/2015,9-13601,632,Forest Cars,,,,,,,
Nottinghamshire County Council,1111/1001,Children and Young People,CYP,Transport Related,CCA,12/10/2015,9-13602,593.63,Forest Cars,,,,,,,
Nottinghamshire County Council,1111/1001,Children and Young People,CYP,Transport Related,CCA,12/10/2015,9-13604,"1,344.00",Forest Cars,,,,,,,
Nottinghamshire County Council,1111/1001,Children and Young People,CYP,Transport Related,CCA,14/10/2015,9-14838,870.48,Alert Cars Ltd,,,,,,,
Nottinghamshire County Council,1111/1001,Children and Young People,CYP,Transport Related,CCA,14/10/2015,9-14839,"1,623.50",Southside Cars,,,,,,,
Nottinghamshire County Council,1111/1001,Children and Young People,CYP,Transport Related,CCA,14/10/2015,9-14840,936.98,Southside Cars,,,,,,,
Nottinghamshire County Council,1111/1001,Children and Young People,CYP,Transport Related,CCA,14/10/2015,9-14842,"1,872.72",Central Cars Nottm Ltd,,,,,,,
Nottinghamshire County Council,1111/1001,Children and Young People,CYP,Transport Related,CCA,14/10/2015,9-14844,"1,149.59",Central Cars Nottm Ltd,,,,,,,
Nottinghamshire County Council,1111/1001,Children and Young People,CYP,Transport Related,CCA,14/10/2015,9-14845,"1,768.68",Central Cars Nottm Ltd,,,,,,,
Nottinghamshire County Council,1111/1001,Children and Young People,CYP,Transport Related,CCA,14/10/2015,9-14846,"1,744.20",Central Cars Nottm Ltd,,,,,,,
Nottinghamshire County Council,1111/1001,Children and Young People,CYP,Transport Related,CCA,14/10/2015,9-14848,"2,550.00",Johnson Bros Tours Ltd,,,,,,,
Nottinghamshire County Council,1111/1001,Children and Young People,CYP,Transport Related,CCA,14/10/2015,9-14855,"2,060.00",Arrow Specialised Transport Ltd,,,,,,,
Nottinghamshire County Council,1111/1001,Children and Young People,CYP,Transport Related,CCA,14/10/2015,9-14856,"2,054.64",D G Private Hire Ltd,,,,,,,
Nottinghamshire County Council,1111/1001,Children and Young People,CYP,Transport Related,CCA,14/10/2015,9-14857,"2,266.02",D G Private Hire Ltd,,,,,,,
Nottinghamshire County Council,1111/1001,Children and Young People,CYP,Transport Related,CCA,14/10/2015,9-14862,720,Ng11 Cars,,,,,,,
Nottinghamshire County Council,1111/1001,Children and Young People,CYP,Transport Related,CCA,14/10/2015,9-14863,975,Ng11 Cars,,,,,,,
Nottinghamshire County Council,1111/1001,Children and Young People,CYP,Transport Related,CCA,14/10/2015,9-14864,"1,470.00",Ng11 Cars,,,,,,,
Nottinghamshire County Council,1111/1001,Children and Young People,CYP,Transport Related,CCA,14/10/2015,9-14865,"2,394.00",D G Private Hire Ltd,,,,,,,
Nottinghamshire County Council,1111/1001,Children and Young People,CYP,Transport Related,CCA,14/10/2015,9-14866,"1,640.20",D G Private Hire Ltd,,,,,,,
Nottinghamshire County Council,1111/1001,Children and Young People,CYP,Transport Related,CCA,14/10/2015,9-14867,"1,520.00",D G Private Hire Ltd,,,,,,,
Nottinghamshire County Council,1111/1001,Children and Young People,CYP,Transport Related,CCA,14/10/2015,9-14871,800,D G Private Hire Ltd,,,,,,,
Nottinghamshire County Council,1111/1001,Children and Young People,CYP,Transport Related,CCA,14/10/2015,9-14888,575,Diamond Cars,,,,,,,
Nottinghamshire County Council,1111/1001,Children and Young People,CYP,Transport Related,CCA,14/10/2015,9-14889,575,Diamond Cars,,,,,,,
Nottinghamshire County Council,1111/1001,Children and Young People,CYP,Transport Related,CCA,14/10/2015,9-14926,825,Sharpes Of Nottingham,,,,,,,
Nottinghamshire County Council,1111/1001,Children and Young People,CYP,Transport Related,CCA,14/10/2015,9-14928,"1,224.00",Southside Cars,,,,,,,
Nottinghamshire County Council,1111/1001,Children and Young People,CYP,Transport Related,CCA,14/10/2015,9-14929,"1,358.64",Arrow Specialised Transport Ltd,,,,,,,
Nottinghamshire County Council,1111/1001,Children and Young People,CYP,Transport Related,CCA,14/10/2015,9-14930,"1,665.00",D G Private Hire Ltd,,,,,,,
Nottinghamshire County Council,1111/1001,Children and Young People,CYP,Transport Related,CCA,14/10/2015,9-14934,62.57,Abacus Cars,,,,,,,
Nottinghamshire County Council,1111/1001,Children and Young People,CYP,Transport Related,CCA,14/10/2015,9-14938,"1,680.00",P & P Taxis,,,,,,,
Nottinghamshire County Council,1111/1001,Children and Young People,CYP,Transport Related,CCA,14/10/2015,9-14940,"2,925.00",Freeway Coaches Ltd,,,,,,,
Nottinghamshire County Council,1111/1001,Children and Young People,CYP,Transport Related,CCA,14/10/2015,9-14941,"3,095.00",Freeway Coaches Ltd,,,,,,,
Nottinghamshire County Council,1111/1001,Children and Young People,CYP,Transport Related,CCA,14/10/2015,9-14945,988.99,Ace Cars,,,,,,,
Nottinghamshire County Council,1111/1001,Children and Young People,CYP,Transport Related,CCA,14/10/2015,9-14946,"1,790.00",Ace Cars,,,,,,,
Nottinghamshire County Council,1111/1001,Children and Young People,CYP,Transport Related,CCA,14/10/2015,9-14947,"2,031.50",Ace Cars,,,,,,,
Nottinghamshire County Council,1111/1001,Children and Young People,CYP,Transport Related,CCA,14/10/2015,9-14948,"1,892.00",Ace Cars,,,,,,,
Nottinghamshire County Council,1111/1001,Children and Young People,CYP,Transport Related,CCA,14/10/2015,9-14949,"2,292.00",Ace Cars,,,,,,,
Nottinghamshire County Council,1111/1001,Children and Young People,CYP,Transport Related,CCA,14/10/2015,9-14950,"2,164.00",Ace Cars,,,,,,,
Nottinghamshire County Council,1111/1001,Children and Young People,CYP,Transport Related,CCA,14/10/2015,9-14951,"1,142.40",Ace Cars,,,,,,,
Nottinghamshire County Council,1111/1001,Children and Young People,CYP,Transport Related,CCA,14/10/2015,9-14952,"1,192.50",Ace Cars,,,,,,,
Nottinghamshire County Council,1111/1001,Children and Young People,CYP,Transport Related,CCA,16/10/2015,9-15091,540,Central Cars Nottm Ltd,,,,,,,
Nottinghamshire County Council,1111/1001,Children and Young People,CYP,Transport Related,CCA,16/10/2015,9-15092,"1,964.80",Johnson Bros Tours Ltd,,,,,,,
Nottinghamshire County Council,1111/1001,Children and Young People,CYP,Transport Related,CCA,16/10/2015,9-15093,"1,080.00",SJW (Muskham) Ltd T/A Z Cars,,,,,,,
Nottinghamshire County Council,1111/1001,Children and Young People,CYP,Transport Related,CCA,16/10/2015,9-15094,"1,400.00",SJW (Muskham) Ltd T/A Z Cars,,,,,,,
Nottinghamshire County Council,1111/1001,Children and Young People,CYP,Transport Related,CCA,16/10/2015,9-15111,1785,Arrow Specialised Transport Ltd,,,,,,,
Nottinghamshire County Council,1111/1001,Children and Young People,CYP,Transport Related,CCA,16/10/2015,9-15118,1402.5,D G Private Hire Ltd,,,,,,,
Nottinghamshire County Council,1111/1001,Children and Young People,CYP,Transport Related,CCA,16/10/2015,9-15123,937.5,Fozcabs Newark Taxis,,,,,,,
Nottinghamshire County Council,1111/1001,Children and Young People,CYP,Transport Related,CCA,16/10/2015,9-15133,1914.12,Sprays Transport Ltd,,,,,,,
Nottinghamshire County Council,1111/1001,Children and Young People,CYP,Transport Related,CCA,16/10/2015,9-15134,2034,Sprays Transport Ltd,,,,,,,
Nottinghamshire County Council,1111/1001,Children and Young People,CYP,Transport Related,CCA,16/10/2015,9-15137,814,D G Private Hire Ltd,,,,,,,
Nottinghamshire County Council,1111/1001,Children and Young People,CYP,Transport Related,CCA,16/10/2015,9-15145,678.87,Bassetlaw Action Centre,,,,,,,
Nottinghamshire County Council,1111/1001,Children and Young People,CYP,Transport Related,CCA,16/10/2015,9-15146,786.6,Bassetlaw Action Centre,,,,,,,
Nottinghamshire County Council,1111/1001,Children and Young People,CYP,Transport Related,CCA,19/10/2015,9-15208,16570,Sharpes Of Nottingham,,,,,,,
Nottinghamshire County Council,1111/1001,Children and Young People,CYP,Transport Related,CCA,19/10/2015,9-15211,1140,6 Five 2s,,,,,,,
Nottinghamshire County Council,1111/1001,Children and Young People,CYP,Transport Related,CCA,19/10/2015,9-15212,704,6 Five 2s,,,,,,,
Nottinghamshire County Council,1111/1001,Children and Young People,CYP,Transport Related,CCA,19/10/2015,9-15214,832.4,6 Five 2s,,,,,,,
Nottinghamshire County Council,1111/1001,Children and Young People,CYP,Transport Related,CCA,19/10/2015,9-15216,2012.22,6 Five 2s,,,,,,,
Nottinghamshire County Council,1111/1001,Children and Young People,CYP,Transport Related,CCA,19/10/2015,9-15218,777.6,6 Five 2s,,,,,,,
Nottinghamshire County Council,1111/1001,Children and Young People,CYP,Transport Related,CCA,19/10/2015,9-15219,1899.24,6 Five 2s,,,,,,,
Nottinghamshire County Council,1111/1001,Children and Young People,CYP,Transport Related,CCA,19/10/2015,9-15220,1880,6 Five 2s,,,,,,,
Nottinghamshire County Council,1111/1001,Children and Young People,CYP,Transport Related,CCA,19/10/2015,9-15223,1064,6 Five 2s,,,,,,,
Nottinghamshire County Council,1111/1001,Children and Young People,CYP,Transport Related,CCA,19/10/2015,9-15224,2072,6 Five 2s,,,,,,,
Nottinghamshire County Council,1111/1001,Children and Young People,CYP,Transport Related,CCA,19/10/2015,9-15227,2172.6,F4Control Ltd (t/a First4care),,,,,,,
Nottinghamshire County Council,1111/1001,Children and Young People,CYP,Transport Related,CCA,19/10/2015,9-15229,2245.87,Martins Travel,,,,,,,
Nottinghamshire County Council,1111/1001,Children and Young People,CYP,Transport Related,CCA,19/10/2015,9-15231,625,Shelleys Taxis Ltd,,,,,,,
Nottinghamshire County Council,1111/1001,Children and Young People,CYP,Transport Related,CCA,19/10/2015,9-15234,510,Shelleys Taxis Ltd,,,,,,,
Nottinghamshire County Council,1111/1001,Children and Young People,CYP,Transport Related,CCA,19/10/2015,9-15242,1795.5,Ace Cars,,,,,,,
Nottinghamshire County Council,1111/1001,Children and Young People,CYP,Transport Related,CCA,19/10/2015,9-15243,1521,Ace Cars,,,,,,,
Nottinghamshire County Council,1111/1001,Children and Young People,CYP,Transport Related,CCA,19/10/2015,9-15244,908.8,Ace Cars,,,,,,,
Nottinghamshire County Council,1111/1001,Children and Young People,CYP,Transport Related,CCA,19/10/2015,9-15246,2940,Ace Cars,,,,,,,
Nottinghamshire County Council,1111/1001,Children and Young People,CYP,Transport Related,CCA,20/10/2015,9-15391,5000,Marshalls Of Sutton On Trent Ltd,,,,,,,
Nottinghamshire County Council,1111/1001,Children and Young People,CYP,Transport Related,CCA,20/10/2015,9-15392,7000,Marshalls Of Sutton On Trent Ltd,,,,,,,
Nottinghamshire County Council,1111/1001,Children and Young People,CYP,Transport Related,CCA,20/10/2015,9-15393,1590,Tiger European Uk Ltd,,,,,,,
Nottinghamshire County Council,1111/1001,Children and Young People,CYP,Transport Related,CCA,21/10/2015,9-15549,1170,Ace Of Mansfield Ltd,,,,,,,
Nottinghamshire County Council,1111/1001,Children and Young People,CYP,Transport Related,CCA,21/10/2015,9-15550,828.57,D G Private Hire Ltd,,,,,,,
Nottinghamshire County Council,1111/1001,Children and Young People,CYP,Transport Related,CCA,21/10/2015,9-15552,3394.8,Galaxy Cabs,,,,,,,
Nottinghamshire County Council,1111/1001,Children and Young People,CYP,Transport Related,CCA,21/10/2015,9-15553,1190,Ng11 Cars,,,,,,,
Nottinghamshire County Council,1111/1001,Children and Young People,CYP,Transport Related,CCA,21/10/2015,9-15555,700,D G Private Hire Ltd,,,,,,,
Nottinghamshire County Council,1111/1001,Children and Young People,CYP,Transport Related,CCA,21/10/2015,9-15556,1893.6,D G Private Hire Ltd,,,,,,,
Nottinghamshire County Council,1111/1001,Children and Young People,CYP,Transport Related,CCA,21/10/2015,9-15557,1635,D G Private Hire Ltd,,,,,,,
Nottinghamshire County Council,1111/1001,Children and Young People,CYP,Transport Related,CCA,21/10/2015,9-15558,1760,D G Private Hire Ltd,,,,,,,
Nottinghamshire County Council,1111/1001,Children and Young People,CYP,Transport Related,CCA,21/10/2015,9-15562,1094.5,Ace Cars,,,,,,,
Nottinghamshire County Council,1111/1001,Children and Young People,CYP,Transport Related,CCA,21/10/2015,9-15563,2390,Ace Cars,,,,,,,
Nottinghamshire County Council,1111/1001,Children and Young People,CYP,Transport Related,CCA,21/10/2015,9-15564,2144,Ace Cars,,,,,,,
Nottinghamshire County Council,1111/1001,Children and Young People,CYP,Transport Related,CCA,22/10/2015,9-15628,2900,Taxicover Uk Ltd,,,,,,,
Nottinghamshire County Council,1111/1001,Children and Young People,CYP,Transport Related,CCA,22/10/2015,9-15629,3100,Taxicover Uk Ltd,,,,,,,
Nottinghamshire County Council,1111/1001,Children and Young People,CYP,Transport Related,CCA,22/10/2015,9-15630,2780,Taxicover Uk Ltd,,,,,,,
Nottinghamshire County Council,1111/1001,Children and Young People,CYP,Transport Related,CCA,22/10/2015,9-15631,2960,Taxicover Uk Ltd,,,,,,,
Nottinghamshire County Council,1111/1001,Children and Young People,CYP,Transport Related,CCA,22/10/2015,9-15632,3360,Taxicover Uk Ltd,,,,,,,
Nottinghamshire County Council,1111/1001,Children and Young People,CYP,Transport Related,CCA,22/10/2015,9-15633,3120,Taxicover Uk Ltd,,,,,,,
Nottinghamshire County Council,1111/1001,Children and Young People,CYP,Transport Related,CCA,22/10/2015,9-15637,721.16,Acorn Contracts,,,,,,,
Nottinghamshire County Council,1111/1001,Children and Young People,CYP,Transport Related,CCA,22/10/2015,9-15640,575,Diamond Cars,,,,,,,
Nottinghamshire County Council,1111/1001,Children and Young People,CYP,Transport Related,CCA,22/10/2015,9-15641,522.5,Target Taxis,,,,,,,
Nottinghamshire County Council,1111/1001,Children and Young People,CYP,Transport Related,CCA,22/10/2015,9-15642,1716.3,Target Taxis,,,,,,,
Nottinghamshire County Council,1111/1001,Children and Young People,CYP,Transport Related,CCA,27/10/2015,9-16041,1162.8,Galaxy Cabs,,,,,,,
Nottinghamshire County Council,1111/1001,Children and Young People,CYP,Transport Related,CCA,27/10/2015,9-16043,2659.32,BN Gibson Ltd,,,,,,,
Nottinghamshire County Council,1111/1001,Children and Young People,CYP,Transport Related,CCA,27/10/2015,9-16044,3796.6,BN Gibson Ltd,,,,,,,
Nottinghamshire County Council,1111/1001,Children and Young People,CYP,Transport Related,CCA,27/10/2015,9-16045,3487.8,BN Gibson Ltd,,,,,,,
Nottinghamshire County Council,1111/1001,Children and Young People,CYP,Transport Related,CCA,27/10/2015,9-16047,4347.4,BN Gibson Ltd,,,,,,,
Nottinghamshire County Council,1111/1001,Children and Young People,CYP,Transport Related,CCA,27/10/2015,9-16048,4678.8,BN Gibson Ltd,,,,,,,
Nottinghamshire County Council,1111/1001,Children and Young People,CYP,Transport Related,CCA,27/10/2015,9-16049,3926.6,BN Gibson Ltd,,,,,,,
Nottinghamshire County Council,1111/1001,Children and Young People,CYP,Transport Related,CCA,27/10/2015,9-16050,3667.4,BN Gibson Ltd,,,,,,,
Nottinghamshire County Council,1111/1001,Children and Young People,CYP,Transport Related,CCA,27/10/2015,9-16051,3168.4,BN Gibson Ltd,,,,,,,
Nottinghamshire County Council,1111/1001,Children and Young People,CYP,Transport Related,CCA,27/10/2015,9-16052,2500.8,BN Gibson Ltd,,,,,,,
Nottinghamshire County Council,1111/1001,Children and Young People,CYP,Transport Related,CCA,27/10/2015,9-16053,2352.2,BN Gibson Ltd,,,,,,,
Nottinghamshire County Council,1111/1001,Children and Young People,CYP,Transport Related,CCA,27/10/2015,9-16054,1759,BN Gibson Ltd,,,,,,,
Nottinghamshire County Council,1111/1001,Children and Young People,CYP,Transport Related,CCA,27/10/2015,9-16055,3193.8,BN Gibson Ltd,,,,,,,
Nottinghamshire County Council,1111/1001,Children and Young People,CYP,Transport Related,CCA,27/10/2015,9-16056,2659.2,BN Gibson Ltd,,,,,,,
Nottinghamshire County Council,1111/1001,Children and Young People,CYP,Transport Related,CCA,27/10/2015,9-16057,1371.11,BN Gibson Ltd,,,,,,,
Nottinghamshire County Council,1111/1001,Children and Young People,CYP,Transport Related,CCA,27/10/2015,9-16058,2243,BN Gibson Ltd,,,,,,,
Nottinghamshire County Council,1111/1001,Children and Young People,CYP,Transport Related,CCA,27/10/2015,9-16062,2640.4,BN Gibson Ltd,,,,,,,
Nottinghamshire County Council,1111/1001,Children and Young People,CYP,Transport Related,CDA,05/10/2015,9-10268,25000,Travel Wright Ltd,,,,,,,
Nottinghamshire County Council,1111/1001,Children and Young People,CYP,Transport Related,CDA,05/10/2015,9-10269,8000,C W Moxon Ltd,,,,,,,
Nottinghamshire County Council,1111/1001,Children and Young People,CYP,Transport Related,CDA,05/10/2015,9-10270,30000,C W Moxon Ltd,,,,,,,
Nottinghamshire County Council,1111/1001,Children and Young People,CYP,Transport Related,CDA,05/10/2015,9-10271,40000,Stagecoach Services Ltd,,,,,,,
Nottinghamshire County Council,1111/1001,Children and Young People,CYP,Transport Related,CDA,05/10/2015,9-10273,20000,Stagecoach Services Ltd,,,,,,,
Nottinghamshire County Council,1111/1001,Children and Young People,CYP,Transport Related,CDA,05/10/2015,9-10275,22145,Johnson Bros Tours Ltd,,,,,,,
Nottinghamshire County Council,1111/1001,Children and Young People,CYP,Transport Related,CDA,07/10/2015,9-13506,873,Fozcabs Newark Taxis,,,,,,,
Nottinghamshire County Council,1111/1001,Children and Young People,CYP,Transport Related,CDA,07/10/2015,9-13511,301.24,Horizon Travel,,,,,,,
Nottinghamshire County Council,1111/1001,Children and Young People,CYP,Transport Related,CDA,07/10/2015,9-13817,177.42,Sprays Transport Ltd,,,,,,,
Nottinghamshire County Council,1111/1001,Children and Young People,CYP,Transport Related,CDA,07/10/2015,9-13822,907.8,P & P Taxis,,,,,,,
Nottinghamshire County Council,1111/1001,Children and Young People,CYP,Transport Related,CDA,08/10/2015,9-13941,1224.6,Ace Of Mansfield Ltd,,,,,,,
Nottinghamshire County Council,1111/1001,Children and Young People,CYP,Transport Related,CDA,08/10/2015,9-13948,500,Alpha Cars,,,,,,,
Nottinghamshire County Council,1111/1001,Children and Young People,CYP,Transport Related,CDA,08/10/2015,9-13952,252,Arrow Specialised Transport Ltd,,,,,,,
Nottinghamshire County Council,1111/1001,Children and Young People,CYP,Transport Related,CDA,08/10/2015,9-14001,1439.6,Arrow Specialised Transport Ltd,,,,,,,
Nottinghamshire County Council,1111/1001,Children and Young People,CYP,Transport Related,CDA,08/10/2015,9-14016,1444.2,Arrow Specialised Transport Ltd,,,,,,,
Nottinghamshire County Council,1111/1001,Children and Young People,CYP,Transport Related,CDA,08/10/2015,9-14051,486.73,Bridges Transport Services,,,,,,,
Nottinghamshire County Council,1111/1001,Children and Young People,CYP,Transport Related,CDA,08/10/2015,9-14170,2600,Nottingham Minibuses & Coaches,,,,,,,
Nottinghamshire County Council,1111/1001,Children and Young People,CYP,Transport Related,CDA,08/10/2015,9-14171,2800,Nottingham Minibuses & Coaches,,,,,,,
Nottinghamshire County Council,1111/1001,Children and Young People,CYP,Transport Related,CDA,08/10/2015,9-14172,2500,Nottingham Minibuses & Coaches,,,,,,,
Nottinghamshire County Council,1111/1001,Children and Young People,CYP,Transport Related,CDA,08/10/2015,9-14173,1900,Nottingham Minibuses & Coaches,,,,,,,
Nottinghamshire County Council,1111/1001,Children and Young People,CYP,Transport Related,CDA,08/10/2015,9-14174,2600,Nottingham Minibuses & Coaches,,,,,,,
Nottinghamshire County Council,1111/1001,Children and Young People,CYP,Transport Related,CDA,08/10/2015,9-14175,2800,Nottingham Minibuses & Coaches,,,,,,,
Nottinghamshire County Council,1111/1001,Children and Young People,CYP,Transport Related,CDA,09/10/2015,9-14510,1180,Ng11 Cars,,,,,,,
Nottinghamshire County Council,1111/1001,Children and Young People,CYP,Transport Related,CDA,09/10/2015,9-14516,230,Sprays Transport Ltd,,,,,,,
Nottinghamshire County Council,1111/1001,Children and Young People,CYP,Transport Related,CDA,09/10/2015,9-14522,1120,Abacus Cars,,,,,,,
Nottinghamshire County Council,1111/1001,Children and Young People,CYP,Transport Related,CDA,14/10/2015,9-14840,264.27,Southside Cars,,,,,,,
Nottinghamshire County Council,1111/1001,Children and Young People,CYP,Transport Related,CDA,14/10/2015,9-14842,208.08,Central Cars Nottm Ltd,,,,,,,
Nottinghamshire County Council,1111/1001,Children and Young People,CYP,Transport Related,CDA,14/10/2015,9-14861,2622,Ng11 Cars,,,,,,,
Nottinghamshire County Council,1111/1001,Children and Young People,CYP,Transport Related,CDA,14/10/2015,9-14872,885,D G Private Hire Ltd,,,,,,,
Nottinghamshire County Council,1111/1001,Children and Young People,CYP,Transport Related,CDA,14/10/2015,9-14873,979.2,D G Private Hire Ltd,,,,,,,
Nottinghamshire County Council,1111/1001,Children and Young People,CYP,Transport Related,CDA,14/10/2015,9-14934,844.72,Abacus Cars,,,,,,,
Nottinghamshire County Council,1111/1001,Children and Young People,CYP,Transport Related,CDA,16/10/2015,9-15095,849.51,SJW (Muskham) Ltd T/A Z Cars,,,,,,,
Nottinghamshire County Council,1111/1001,Children and Young People,CYP,Transport Related,CDA,16/10/2015,9-15123,937.5,Fozcabs Newark Taxis,,,,,,,
Nottinghamshire County Council,1111/1001,Children and Young People,CYP,Transport Related,CDA,16/10/2015,9-15149,1235,Eurocab 2000 Ltd,,,,,,,
Nottinghamshire County Council,1111/1001,Children and Young People,CYP,Transport Related,CDA,16/10/2015,9-15150,1900,Eurocab 2000 Ltd,,,,,,,
Nottinghamshire County Council,1111/1001,Children and Young People,CYP,Transport Related,CDA,16/10/2015,9-15151,2580,Eurocab 2000 Ltd,,,,,,,
Nottinghamshire County Council,1111/1001,Children and Young People,CYP,Transport Related,CDA,19/10/2015,9-15236,2670.6,Sprays Transport Ltd,,,,,,,
Nottinghamshire County Council,1111/1001,Children and Young People,CYP,Transport Related,CDA,20/10/2015,9-15390,8000,Marshalls Of Sutton On Trent Ltd,,,,,,,
Nottinghamshire County Council,1111/1001,Children and Young People,CYP,Transport Related,CDA,20/10/2015,9-15394,6046.56,Paul S Winson Coaches,,,,,,,
Nottinghamshire County Council,1111/1001,Children and Young People,CYP,Transport Related,CDA,21/10/2015,9-15550,771.43,D G Private Hire Ltd,,,,,,,
Nottinghamshire County Council,1111/1001,Children and Young People,CYP,Transport Related,CDA,27/10/2015,9-16041,1162.8,Galaxy Cabs,,,,,,,
Nottinghamshire County Council,1111/1001,Children and Young People,CYP,Transport Related,CDA,27/10/2015,9-16063,1709.4,AOT Coaches,,,,,,,
Nottinghamshire County Council,1111/1001,Children and Young People,CYP,Transport Related,CDA,27/10/2015,9-16064,3608,AOT Coaches,,,,,,,
Nottinghamshire County Council,1111/1001,Children and Young People,CYP,Transport Related,CDA,27/10/2015,9-16065,1980,AOT Coaches,,,,,,,
Nottinghamshire County Council,1111/1001,Children and Young People,CYP,Supplies & Services,DAA,06/10/2015,9-10102,57986.31,Ernehale Junior School Academy,,,,,,,
Nottinghamshire County Council,1111/1001,Children and Young People,CYP,Supplies & Services,DAA,19/10/2015,9-13343,2048.77,Sunnyside Spencer Academy,,,,,,,
Nottinghamshire County Council,1111/1001,Children and Young People,CYP,Supplies & Services,DBA,01/10/2015,9-10143,261.94,Hallam Country Fresh Foods Ltd,,,,,,,
Nottinghamshire County Council,1111/1001,Children and Young People,CYP,Supplies & Services,DBA,07/10/2015,9-13842,199.74,Hallam Country Fresh Foods Ltd,,,,,,,
Nottinghamshire County Council,1111/1001,Children and Young People,CYP,Supplies & Services,DBA,08/10/2015,9-14102,221.64,Brake Bros Ltd,,,,,,,
Nottinghamshire County Council,1111/1001,Children and Young People,CYP,Supplies & Services,DBA,08/10/2015,9-14106,378.31,Brake Bros Ltd,,,,,,,
Nottinghamshire County Council,1111/1001,Children and Young People,CYP,Supplies & Services,DBA,08/10/2015,9-14111,333.95,Brake Bros Ltd,,,,,,,
Nottinghamshire County Council,1111/1001,Children and Young People,CYP,Supplies & Services,DBA,08/10/2015,9-14113,262.29,Brake Bros Ltd,,,,,,,
Nottinghamshire County Council,1111/1001,Children and Young People,CYP,Supplies & Services,DBA,13/10/2015,9-14806,160.19,Hallam Country Fresh Foods Ltd,,,,,,,
Nottinghamshire County Council,1111/1001,Children and Young People,CYP,Supplies & Services,DBA,14/10/2015,9-14831,165.88,Brake Bros Ltd,,,,,,,
Nottinghamshire County Council,1111/1001,Children and Young People,CYP,Supplies & Services,DBA,14/10/2015,9-14834,597.56,Brake Bros Ltd,,,,,,,
Nottinghamshire County Council,1111/1001,Children and Young People,CYP,Supplies & Services,DBA,14/10/2015,9-14917,575.16,Brake Bros Ltd,,,,,,,
Nottinghamshire County Council,1111/1001,Children and Young People,CYP,Supplies & Services,DBA,19/10/2015,9-15173,84.7,M Maloney Country Butchers & B Ltd,,,,,,,
Nottinghamshire County Council,1111/1001,Children and Young People,CYP,Supplies & Services,DBA,19/10/2015,9-15177,98,M Maloney Country Butchers & B Ltd,,,,,,,
Nottinghamshire County Council,1111/1001,Children and Young People,CYP,Supplies & Services,DBA,19/10/2015,9-15181,74.68,M Maloney Country Butchers & B Ltd,,,,,,,
Nottinghamshire County Council,1111/1001,Children and Young People,CYP,Supplies & Services,DBA,19/10/2015,9-15185,89.99,M Maloney Country Butchers & B Ltd,,,,,,,
Nottinghamshire County Council,1111/1001,Children and Young People,CYP,Supplies & Services,DBA,20/10/2015,9-15270,264.21,Hallam Country Fresh Foods Ltd,,,,,,,
Nottinghamshire County Council,1111/1001,Children and Young People,CYP,Supplies & Services,DBA,23/10/2015,9-15682,535.58,Brake Bros Ltd,,,,,,,
Nottinghamshire County Council,1111/1001,Children and Young People,CYP,Supplies & Services,DBA,23/10/2015,9-15685,78.04,M Maloney Country Butchers & B Ltd,,,,,,,
Nottinghamshire County Council,1111/1001,Children and Young People,CYP,Supplies & Services,DBA,26/10/2015,9-15734,658.41,Brake Bros Ltd,,,,,,,
Nottinghamshire County Council,1111/1001,Children and Young People,CYP,Supplies & Services,DBA,26/10/2015,9-15739,822.81,Brake Bros Ltd,,,,,,,
Nottinghamshire County Council,1111/1001,Children and Young People,CYP,Supplies & Services,DBA,26/10/2015,9-15741,88.13,Brake Bros Ltd,,,,,,,
Nottinghamshire County Council,1111/1001,Children and Young People,CYP,Supplies & Services,DBA,28/10/2015,9-16084,555.37,Brake Bros Ltd,,,,,,,
Nottinghamshire County Council,1111/1001,Children and Young People,CYP,Supplies & Services,DBA,28/10/2015,9-16088,449.92,Brake Bros Ltd,,,,,,,
Nottinghamshire County Council,1111/1001,Children and Young People,CYP,Supplies & Services,DBA,28/10/2015,9-16091,344.64,Brake Bros Ltd,,,,,,,
Nottinghamshire County Council,1111/1001,Children and Young People,CYP,Supplies & Services,DEA,30/10/2015,9-16172,500,Cartwright King Solicitors,,,,,,,
Nottinghamshire County Council,1111/1001,Children and Young People,CYP,Supplies & Services,DFA,08/10/2015,9-13921,560.26,Lantec Services Ltd,,,,,,,
Nottinghamshire County Council,1111/1001,Children and Young People,CYP,Supplies & Services,DFA,08/10/2015,9-14092,534.6,Lantec Services Ltd,,,,,,,
Nottinghamshire County Council,1111/1001,Children and Young People,CYP,Supplies & Services,DFA,23/10/2015,9-15676,576.63,Lantec Services Ltd,,,,,,,
Nottinghamshire County Council,1111/1001,Children and Young People,CYP,Supplies & Services,DHA,12/10/2015,9-14601,2500,Bircotes Pre-School,,,,,,,
Nottinghamshire County Council,1111/1001,Children and Young People,CYP,Supplies & Services,DHA,30/10/2015,9-15469,10480,Bronbury Services Ltd,,,,,,,
Nottinghamshire County Council,1111/1001,Children and Young People,CYP,Supplies & Services,DKA,06/10/2015,9-13344,35532,Ollerton Primary School,,,,,,,
Nottinghamshire County Council,1111/1001,Children and Young People,CYP,Supplies & Services,DKA,09/10/2015,9-14498,756,200 Cars Ltd,,,,,,,
Nottinghamshire County Council,1111/1001,Children and Young People,CYP,Supplies & Services,DKA,22/10/2015,9-15605,9084,Wynndale Primary School,,,,,,,
Nottinghamshire County Council,1111/1001,Children and Young People,CYP,Supplies & Services,DKA,22/10/2015,9-15606,16310,Ernehale Infants School,,,,,,,
Nottinghamshire County Council,1111/1001,Children and Young People,CYP,Supplies & Services,DKA,23/10/2015,9-15654,31958.17,Forest Town Garibaldi Comp School,,,,,,,
Nottinghamshire County Council,1111/1001,Children and Young People,CYP,Third Party Payments,EBA,23/10/2015,9-15658,935,Edgewood Primary School,,,,,,,
Nottinghamshire County Council,1111/1001,Children and Young People,CYP,Third Party Payments,EBA,28/10/2015,9-15690,2491.23,Transform Schools,,,,,,,
Nottinghamshire County Council,1111/1001,Children and Young People,CYP,Third Party Payments,EBA,28/10/2015,9-15691,17598.24,Transform Schools,,,,,,,
Nottinghamshire County Council,1111/1001,Children and Young People,CYP,Third Party Payments,EBA,28/10/2015,9-15692,67737.26,Transform Schools,,,,,,,
Nottinghamshire County Council,1111/1001,Children and Young People,CYP,Third Party Payments,EBA,28/10/2015,9-15693,2424.97,Transform Schools,,,,,,,
Nottinghamshire County Council,1111/1001,Children and Young People,CYP,Third Party Payments,EBA,28/10/2015,9-15694,24869.54,Transform Schools,,,,,,,
Nottinghamshire County Council,1111/1001,Children and Young People,CYP,Third Party Payments,EBA,28/10/2015,9-15695,45112.3,Transform Schools,,,,,,,
Nottinghamshire County Council,1111/1001,Children and Young People,CYP,Third Party Payments,EBA,28/10/2015,9-15704,1484394.86,Transform Schools,,,,,,,
Nottinghamshire County Council,1111/1001,Children and Young People,CYP,Third Party Payments,EBA,28/10/2015,9-15706,239331.62,East Leake Schools Ltd,,,,,,,
Nottinghamshire County Council,1111/1001,Children and Young People,CYP,Third Party Payments,EBA,28/10/2015,9-15744,11063.46,East Leake Schools Ltd,,,,,,,
Nottinghamshire County Council,1111/1001,Children and Young People,CYP,Third Party Payments,EDA,02/10/2015,9-10177,68067,Redhill Academy,,,,,,,
Nottinghamshire County Council,1111/1001,Children and Young People,CYP,Third Party Payments,EDA,02/10/2015,9-10178,23059,Redhill Academy,,,,,,,
Nottinghamshire County Council,1111/1001,Children and Young People,CYP,Third Party Payments,EDA,02/10/2015,9-10206,5000,The Beech Academy,,,,,,,
Nottinghamshire County Council,1111/1001,Children and Young People,CYP,Third Party Payments,EDA,02/10/2015,9-10207,51403,The Beech Academy,,,,,,,
Nottinghamshire County Council,1111/1001,Children and Young People,CYP,Third Party Payments,EDA,02/10/2015,9-10208,1666,Foxwood Academy,,,,,,,
Nottinghamshire County Council,1111/1001,Children and Young People,CYP,Third Party Payments,EDA,02/10/2015,9-10209,81710,Foxwood Academy,,,,,,,
Nottinghamshire County Council,1111/1001,Children and Young People,CYP,Third Party Payments,EDA,02/10/2015,9-10219,52076,Redhill Academy,,,,,,,
Nottinghamshire County Council,1111/1001,Children and Young People,CYP,Third Party Payments,EDA,05/10/2015,9-10243,38304,Redhill Academy,,,,,,,
Nottinghamshire County Council,1111/1001,Children and Young People,CYP,Third Party Payments,EDA,05/10/2015,9-10244,70428,Redhill Academy,,,,,,,
Nottinghamshire County Council,1111/1001,Children and Young People,CYP,Third Party Payments,EDA,08/10/2015,9-14068,12907,Sacred Heart Catholic Voluntary Aca,,,,,,,
Nottinghamshire County Council,1111/1001,Children and Young People,CYP,Third Party Payments,EDA,08/10/2015,9-14069,10950,Holy Cross Catholic Voluntary Acade,,,,,,,
Nottinghamshire County Council,1111/1001,Children and Young People,CYP,Third Party Payments,EDA,13/10/2015,9-14711,9043,St Joseph's RC Primary Academy,,,,,,,
Nottinghamshire County Council,1111/1001,Children and Young People,CYP,Third Party Payments,EDA,14/10/2015,9-14922,2093,Sacred Heart Catholic Voluntary Aca,,,,,,,
Nottinghamshire County Council,1111/1001,Children and Young People,CYP,Third Party Payments,EDA,14/10/2015,9-14923,9000,Holy Cross Catholic Voluntary Acade,,,,,,,
Nottinghamshire County Council,1111/1001,Children and Young People,CYP,Third Party Payments,EDA,14/10/2015,9-14924,61570,The Elizabethan Academy,,,,,,,
Nottinghamshire County Council,1111/1001,Children and Young People,CYP,Third Party Payments,EFA,08/10/2015,9-13922,80000,St Giles School,,,,,,,
Nottinghamshire County Council,1111/1001,Children and Young People,CYP,Third Party Payments,EGA,01/10/2015,9-10054,12636.12,Dragonflies Day Nursery ltd,,,,,,,
Nottinghamshire County Council,1111/1001,Children and Young People,CYP,Third Party Payments,EGA,02/10/2015,9-10172,916.2,F S Buczko (Childminder),,,,,,,
Nottinghamshire County Council,1111/1001,Children and Young People,CYP,Third Party Payments,EGA,02/10/2015,9-10173,11462.57,Alphabet House Day Nursery,,,,,,,
Nottinghamshire County Council,1111/1001,Children and Young People,CYP,Third Party Payments,EGA,02/10/2015,9-10174,7498.76,Carousel Under 5'S Playgroup,,,,,,,
Nottinghamshire County Council,1111/1001,Children and Young People,CYP,Third Party Payments,EGA,02/10/2015,9-10175,694.79,L McGoldrick (Childminding Service),,,,,,,
Nottinghamshire County Council,1111/1001,Children and Young People,CYP,Third Party Payments,EGA,02/10/2015,9-16412,1130074.33,Nottinghamshire Healthcare Nhs Trus,,,,,,,
Nottinghamshire County Council,1111/1001,Children and Young People,CYP,Third Party Payments,EGA,07/10/2015,9-13468,651,Cherubs Childcare Centre (Mansfield,,,,,,,
Nottinghamshire County Council,1111/1001,Children and Young People,CYP,Third Party Payments,EGA,07/10/2015,9-13469,682.5,Brooklyn Day Nursery,,,,,,,
Nottinghamshire County Council,1111/1001,Children and Young People,CYP,Third Party Payments,EGA,07/10/2015,9-13470,2131.5,Alphabet House Nursery,,,,,,,
Nottinghamshire County Council,1111/1001,Children and Young People,CYP,Third Party Payments,EGA,07/10/2015,9-13471,1120,Alphabet House Day Nursery WB,,,,,,,
Nottinghamshire County Council,1111/1001,Children and Young People,CYP,Third Party Payments,EGA,07/10/2015,9-13472,1225,Alphabet House Day Nursery Worksop,,,,,,,
Nottinghamshire County Council,1111/1001,Children and Young People,CYP,Third Party Payments,EGA,07/10/2015,9-13606,1435,Wollaton Village Day Nurseries,,,,,,,
Nottinghamshire County Council,1111/1001,Children and Young People,CYP,Third Party Payments,EGA,07/10/2015,9-13607,504,Safe Haven Day Nursery,,,,,,,
Nottinghamshire County Council,1111/1001,Children and Young People,CYP,Third Party Payments,EGA,07/10/2015,9-13608,735,Serendipity's Day Nursery,,,,,,,
Nottinghamshire County Council,1111/1001,Children and Young People,CYP,Third Party Payments,EGA,07/10/2015,9-13610,1064,JPAC Ltd,,,,,,,
Nottinghamshire County Council,1111/1001,Children and Young People,CYP,Third Party Payments,EGA,07/10/2015,9-13614,535.5,Ollerton Out Of School Care,,,,,,,
Nottinghamshire County Council,1111/1001,Children and Young People,CYP,Third Party Payments,EGA,08/10/2015,9-13918,916.2,[redacted],,,,,,,
Nottinghamshire County Council,1111/1001,Children and Young People,CYP,Third Party Payments,EGA,14/10/2015,9-14890,9699.06,PSLA Newstead Childcare,,,,,,,
Nottinghamshire County Council,1111/1001,Children and Young People,CYP,Third Party Payments,EGA,14/10/2015,9-14891,748.23,Yew Tree Childcare,,,,,,,
Nottinghamshire County Council,1111/1001,Children and Young People,CYP,Third Party Payments,EGA,14/10/2015,9-14892,712.53,[redacted],,,,,,,
Nottinghamshire County Council,1111/1001,Children and Young People,CYP,Third Party Payments,EGA,16/10/2015,9-15079,6428.6,Elston Pre-school Playgroup Newark,,,,,,,
Nottinghamshire County Council,1111/1001,Children and Young People,CYP,Third Party Payments,EGA,16/10/2015,9-16435,1960,Compass Fostering Central Ltd,,,,,,,
Nottinghamshire County Council,1111/1001,Children and Young People,CYP,Third Party Payments,EGA,21/10/2015,9-15488,1763.59,Yew Tree Childcare,,,,,,,
Nottinghamshire County Council,1111/1001,Children and Young People,CYP,Third Party Payments,EGA,21/10/2015,9-15489,748.23,L Holloway Childminding Service,,,,,,,
Nottinghamshire County Council,1111/1001,Children and Young People,CYP,Third Party Payments,EGA,23/10/2015,9-16436,4608,Newark Emmaus Trust,,,,,,,
Nottinghamshire County Council,1111/1001,Children and Young People,CYP,Third Party Payments,EGA,26/10/2015,9-15714,560,Serendipity's Day Nursery,,,,,,,
Nottinghamshire County Council,1111/1001,Children and Young People,CYP,Third Party Payments,EGA,26/10/2015,9-15715,588,Westbourne House Nursery School,,,,,,,
Nottinghamshire County Council,1111/1001,Children and Young People,CYP,Third Party Payments,EGA,26/10/2015,9-15716,1064,Wollaton Village Day Nurseries,,,,,,,
Nottinghamshire County Council,1111/1001,Children and Young People,CYP,Third Party Payments,EGA,26/10/2015,9-15717,882,Cherubs Childrens Centre Wynndale,,,,,,,
Nottinghamshire County Council,1111/1001,Children and Young People,CYP,Third Party Payments,EGA,26/10/2015,9-15718,504,Good Foundations Day Nursery,,,,,,,
Nottinghamshire County Council,1111/1001,Children and Young People,CYP,Third Party Payments,EGA,26/10/2015,9-15719,1344,Alphabet House Day Nursery Worksop,,,,,,,
Nottinghamshire County Council,1111/1001,Children and Young People,CYP,Third Party Payments,EGA,27/10/2015,9-16030,14187.26,Good Shepherd Pre-School,,,,,,,
Nottinghamshire County Council,1111/1001,Children and Young People,CYP,Third Party Payments,EGA,27/10/2015,9-16031,4553.51,Luan's Little People,,,,,,,
Nottinghamshire County Council,1111/1001,Children and Young People,CYP,Third Party Payments,EGA,27/10/2015,9-16032,12911.02,Little Kites Playgroup,,,,,,,
Nottinghamshire County Council,1111/1001,Children and Young People,CYP,Third Party Payments,EGA,27/10/2015,9-16033,6465.55,North Muskham Playgroup,,,,,,,
Nottinghamshire County Council,1111/1001,Children and Young People,CYP,Third Party Payments,EGA,27/10/2015,9-16034,748.23,[redacted],,,,,,,
Nottinghamshire County Council,1111/1001,Children and Young People,CYP,Third Party Payments,EGA,28/10/2015,9-16175,11760,Dagfa House School,,,,,,,
Nottinghamshire County Council,1111/1001,Children and Young People,CYP,Support Services,HAA,02/10/2015,9-10071,2178.75,Trent Motor Traction Company Ltd,,,,,,,
Nottinghamshire County Council,1111/1001,Children and Young People,CYP,Support Services,HAA,07/10/2015,9-13496,1615,All Wayz Travel,,,,,,,
Nottinghamshire County Council,1111/1001,Children and Young People,CYP,Support Services,HAA,07/10/2015,9-13497,1330,All Wayz Travel,,,,,,,
Nottinghamshire County Council,1111/1001,Children and Young People,CYP,Support Services,HAA,07/10/2015,9-13500,1600,Wrights Coaches,,,,,,,
Nottinghamshire County Council,1111/1001,Children and Young People,CYP,Support Services,HAA,07/10/2015,9-13504,1428,Fozcabs Newark Taxis,,,,,,,
Nottinghamshire County Council,1111/1001,Children and Young People,CYP,Support Services,HAA,07/10/2015,9-13514,1560.6,F & J Marriott T/A Unity Coaches,,,,,,,
Nottinghamshire County Council,1111/1001,Children and Young People,CYP,Support Services,HAA,07/10/2015,9-13515,2451,F & J Marriott T/A Unity Coaches,,,,,,,
Nottinghamshire County Council,1111/1001,Children and Young People,CYP,Support Services,HAA,07/10/2015,9-13516,1699,F & J Marriott T/A Unity Coaches,,,,,,,
Nottinghamshire County Council,1111/1001,Children and Young People,CYP,Support Services,HAA,07/10/2015,9-13530,2770.5,Gem Mini Travel Ltd,,,,,,,
Nottinghamshire County Council,1111/1001,Children and Young People,CYP,Support Services,HAA,07/10/2015,9-13531,2051,Gem Mini Travel Ltd,,,,,,,
Nottinghamshire County Council,1111/1001,Children and Young People,CYP,Support Services,HAA,07/10/2015,9-13532,2993.5,Gem Mini Travel Ltd,,,,,,,
Nottinghamshire County Council,1111/1001,Children and Young People,CYP,Support Services,HAA,07/10/2015,9-13533,3269.4,Gem Mini Travel Ltd,,,,,,,
Nottinghamshire County Council,1111/1001,Children and Young People,CYP,Support Services,HAA,07/10/2015,9-13537,1200,K & R Cars,,,,,,,
Nottinghamshire County Council,1111/1001,Children and Young People,CYP,Support Services,HAA,07/10/2015,9-13538,1800,Nottingham Minibuses & Coaches,,,,,,,
Nottinghamshire County Council,1111/1001,Children and Young People,CYP,Support Services,HAA,07/10/2015,9-13539,3000,Nottingham Minibuses & Coaches,,,,,,,
Nottinghamshire County Council,1111/1001,Children and Young People,CYP,Support Services,HAA,07/10/2015,9-13541,5285,Stagecoach Services Ltd,,,,,,,
Nottinghamshire County Council,1111/1001,Children and Young People,CYP,Support Services,HAA,07/10/2015,9-13543,2682.2,Tiger European Uk Ltd,,,,,,,
Nottinghamshire County Council,1111/1001,Children and Young People,CYP,Support Services,HAA,07/10/2015,9-13544,2721.5,Tiger European Uk Ltd,,,,,,,
Nottinghamshire County Council,1111/1001,Children and Young People,CYP,Support Services,HAA,07/10/2015,9-13545,2547,Tiger European Uk Ltd,,,,,,,
Nottinghamshire County Council,1111/1001,Children and Young People,CYP,Support Services,HAA,07/10/2015,9-13546,2877.5,Tiger European Uk Ltd,,,,,,,
Nottinghamshire County Council,1111/1001,Children and Young People,CYP,Support Services,HAA,07/10/2015,9-13547,2650,Tiger European Uk Ltd,,,,,,,
Nottinghamshire County Council,1111/1001,Children and Young People,CYP,Support Services,HAA,07/10/2015,9-13548,2792.5,Tiger European Uk Ltd,,,,,,,
Nottinghamshire County Council,1111/1001,Children and Young People,CYP,Support Services,HAA,07/10/2015,9-13549,3003,Tiger European Uk Ltd,,,,,,,
Nottinghamshire County Council,1111/1001,Children and Young People,CYP,Support Services,HAA,07/10/2015,9-13550,1100,Tiger European Uk Ltd,,,,,,,
Nottinghamshire County Council,1111/1001,Children and Young People,CYP,Support Services,HAA,07/10/2015,9-13551,3127.5,Tiger European Uk Ltd,,,,,,,
Nottinghamshire County Council,1111/1001,Children and Young People,CYP,Support Services,HAA,07/10/2015,9-13552,2990.1,Tiger European Uk Ltd,,,,,,,
Nottinghamshire County Council,1111/1001,Children and Young People,CYP,Support Services,HAA,07/10/2015,9-13553,3700,Tiger European Uk Ltd,,,,,,,
Nottinghamshire County Council,1111/1001,Children and Young People,CYP,Support Services,HAA,07/10/2015,9-13554,12450.7,Travel Wright Ltd,,,,,,,
Nottinghamshire County Council,1111/1001,Children and Young People,CYP,Support Services,HAA,07/10/2015,9-13556,3548.3,Travel Wright Ltd,,,,,,,
Nottinghamshire County Council,1111/1001,Children and Young People,CYP,Support Services,HAA,07/10/2015,9-13558,3757.95,Travel Wright Ltd,,,,,,,
Nottinghamshire County Council,1111/1001,Children and Young People,CYP,Support Services,HAA,07/10/2015,9-13559,4753.12,Travel Wright Ltd,,,,,,,
Nottinghamshire County Council,1111/1001,Children and Young People,CYP,Support Services,HAA,07/10/2015,9-13561,120,Travel Wright Ltd,,,,,,,
Nottinghamshire County Council,1111/1001,Children and Young People,CYP,Support Services,HAA,07/10/2015,9-13563,2563.01,Travel Wright Ltd,,,,,,,
Nottinghamshire County Council,1111/1001,Children and Young People,CYP,Support Services,HAA,07/10/2015,9-13565,3199,Travel Wright Ltd,,,,,,,
Nottinghamshire County Council,1111/1001,Children and Young People,CYP,Support Services,HAA,07/10/2015,9-13566,1931.6,Travel Wright Ltd,,,,,,,
Nottinghamshire County Council,1111/1001,Children and Young People,CYP,Support Services,HAA,07/10/2015,9-13569,1960,Wilfreda Beehive,,,,,,,
Nottinghamshire County Council,1111/1001,Children and Young People,CYP,Support Services,HAA,07/10/2015,9-13572,7473.2,Freeway Coaches Ltd,,,,,,,
Nottinghamshire County Council,1111/1001,Children and Young People,CYP,Support Services,HAA,07/10/2015,9-13573,2917.1,Freeway Coaches Ltd,,,,,,,
Nottinghamshire County Council,1111/1001,Children and Young People,CYP,Support Services,HAA,07/10/2015,9-13574,2600.1,Freeway Coaches Ltd,,,,,,,
Nottinghamshire County Council,1111/1001,Children and Young People,CYP,Support Services,HAA,07/10/2015,9-13575,1596.4,Freeway Coaches Ltd,,,,,,,
Nottinghamshire County Council,1111/1001,Children and Young People,CYP,Support Services,HAA,07/10/2015,9-13576,2500,Freeway Coaches Ltd,,,,,,,
Nottinghamshire County Council,1111/1001,Children and Young People,CYP,Support Services,HAA,07/10/2015,9-13578,2570,Kettlewell Retford Ltd,,,,,,,
Nottinghamshire County Council,1111/1001,Children and Young People,CYP,Support Services,HAA,07/10/2015,9-13579,2370,Kettlewell Retford Ltd,,,,,,,
Nottinghamshire County Council,1111/1001,Children and Young People,CYP,Support Services,HAA,07/10/2015,9-13580,2450,Kettlewell Retford Ltd,,,,,,,
Nottinghamshire County Council,1111/1001,Children and Young People,CYP,Support Services,HAA,07/10/2015,9-13581,3000,Kettlewell Retford Ltd,,,,,,,
Nottinghamshire County Council,1111/1001,Children and Young People,CYP,Support Services,HAA,07/10/2015,9-13582,2190,Kettlewell Retford Ltd,,,,,,,
Nottinghamshire County Council,1111/1001,Children and Young People,CYP,Support Services,HAA,07/10/2015,9-13583,3190,Kettlewell Retford Ltd,,,,,,,
Nottinghamshire County Council,1111/1001,Children and Young People,CYP,Support Services,HAA,07/10/2015,9-13584,2570,Kettlewell Retford Ltd,,,,,,,
Nottinghamshire County Council,1111/1001,Children and Young People,CYP,Support Services,HAA,07/10/2015,9-13585,3447.6,C W Moxon Ltd,,,,,,,
Nottinghamshire County Council,1111/1001,Children and Young People,CYP,Support Services,HAA,07/10/2015,9-13586,6765,C W Moxon Ltd,,,,,,,
Nottinghamshire County Council,1111/1001,Children and Young People,CYP,Support Services,HAA,07/10/2015,9-13587,3334.75,C W Moxon Ltd,,,,,,,
Nottinghamshire County Council,1111/1001,Children and Young People,CYP,Support Services,HAA,07/10/2015,9-13588,2759,C W Moxon Ltd,,,,,,,
Nottinghamshire County Council,1111/1001,Children and Young People,CYP,Support Services,HAA,07/10/2015,9-13589,2247,C W Moxon Ltd,,,,,,,
Nottinghamshire County Council,1111/1001,Children and Young People,CYP,Support Services,HAA,07/10/2015,9-13591,4681.8,Isle Coaches,,,,,,,
Nottinghamshire County Council,1111/1001,Children and Young People,CYP,Support Services,HAA,07/10/2015,9-13595,1100,Broadsword Cars,,,,,,,
Nottinghamshire County Council,1111/1001,Children and Young People,CYP,Support Services,HAA,07/10/2015,9-13596,2641,Nottingham Coaches,,,,,,,
Nottinghamshire County Council,1111/1001,Children and Young People,CYP,Support Services,HAA,07/10/2015,9-13597,1847.5,Nottingham Coaches,,,,,,,
Nottinghamshire County Council,1111/1001,Children and Young People,CYP,Support Services,HAA,07/10/2015,9-13598,3051,Nottingham Coaches,,,,,,,
Nottinghamshire County Council,1111/1001,Children and Young People,CYP,Support Services,HAA,07/10/2015,9-13599,2830,Nottingham Coaches,,,,,,,
Nottinghamshire County Council,1111/1001,Children and Young People,CYP,Support Services,HAA,07/10/2015,9-13823,1600,P & P Taxis,,,,,,,
Nottinghamshire County Council,1111/1001,Children and Young People,CYP,Support Services,HAA,08/10/2015,9-13941,1224.6,Ace Of Mansfield Ltd,,,,,,,
Nottinghamshire County Council,1111/1001,Children and Young People,CYP,Support Services,HAA,08/10/2015,9-14119,5025,Glenn Ryder Coaches,,,,,,,
Nottinghamshire County Council,1111/1001,Children and Young People,CYP,Support Services,HAA,08/10/2015,9-14120,2695.98,Wrights Coaches,,,,,,,
Nottinghamshire County Council,1111/1001,Children and Young People,CYP,Support Services,HAA,08/10/2015,9-14176,3206.2,C W Moxon Ltd,,,,,,,
Nottinghamshire County Council,1111/1001,Children and Young People,CYP,Support Services,HAA,09/10/2015,9-14484,2440.6,Sharpes Of Nottingham,,,,,,,
Nottinghamshire County Council,1111/1001,Children and Young People,CYP,Support Services,HAA,09/10/2015,9-14485,2819.95,Sharpes Of Nottingham,,,,,,,
Nottinghamshire County Council,1111/1001,Children and Young People,CYP,Support Services,HAA,09/10/2015,9-14486,3064,Sharpes Of Nottingham,,,,,,,
Nottinghamshire County Council,1111/1001,Children and Young People,CYP,Support Services,HAA,09/10/2015,9-14487,2378.1,Sharpes Of Nottingham,,,,,,,
Nottinghamshire County Council,1111/1001,Children and Young People,CYP,Support Services,HAA,09/10/2015,9-14488,2674.5,Sharpes Of Nottingham,,,,,,,
Nottinghamshire County Council,1111/1001,Children and Young People,CYP,Support Services,HAA,09/10/2015,9-14489,3064,Sharpes Of Nottingham,,,,,,,
Nottinghamshire County Council,1111/1001,Children and Young People,CYP,Support Services,HAA,09/10/2015,9-14490,4954.8,Sharpes Of Nottingham,,,,,,,
Nottinghamshire County Council,1111/1001,Children and Young People,CYP,Support Services,HAA,09/10/2015,9-14491,3064,Sharpes Of Nottingham,,,,,,,
Nottinghamshire County Council,1111/1001,Children and Young People,CYP,Support Services,HAA,09/10/2015,9-14492,2958.5,Sharpes Of Nottingham,,,,,,,
Nottinghamshire County Council,1111/1001,Children and Young People,CYP,Support Services,HAA,09/10/2015,9-14493,2270,Sharpes Of Nottingham,,,,,,,
Nottinghamshire County Council,1111/1001,Children and Young People,CYP,Support Services,HAA,09/10/2015,9-14494,2969.8,Sharpes Of Nottingham,,,,,,,
Nottinghamshire County Council,1111/1001,Children and Young People,CYP,Support Services,HAA,09/10/2015,9-14500,2311.8,Arnold Acorn Travel,,,,,,,
Nottinghamshire County Council,1111/1001,Children and Young People,CYP,Support Services,HAA,09/10/2015,9-14507,700,Ng11 Cars,,,,,,,
Nottinghamshire County Council,1111/1001,Children and Young People,CYP,Support Services,HAA,09/10/2015,9-14514,1530,Sprays Transport Ltd,,,,,,,
Nottinghamshire County Council,1111/1001,Children and Young People,CYP,Support Services,HAA,09/10/2015,9-14524,3040,AOT Coaches,,,,,,,
Nottinghamshire County Council,1111/1001,Children and Young People,CYP,Support Services,HAA,09/10/2015,9-14525,3040,AOT Coaches,,,,,,,
Nottinghamshire County Council,1111/1001,Children and Young People,CYP,Support Services,HAA,09/10/2015,9-14526,2737,AOT Coaches,,,,,,,
Nottinghamshire County Council,1111/1001,Children and Young People,CYP,Support Services,HAA,09/10/2015,9-14527,2260,AOT Coaches,,,,,,,
Nottinghamshire County Council,1111/1001,Children and Young People,CYP,Support Services,HAA,09/10/2015,9-14532,1976.57,Marshalls Of Sutton On Trent Ltd,,,,,,,
Nottinghamshire County Council,1111/1001,Children and Young People,CYP,Support Services,HAA,09/10/2015,9-14541,3135,Marshalls Of Sutton On Trent Ltd,,,,,,,
Nottinghamshire County Council,1111/1001,Children and Young People,CYP,Support Services,HAA,09/10/2015,9-14543,1980,Marshalls Of Sutton On Trent Ltd,,,,,,,
Nottinghamshire County Council,1111/1001,Children and Young People,CYP,Support Services,HAA,09/10/2015,9-14544,3300,Marshalls Of Sutton On Trent Ltd,,,,,,,
Nottinghamshire County Council,1111/1001,Children and Young People,CYP,Support Services,HAA,09/10/2015,9-14545,1947.66,Marshalls Of Sutton On Trent Ltd,,,,,,,
Nottinghamshire County Council,1111/1001,Children and Young People,CYP,Support Services,HAA,09/10/2015,9-14547,1260,Meden Travel,,,,,,,
Nottinghamshire County Council,1111/1001,Children and Young People,CYP,Support Services,HAA,09/10/2015,9-14549,4552.37,Stagecoach Services Ltd,,,,,,,
Nottinghamshire County Council,1111/1001,Children and Young People,CYP,Support Services,HAA,09/10/2015,9-14555,2782.6,Stagecoach Services Ltd,,,,,,,
Nottinghamshire County Council,1111/1001,Children and Young People,CYP,Support Services,HAA,09/10/2015,9-14570,4528.2,Stagecoach Services Ltd,,,,,,,
Nottinghamshire County Council,1111/1001,Children and Young People,CYP,Support Services,HAA,09/10/2015,9-14571,2672.71,Stagecoach Services Ltd,,,,,,,
Nottinghamshire County Council,1111/1001,Children and Young People,CYP,Support Services,HAA,09/10/2015,9-14575,1592,Stagecoach Services Ltd,,,,,,,
Nottinghamshire County Council,1111/1001,Children and Young People,CYP,Support Services,HAA,09/10/2015,9-14576,1592,Stagecoach Services Ltd,,,,,,,
Nottinghamshire County Council,1111/1001,Children and Young People,CYP,Support Services,HAA,09/10/2015,9-14582,4101.93,Stagecoach Services Ltd,,,,,,,
Nottinghamshire County Council,1111/1001,Children and Young People,CYP,Support Services,HAA,09/10/2015,9-14586,5674.34,Stagecoach Services Ltd,,,,,,,
Nottinghamshire County Council,1111/1001,Children and Young People,CYP,Support Services,HAA,09/10/2015,9-14589,3308.15,Tiger European Uk Ltd,,,,,,,
Nottinghamshire County Council,1111/1001,Children and Young People,CYP,Support Services,HAA,09/10/2015,9-14590,1501,Paul S Winson Coaches,,,,,,,
Nottinghamshire County Council,1111/1001,Children and Young People,CYP,Support Services,HAA,09/10/2015,9-14593,2100,Travel Liner,,,,,,,
Nottinghamshire County Council,1111/1001,Children and Young People,CYP,Support Services,HAA,09/10/2015,9-14596,828,Eurocab 2000 Ltd,,,,,,,
Nottinghamshire County Council,1111/1001,Children and Young People,CYP,Support Services,HAA,14/10/2015,9-14847,2800,Johnson Bros Tours Ltd,,,,,,,
Nottinghamshire County Council,1111/1001,Children and Young People,CYP,Support Services,HAA,14/10/2015,9-14849,3067.95,Johnson Bros Tours Ltd,,,,,,,
Nottinghamshire County Council,1111/1001,Children and Young People,CYP,Support Services,HAA,14/10/2015,9-14850,3562.7,Johnson Bros Tours Ltd,,,,,,,
Nottinghamshire County Council,1111/1001,Children and Young People,CYP,Support Services,HAA,14/10/2015,9-14851,17000,Johnson Bros Tours Ltd,,,,,,,
Nottinghamshire County Council,1111/1001,Children and Young People,CYP,Support Services,HAA,14/10/2015,9-14852,5724.15,Johnson Bros Tours Ltd,,,,,,,
Nottinghamshire County Council,1111/1001,Children and Young People,CYP,Support Services,HAA,14/10/2015,9-14853,21758.1,Johnson Bros Tours Ltd,,,,,,,
Nottinghamshire County Council,1111/1001,Children and Young People,CYP,Support Services,HAA,14/10/2015,9-14854,13497.3,Johnson Bros Tours Ltd,,,,,,,
Nottinghamshire County Council,1111/1001,Children and Young People,CYP,Support Services,HAA,14/10/2015,9-14858,2755.5,Lowes Coaches Ltd,,,,,,,
Nottinghamshire County Council,1111/1001,Children and Young People,CYP,Support Services,HAA,14/10/2015,9-14859,2823.5,Lowes Coaches Ltd,,,,,,,
Nottinghamshire County Council,1111/1001,Children and Young People,CYP,Support Services,HAA,14/10/2015,9-14860,2527.5,Lowes Coaches Ltd,,,,,,,
Nottinghamshire County Council,1111/1001,Children and Young People,CYP,Support Services,HAA,14/10/2015,9-14874,2485.95,Jb Tours Watnall Ltd,,,,,,,
Nottinghamshire County Council,1111/1001,Children and Young People,CYP,Support Services,HAA,14/10/2015,9-14875,2488.6,Jb Tours Watnall Ltd,,,,,,,
Nottinghamshire County Council,1111/1001,Children and Young People,CYP,Support Services,HAA,14/10/2015,9-14876,2282.58,Jb Tours Watnall Ltd,,,,,,,
Nottinghamshire County Council,1111/1001,Children and Young People,CYP,Support Services,HAA,14/10/2015,9-14877,2363.2,Silverdale Tours Nottm Ltd,,,,,,,
Nottinghamshire County Council,1111/1001,Children and Young People,CYP,Support Services,HAA,14/10/2015,9-14878,3240.2,Silverdale Tours Nottm Ltd,,,,,,,
Nottinghamshire County Council,1111/1001,Children and Young People,CYP,Support Services,HAA,14/10/2015,9-14879,2714.8,Silverdale Tours Nottm Ltd,,,,,,,
Nottinghamshire County Council,1111/1001,Children and Young People,CYP,Support Services,HAA,14/10/2015,9-14880,2849.7,Silverdale Tours Nottm Ltd,,,,,,,
Nottinghamshire County Council,1111/1001,Children and Young People,CYP,Support Services,HAA,14/10/2015,9-14881,2645.8,Silverdale Tours Nottm Ltd,,,,,,,
Nottinghamshire County Council,1111/1001,Children and Young People,CYP,Support Services,HAA,14/10/2015,9-14882,2780,Silverdale Tours Nottm Ltd,,,,,,,
Nottinghamshire County Council,1111/1001,Children and Young People,CYP,Support Services,HAA,14/10/2015,9-14883,2651.5,Silverdale Tours Nottm Ltd,,,,,,,
Nottinghamshire County Council,1111/1001,Children and Young People,CYP,Support Services,HAA,14/10/2015,9-14884,2999,Silverdale Tours Nottm Ltd,,,,,,,
Nottinghamshire County Council,1111/1001,Children and Young People,CYP,Support Services,HAA,14/10/2015,9-14885,2201,Silverdale Tours Nottm Ltd,,,,,,,
Nottinghamshire County Council,1111/1001,Children and Young People,CYP,Support Services,HAA,14/10/2015,9-14886,3520,Tiger European Uk Ltd,,,,,,,
Nottinghamshire County Council,1111/1001,Children and Young People,CYP,Support Services,HAA,14/10/2015,9-14927,1697,Sharpes Of Nottingham,,,,,,,
Nottinghamshire County Council,1111/1001,Children and Young People,CYP,Support Services,HAA,14/10/2015,9-14932,1200,Abacus Cars,,,,,,,
Nottinghamshire County Council,1111/1001,Children and Young People,CYP,Support Services,HAA,14/10/2015,9-14934,844.71,Abacus Cars,,,,,,,
Nottinghamshire County Council,1111/1001,Children and Young People,CYP,Support Services,HAA,14/10/2015,9-14937,2660,AOT Coaches,,,,,,,
Nottinghamshire County Council,1111/1001,Children and Young People,CYP,Support Services,HAA,14/10/2015,9-14942,950.55,Bassetlaw Action Centre,,,,,,,
Nottinghamshire County Council,1111/1001,Children and Young People,CYP,Support Services,HAA,14/10/2015,9-14943,1741.6,Wallis Coachways,,,,,,,
Nottinghamshire County Council,1111/1001,Children and Young People,CYP,Support Services,HAA,16/10/2015,9-15095,750.49,SJW (Muskham) Ltd T/A Z Cars,,,,,,,
Nottinghamshire County Council,1111/1001,Children and Young People,CYP,Support Services,HAA,16/10/2015,9-15136,800,D G Private Hire Ltd,,,,,,,
Nottinghamshire County Council,1111/1001,Children and Young People,CYP,Support Services,HAA,16/10/2015,9-15138,950,D G Private Hire Ltd,,,,,,,
Nottinghamshire County Council,1111/1001,Children and Young People,CYP,Support Services,HAA,16/10/2015,9-15144,2376,Bassetlaw Action Centre,,,,,,,
Nottinghamshire County Council,1111/1001,Children and Young People,CYP,Support Services,HAA,27/10/2015,9-16068,1076.45,Cotswold CVS Trading Ltd,,,,,,,
Nottinghamshire County Council,1111/1001,Adult Social Care and Health,ASCH,Premises Related,BAA,07/10/2015,9-13467,604,Sues Maintenance Services Ltd,,,,,,,
Nottinghamshire County Council,1111/1001,Adult Social Care and Health,ASCH,Premises Related,BAA,12/10/2015,9-14610,650,Cw Plumbing Heating & Gas Services,,,,,,,
Nottinghamshire County Council,1111/1001,Adult Social Care and Health,ASCH,Premises Related,BAA,15/10/2015,9-14992,524,Elf Property Care,,,,,,,
Nottinghamshire County Council,1111/1001,Adult Social Care and Health,ASCH,Premises Related,BAA,15/10/2015,9-14993,508.5,Handyman Plus,,,,,,,
Nottinghamshire County Council,1111/1001,Adult Social Care and Health,ASCH,Premises Related,BAA,16/10/2015,9-15005,544,Groundwork Creswell Ashf & Mansf,,,,,,,
Nottinghamshire County Council,1111/1001,Adult Social Care and Health,ASCH,Premises Related,BAA,29/10/2015,9-16368,643,Handyman Plus,,,,,,,
Nottinghamshire County Council,1111/1001,Adult Social Care and Health,ASCH,Premises Related,BFA,21/10/2015,9-15547,1857.31,Anglian Water,,,,,,,
Nottinghamshire County Council,1111/1001,Adult Social Care and Health,ASCH,Transport Related,CBA,07/10/2015,9-13520,3645.22,F & J Marriott T/A Unity Coaches,,,,,,,
Nottinghamshire County Council,1111/1001,Adult Social Care and Health,ASCH,Transport Related,CBA,07/10/2015,9-13522,3501.52,F & J Marriott T/A Unity Coaches,,,,,,,
Nottinghamshire County Council,1111/1001,Adult Social Care and Health,ASCH,Transport Related,CBA,07/10/2015,9-13524,3691.38,Vallances Coaches,,,,,,,
Nottinghamshire County Council,1111/1001,Adult Social Care and Health,ASCH,Transport Related,CBA,07/10/2015,9-13570,1948.15,Aj Travel,,,,,,,
Nottinghamshire County Council,1111/1001,Adult Social Care and Health,ASCH,Transport Related,CBA,07/10/2015,9-13809,2509.1,Ja Travel Ltd,,,,,,,
Nottinghamshire County Council,1111/1001,Adult Social Care and Health,ASCH,Transport Related,CBA,27/10/2015,9-16059,3263.47,BN Gibson Ltd,,,,,,,
Nottinghamshire County Council,1111/1001,Adult Social Care and Health,ASCH,Transport Related,CBA,27/10/2015,9-16066,4607.33,Cotswold CVS Trading Ltd,,,,,,,
Nottinghamshire County Council,1111/1001,Adult Social Care and Health,ASCH,Transport Related,CCA,07/10/2015,9-13824,1296,P & P Taxis,,,,,,,
Nottinghamshire County Council,1111/1001,Adult Social Care and Health,ASCH,Transport Related,CCA,08/10/2015,9-13946,141.51,Alpha Cars,,,,,,,
Nottinghamshire County Council,1111/1001,Adult Social Care and Health,ASCH,Transport Related,CCA,08/10/2015,9-14012,761.8,Arrow Specialised Transport Ltd,,,,,,,
Nottinghamshire County Council,1111/1001,Adult Social Care and Health,ASCH,Transport Related,CCA,08/10/2015,9-14018,2331.76,Arrow Specialised Transport Ltd,,,,,,,
Nottinghamshire County Council,1111/1001,Adult Social Care and Health,ASCH,Transport Related,CCA,08/10/2015,9-14034,3253.8,Bridges Transport Services,,,,,,,
Nottinghamshire County Council,1111/1001,Adult Social Care and Health,ASCH,Transport Related,CCA,08/10/2015,9-14035,734.4,Bridges Transport Services,,,,,,,
Nottinghamshire County Council,1111/1001,Adult Social Care and Health,ASCH,Transport Related,CCA,08/10/2015,9-14059,915.98,Midfield Travel,,,,,,,
Nottinghamshire County Council,1111/1001,Adult Social Care and Health,ASCH,Transport Related,CCA,08/10/2015,9-14064,676.26,Town Cars (UK) Ltd,,,,,,,
Nottinghamshire County Council,1111/1001,Adult Social Care and Health,ASCH,Transport Related,CCA,08/10/2015,9-14158,693.6,Abacus Cars,,,,,,,
Nottinghamshire County Council,1111/1001,Adult Social Care and Health,ASCH,Transport Related,CCA,09/10/2015,9-14495,631.26,All Wayz Travel,,,,,,,
Nottinghamshire County Council,1111/1001,Adult Social Care and Health,ASCH,Transport Related,CCA,14/10/2015,9-14870,506.88,D G Private Hire Ltd,,,,,,,
Nottinghamshire County Council,1111/1001,Adult Social Care and Health,ASCH,Transport Related,CCA,22/10/2015,9-15635,744.48,SJW (Muskham) Ltd T/A Z Cars,,,,,,,
Nottinghamshire County Council,1111/1001,Adult Social Care and Health,ASCH,Transport Related,CCA,22/10/2015,9-15636,577.2,SJW (Muskham) Ltd T/A Z Cars,,,,,,,
Nottinghamshire County Council,1111/1001,Adult Social Care and Health,ASCH,Transport Related,CCA,22/10/2015,9-15637,720.92,Acorn Contracts,,,,,,,
Nottinghamshire County Council,1111/1001,Adult Social Care and Health,ASCH,Transport Related,CCA,27/10/2015,9-16059,457.1,BN Gibson Ltd,,,,,,,
Nottinghamshire County Council,1111/1001,Adult Social Care and Health,ASCH,Transport Related,CDA,07/10/2015,9-13492,617.76,6 Five 2s,,,,,,,
Nottinghamshire County Council,1111/1001,Adult Social Care and Health,ASCH,Transport Related,CDA,07/10/2015,9-13508,2637.36,Hawkins Taxis & Transport,,,,,,,
Nottinghamshire County Council,1111/1001,Adult Social Care and Health,ASCH,Transport Related,CDA,07/10/2015,9-13520,391.12,F & J Marriott T/A Unity Coaches,,,,,,,
Nottinghamshire County Council,1111/1001,Adult Social Care and Health,ASCH,Transport Related,CDA,07/10/2015,9-13527,588.55,Aaeron Cars,,,,,,,
Nottinghamshire County Council,1111/1001,Adult Social Care and Health,ASCH,Transport Related,CDA,07/10/2015,9-13529,1341.54,Beechwood Taxis,,,,,,,
Nottinghamshire County Council,1111/1001,Adult Social Care and Health,ASCH,Transport Related,CDA,07/10/2015,9-13570,294.97,Aj Travel,,,,,,,
Nottinghamshire County Council,1111/1001,Adult Social Care and Health,ASCH,Transport Related,CDA,07/10/2015,9-13804,187.19,F4Control Ltd (t/a First4care),,,,,,,
Nottinghamshire County Council,1111/1001,Adult Social Care and Health,ASCH,Transport Related,CDA,07/10/2015,9-13825,1188,P & P Taxis,,,,,,,
Nottinghamshire County Council,1111/1001,Adult Social Care and Health,ASCH,Transport Related,CDA,07/10/2015,9-13826,1253,P & P Taxis,,,,,,,
Nottinghamshire County Council,1111/1001,Adult Social Care and Health,ASCH,Transport Related,CDA,08/10/2015,9-13923,2750,Taxicover Uk Ltd,,,,,,,
Nottinghamshire County Council,1111/1001,Adult Social Care and Health,ASCH,Transport Related,CDA,08/10/2015,9-13925,127.44,F4Control Ltd (t/a First4care),,,,,,,
Nottinghamshire County Council,1111/1001,Adult Social Care and Health,ASCH,Transport Related,CDA,08/10/2015,9-13929,957.01,F4Control Ltd (t/a First4care),,,,,,,
Nottinghamshire County Council,1111/1001,Adult Social Care and Health,ASCH,Transport Related,CDA,08/10/2015,9-13938,714.82,Ace Of Mansfield Ltd,,,,,,,
Nottinghamshire County Council,1111/1001,Adult Social Care and Health,ASCH,Transport Related,CDA,08/10/2015,9-13940,1320,Ace Of Mansfield Ltd,,,,,,,
Nottinghamshire County Council,1111/1001,Adult Social Care and Health,ASCH,Transport Related,CDA,08/10/2015,9-13986,2552,Arrow Specialised Transport Ltd,,,,,,,
Nottinghamshire County Council,1111/1001,Adult Social Care and Health,ASCH,Transport Related,CDA,08/10/2015,9-13987,1284.15,Arrow Specialised Transport Ltd,,,,,,,
Nottinghamshire County Council,1111/1001,Adult Social Care and Health,ASCH,Transport Related,CDA,08/10/2015,9-13995,338.7,Arrow Specialised Transport Ltd,,,,,,,
Nottinghamshire County Council,1111/1001,Adult Social Care and Health,ASCH,Transport Related,CDA,08/10/2015,9-13997,494.4,Arrow Specialised Transport Ltd,,,,,,,
Nottinghamshire County Council,1111/1001,Adult Social Care and Health,ASCH,Transport Related,CDA,08/10/2015,9-14004,3124,Arrow Specialised Transport Ltd,,,,,,,
Nottinghamshire County Council,1111/1001,Adult Social Care and Health,ASCH,Transport Related,CDA,08/10/2015,9-14018,1166.24,Arrow Specialised Transport Ltd,,,,,,,
Nottinghamshire County Council,1111/1001,Adult Social Care and Health,ASCH,Transport Related,CDA,08/10/2015,9-14026,979.2,Bridges Transport Services,,,,,,,
Nottinghamshire County Council,1111/1001,Adult Social Care and Health,ASCH,Transport Related,CDA,08/10/2015,9-14027,3540.9,Bridges Transport Services,,,,,,,
Nottinghamshire County Council,1111/1001,Adult Social Care and Health,ASCH,Transport Related,CDA,08/10/2015,9-14028,2187.68,Bridges Transport Services,,,,,,,
Nottinghamshire County Council,1111/1001,Adult Social Care and Health,ASCH,Transport Related,CDA,08/10/2015,9-14029,550.8,Bridges Transport Services,,,,,,,
Nottinghamshire County Council,1111/1001,Adult Social Care and Health,ASCH,Transport Related,CDA,08/10/2015,9-14030,918,Bridges Transport Services,,,,,,,
Nottinghamshire County Council,1111/1001,Adult Social Care and Health,ASCH,Transport Related,CDA,08/10/2015,9-14031,1101.6,Bridges Transport Services,,,,,,,
Nottinghamshire County Council,1111/1001,Adult Social Care and Health,ASCH,Transport Related,CDA,08/10/2015,9-14032,1285.2,Bridges Transport Services,,,,,,,
Nottinghamshire County Council,1111/1001,Adult Social Care and Health,ASCH,Transport Related,CDA,08/10/2015,9-14059,1832.26,Midfield Travel,,,,,,,
Nottinghamshire County Council,1111/1001,Adult Social Care and Health,ASCH,Transport Related,CDA,08/10/2015,9-14066,2739,Town Cars (UK) Ltd,,,,,,,
Nottinghamshire County Council,1111/1001,Adult Social Care and Health,ASCH,Transport Related,CDA,08/10/2015,9-14124,545.92,CBC Taxis Ltd,,,,,,,
Nottinghamshire County Council,1111/1001,Adult Social Care and Health,ASCH,Transport Related,CDA,08/10/2015,9-14125,806.46,CBC Taxis Ltd,,,,,,,
Nottinghamshire County Council,1111/1001,Adult Social Care and Health,ASCH,Transport Related,CDA,08/10/2015,9-14126,1015.07,CBC Taxis Ltd,,,,,,,
Nottinghamshire County Council,1111/1001,Adult Social Care and Health,ASCH,Transport Related,CDA,08/10/2015,9-14127,644.48,CBC Taxis Ltd,,,,,,,
Nottinghamshire County Council,1111/1001,Adult Social Care and Health,ASCH,Transport Related,CDA,08/10/2015,9-14137,681.48,Shelleys Taxis Ltd,,,,,,,
Nottinghamshire County Council,1111/1001,Adult Social Care and Health,ASCH,Transport Related,CDA,08/10/2015,9-14149,951.87,Abacus Cars,,,,,,,
Nottinghamshire County Council,1111/1001,Adult Social Care and Health,ASCH,Transport Related,CDA,08/10/2015,9-14150,571.2,Abacus Cars,,,,,,,
Nottinghamshire County Council,1111/1001,Adult Social Care and Health,ASCH,Transport Related,CDA,08/10/2015,9-14152,734.4,Abacus Cars,,,,,,,
Nottinghamshire County Council,1111/1001,Adult Social Care and Health,ASCH,Transport Related,CDA,08/10/2015,9-14153,566.1,Abacus Cars,,,,,,,
Nottinghamshire County Council,1111/1001,Adult Social Care and Health,ASCH,Transport Related,CDA,08/10/2015,9-14154,1092.5,Abacus Cars,,,,,,,
Nottinghamshire County Council,1111/1001,Adult Social Care and Health,ASCH,Transport Related,CDA,08/10/2015,9-14155,1570,Abacus Cars,,,,,,,
Nottinghamshire County Council,1111/1001,Adult Social Care and Health,ASCH,Transport Related,CDA,08/10/2015,9-14156,553.46,Abacus Cars,,,,,,,
Nottinghamshire County Council,1111/1001,Adult Social Care and Health,ASCH,Transport Related,CDA,08/10/2015,9-14157,2060.08,Abacus Cars,,,,,,,
Nottinghamshire County Council,1111/1001,Adult Social Care and Health,ASCH,Transport Related,CDA,08/10/2015,9-14159,1430,Abacus Cars,,,,,,,
Nottinghamshire County Council,1111/1001,Adult Social Care and Health,ASCH,Transport Related,CDA,08/10/2015,9-14161,962,Abacus Cars,,,,,,,
Nottinghamshire County Council,1111/1001,Adult Social Care and Health,ASCH,Transport Related,CDA,08/10/2015,9-14163,685.44,Abacus Cars,,,,,,,
Nottinghamshire County Council,1111/1001,Adult Social Care and Health,ASCH,Transport Related,CDA,08/10/2015,9-14164,864,Abacus Cars,,,,,,,
Nottinghamshire County Council,1111/1001,Adult Social Care and Health,ASCH,Transport Related,CDA,08/10/2015,9-14168,822.62,Abacus Cars,,,,,,,
Nottinghamshire County Council,1111/1001,Adult Social Care and Health,ASCH,Transport Related,CDA,09/10/2015,9-14501,1144,Acorn Contracts,,,,,,,
Nottinghamshire County Council,1111/1001,Adult Social Care and Health,ASCH,Transport Related,CDA,09/10/2015,9-14503,284.71,Arrow Specialised Transport Ltd,,,,,,,
Nottinghamshire County Council,1111/1001,Adult Social Care and Health,ASCH,Transport Related,CDA,09/10/2015,9-14592,1022,In Taxis,,,,,,,
Nottinghamshire County Council,1111/1001,Adult Social Care and Health,ASCH,Transport Related,CDA,12/10/2015,9-13602,114.37,Forest Cars,,,,,,,
Nottinghamshire County Council,1111/1001,Adult Social Care and Health,ASCH,Transport Related,CDA,14/10/2015,9-14868,910,D G Private Hire Ltd,,,,,,,
Nottinghamshire County Council,1111/1001,Adult Social Care and Health,ASCH,Transport Related,CDA,14/10/2015,9-14869,946,D G Private Hire Ltd,,,,,,,
Nottinghamshire County Council,1111/1001,Adult Social Care and Health,ASCH,Transport Related,CDA,14/10/2015,9-14931,946.66,Abacus Cars,,,,,,,
Nottinghamshire County Council,1111/1001,Adult Social Care and Health,ASCH,Transport Related,CDA,14/10/2015,9-14933,714,Abacus Cars,,,,,,,
Nottinghamshire County Council,1111/1001,Adult Social Care and Health,ASCH,Transport Related,CDA,14/10/2015,9-14939,1034,P & P Taxis,,,,,,,
Nottinghamshire County Council,1111/1001,Adult Social Care and Health,ASCH,Transport Related,CDA,14/10/2015,9-14944,1720,AAA Cabs,,,,,,,
Nottinghamshire County Council,1111/1001,Adult Social Care and Health,ASCH,Transport Related,CDA,14/10/2015,9-14952,397.5,Ace Cars,,,,,,,
Nottinghamshire County Council,1111/1001,Adult Social Care and Health,ASCH,Transport Related,CDA,16/10/2015,9-15135,589.96,D G Private Hire Ltd,,,,,,,
Nottinghamshire County Council,1111/1001,Adult Social Care and Health,ASCH,Transport Related,CDA,21/10/2015,9-15554,706.93,Aaeron Cars,,,,,,,
Nottinghamshire County Council,1111/1001,Adult Social Care and Health,ASCH,Transport Related,CDA,21/10/2015,9-15559,560,Ace Cars,,,,,,,
Nottinghamshire County Council,1111/1001,Adult Social Care and Health,ASCH,Transport Related,CDA,21/10/2015,9-15560,900,Ace Cars,,,,,,,
Nottinghamshire County Council,1111/1001,Adult Social Care and Health,ASCH,Transport Related,CDA,21/10/2015,9-15561,973,Ace Cars,,,,,,,
Nottinghamshire County Council,1111/1001,Adult Social Care and Health,ASCH,Transport Related,CDA,22/10/2015,9-15634,1805.32,F4Control Ltd (t/a First4care),,,,,,,
Nottinghamshire County Council,1111/1001,Adult Social Care and Health,ASCH,Transport Related,CDA,22/10/2015,9-15637,720.92,Acorn Contracts,,,,,,,
Nottinghamshire County Council,1111/1001,Adult Social Care and Health,ASCH,Transport Related,CDA,27/10/2015,9-16046,3960,BN Gibson Ltd,,,,,,,
Nottinghamshire County Council,1111/1001,Adult Social Care and Health,ASCH,Transport Related,CDA,27/10/2015,9-16059,419.83,BN Gibson Ltd,,,,,,,
Nottinghamshire County Council,1111/1001,Adult Social Care and Health,ASCH,Supplies & Services,DAA,29/10/2015,9-13352,49341.2,British Red Cross Society,,,,,,,
Nottinghamshire County Council,1111/1001,Adult Social Care and Health,ASCH,Supplies & Services,DAA,29/10/2015,9-13355,426020.41,British Red Cross Society,,,,,,,
Nottinghamshire County Council,1111/1001,Adult Social Care and Health,ASCH,Supplies & Services,DBA,01/10/2015,9-10143,1301.43,Hallam Country Fresh Foods Ltd,,,,,,,
Nottinghamshire County Council,1111/1001,Adult Social Care and Health,ASCH,Supplies & Services,DBA,07/10/2015,9-13842,1198.25,Hallam Country Fresh Foods Ltd,,,,,,,
Nottinghamshire County Council,1111/1001,Adult Social Care and Health,ASCH,Supplies & Services,DBA,08/10/2015,9-14099,557.54,Brake Bros Ltd,,,,,,,
Nottinghamshire County Council,1111/1001,Adult Social Care and Health,ASCH,Supplies & Services,DBA,08/10/2015,9-14100,1476.43,Brake Bros Ltd,,,,,,,
Nottinghamshire County Council,1111/1001,Adult Social Care and Health,ASCH,Supplies & Services,DBA,08/10/2015,9-14102,117.42,Brake Bros Ltd,,,,,,,
Nottinghamshire County Council,1111/1001,Adult Social Care and Health,ASCH,Supplies & Services,DBA,08/10/2015,9-14106,2805.14,Brake Bros Ltd,,,,,,,
Nottinghamshire County Council,1111/1001,Adult Social Care and Health,ASCH,Supplies & Services,DBA,08/10/2015,9-14113,1239.58,Brake Bros Ltd,,,,,,,
Nottinghamshire County Council,1111/1001,Adult Social Care and Health,ASCH,Supplies & Services,DBA,13/10/2015,9-14806,1089.74,Hallam Country Fresh Foods Ltd,,,,,,,
Nottinghamshire County Council,1111/1001,Adult Social Care and Health,ASCH,Supplies & Services,DBA,14/10/2015,9-14817,1996.16,Brake Bros Ltd,,,,,,,
Nottinghamshire County Council,1111/1001,Adult Social Care and Health,ASCH,Supplies & Services,DBA,14/10/2015,9-14831,2428.78,Brake Bros Ltd,,,,,,,
Nottinghamshire County Council,1111/1001,Adult Social Care and Health,ASCH,Supplies & Services,DBA,14/10/2015,9-14915,536.8,Brake Bros Ltd,,,,,,,
Nottinghamshire County Council,1111/1001,Adult Social Care and Health,ASCH,Supplies & Services,DBA,14/10/2015,9-14916,653.57,Brake Bros Ltd,,,,,,,
Nottinghamshire County Council,1111/1001,Adult Social Care and Health,ASCH,Supplies & Services,DBA,19/10/2015,9-15173,5592.32,M Maloney Country Butchers & B Ltd,,,,,,,
Nottinghamshire County Council,1111/1001,Adult Social Care and Health,ASCH,Supplies & Services,DBA,19/10/2015,9-15177,4980.64,M Maloney Country Butchers & B Ltd,,,,,,,
Nottinghamshire County Council,1111/1001,Adult Social Care and Health,ASCH,Supplies & Services,DBA,19/10/2015,9-15181,4261.67,M Maloney Country Butchers & B Ltd,,,,,,,
Nottinghamshire County Council,1111/1001,Adult Social Care and Health,ASCH,Supplies & Services,DBA,19/10/2015,9-15185,4243.32,M Maloney Country Butchers & B Ltd,,,,,,,
Nottinghamshire County Council,1111/1001,Adult Social Care and Health,ASCH,Supplies & Services,DBA,20/10/2015,9-15270,1202.59,Hallam Country Fresh Foods Ltd,,,,,,,
Nottinghamshire County Council,1111/1001,Adult Social Care and Health,ASCH,Supplies & Services,DBA,22/10/2015,9-15600,2380.34,M Maloney Country Butchers & B Ltd,,,,,,,
Nottinghamshire County Council,1111/1001,Adult Social Care and Health,ASCH,Supplies & Services,DBA,23/10/2015,9-15682,2826.64,Brake Bros Ltd,,,,,,,
Nottinghamshire County Council,1111/1001,Adult Social Care and Health,ASCH,Supplies & Services,DBA,23/10/2015,9-15685,4364.57,M Maloney Country Butchers & B Ltd,,,,,,,
Nottinghamshire County Council,1111/1001,Adult Social Care and Health,ASCH,Supplies & Services,DBA,26/10/2015,9-15734,168.29,Brake Bros Ltd,,,,,,,
Nottinghamshire County Council,1111/1001,Adult Social Care and Health,ASCH,Supplies & Services,DBA,26/10/2015,9-15738,1474.4,Brake Bros Ltd,,,,,,,
Nottinghamshire County Council,1111/1001,Adult Social Care and Health,ASCH,Supplies & Services,DBA,26/10/2015,9-15741,1141.18,Brake Bros Ltd,,,,,,,
Nottinghamshire County Council,1111/1001,Adult Social Care and Health,ASCH,Supplies & Services,DBA,28/10/2015,9-16083,645.57,Brake Bros Ltd,,,,,,,
Nottinghamshire County Council,1111/1001,Adult Social Care and Health,ASCH,Supplies & Services,DBA,28/10/2015,9-16086,1764.94,Brake Bros Ltd,,,,,,,
Nottinghamshire County Council,1111/1001,Adult Social Care and Health,ASCH,Supplies & Services,DBA,28/10/2015,9-16091,2104.67,Brake Bros Ltd,,,,,,,
Nottinghamshire County Council,1111/1001,Adult Social Care and Health,ASCH,Supplies & Services,DEA,30/10/2015,9-14095,162.63,Security Plus Ltd,,,,,,,
Nottinghamshire County Council,1111/1001,Adult Social Care and Health,ASCH,Supplies & Services,DHA,21/10/2015,9-15084,10985,Our Centre,,,,,,,
Nottinghamshire County Council,1111/1001,Adult Social Care and Health,ASCH,Supplies & Services,DHA,22/10/2015,9-15580,7903.22,The Helpful Bureau,,,,,,,
Nottinghamshire County Council,1111/1001,Adult Social Care and Health,ASCH,Supplies & Services,DHA,23/10/2015,9-15667,7903.22,Age Uk Nottm & Notts,,,,,,,
Nottinghamshire County Council,1111/1001,Adult Social Care and Health,ASCH,Supplies & Services,DHA,23/10/2015,9-15668,7903.22,Age Uk Nottm & Notts,,,,,,,
Nottinghamshire County Council,1111/1001,Adult Social Care and Health,ASCH,Supplies & Services,DHA,23/10/2015,9-15670,7903.22,Mansfield Community Voluntary Serv,,,,,,,
Nottinghamshire County Council,1111/1001,Adult Social Care and Health,ASCH,Supplies & Services,DHA,23/10/2015,9-15673,7903.22,Bassetlaw Action Centre,,,,,,,
Nottinghamshire County Council,1111/1001,Adult Social Care and Health,ASCH,Supplies & Services,DHA,23/10/2015,9-15675,7903.22,Rushcliffe Community & Vol Serv,,,,,,,
Nottinghamshire County Council,1111/1001,Adult Social Care and Health,ASCH,Supplies & Services,DHA,30/10/2015,9-15674,7903.22,Care & Comfort Community Services,,,,,,,
Nottinghamshire County Council,1111/1001,Adult Social Care and Health,ASCH,Supplies & Services,DKA,29/10/2015,9-13352,1335.5,British Red Cross Society,,,,,,,
Nottinghamshire County Council,1111/1001,Adult Social Care and Health,ASCH,Supplies & Services,DKA,29/10/2015,9-13355,26744.72,British Red Cross Society,,,,,,,
Nottinghamshire County Council,1111/1001,Adult Social Care and Health,ASCH,Third Party Payments,EBA,08/10/2015,9-14074,9320,Aspirations Care (Midlands) Ltd,,,,,,,
Nottinghamshire County Council,1111/1001,Adult Social Care and Health,ASCH,Third Party Payments,EBA,08/10/2015,9-14075,1080,[redacted],,,,,,,
Nottinghamshire County Council,1111/1001,Adult Social Care and Health,ASCH,Third Party Payments,EBA,08/10/2015,9-14076,5488,Metropolitan Housing Trust,,,,,,,
Nottinghamshire County Council,1111/1001,Adult Social Care and Health,ASCH,Third Party Payments,EBA,08/10/2015,9-14077,45315.56,Royal Society Mencap,,,,,,,
Nottinghamshire County Council,1111/1001,Adult Social Care and Health,ASCH,Third Party Payments,EBA,08/10/2015,9-14078,80764.2,Eden Supported Living Ltd,,,,,,,
Nottinghamshire County Council,1111/1001,Adult Social Care and Health,ASCH,Third Party Payments,EBA,08/10/2015,9-14079,2920,Living Ambitions Ltd,,,,,,,
Nottinghamshire County Council,1111/1001,Adult Social Care and Health,ASCH,Third Party Payments,EBA,08/10/2015,9-14080,2160,Oakdale Ozier Ltd,,,,,,,
Nottinghamshire County Council,1111/1001,Adult Social Care and Health,ASCH,Third Party Payments,EBA,08/10/2015,9-14081,273291.14,Framework Housing Association,,,,,,,
Nottinghamshire County Council,1111/1001,Adult Social Care and Health,ASCH,Third Party Payments,EBA,08/10/2015,9-14082,4638.18,Nottingham Community Housing,,,,,,,
Nottinghamshire County Council,1111/1001,Adult Social Care and Health,ASCH,Third Party Payments,EBA,08/10/2015,9-14083,5720,Fitzroy,,,,,,,
Nottinghamshire County Council,1111/1001,Adult Social Care and Health,ASCH,Third Party Payments,EBA,08/10/2015,9-14084,16087.92,Lifeways Community Care Ltd,,,,,,,
Nottinghamshire County Council,1111/1001,Adult Social Care and Health,ASCH,Third Party Payments,EBA,08/10/2015,9-14085,5720,Voyage Ltd,,,,,,,
Nottinghamshire County Council,1111/1001,Adult Social Care and Health,ASCH,Third Party Payments,EBA,08/10/2015,9-14087,14160,Choice Support,,,,,,,
Nottinghamshire County Council,1111/1001,Adult Social Care and Health,ASCH,Third Party Payments,EBA,08/10/2015,9-14088,12040,United Response,,,,,,,
Nottinghamshire County Council,1111/1001,Adult Social Care and Health,ASCH,Third Party Payments,EBA,08/10/2015,9-14089,1840,Heritage Care,,,,,,,
Nottinghamshire County Council,1111/1001,Adult Social Care and Health,ASCH,Third Party Payments,EBA,08/10/2015,9-14090,2360,Real Life Options,,,,,,,
Nottinghamshire County Council,1111/1001,Adult Social Care and Health,ASCH,Third Party Payments,EBA,08/10/2015,9-14091,6882.52,NCHA Ltd,,,,,,,
Nottinghamshire County Council,1111/1001,Adult Social Care and Health,ASCH,Third Party Payments,EBA,12/10/2015,9-14086,24911.8,Thera East Midlands,,,,,,,
Nottinghamshire County Council,1111/1001,Adult Social Care and Health,ASCH,Third Party Payments,ECA,05/10/2015,9-10078,448,Albemarle Hall Nursing Home,,,,,,,
Nottinghamshire County Council,1111/1001,Adult Social Care and Health,ASCH,Third Party Payments,ECA,05/10/2015,9-10080,448,Albemarle Hall Nursing Home,,,,,,,
Nottinghamshire County Council,1111/1001,Adult Social Care and Health,ASCH,Third Party Payments,ECA,05/10/2015,9-10082,448,Albemarle Hall Nursing Home,,,,,,,
Nottinghamshire County Council,1111/1001,Adult Social Care and Health,ASCH,Third Party Payments,ECA,05/10/2015,9-10278,688,Charnwood House,,,,,,,
Nottinghamshire County Council,1111/1001,Adult Social Care and Health,ASCH,Third Party Payments,ECA,05/10/2015,9-10280,2320,Four Seasons (Evedale) Ltd Re Sycam,,,,,,,
Nottinghamshire County Council,1111/1001,Adult Social Care and Health,ASCH,Third Party Payments,ECA,05/10/2015,9-10289,320,Countrywide Care Homes Ltd T/A Clum,,,,,,,
Nottinghamshire County Council,1111/1001,Adult Social Care and Health,ASCH,Third Party Payments,ECA,05/10/2015,9-10294,224,Aslockton Hall Nursing Home,,,,,,,
Nottinghamshire County Council,1111/1001,Adult Social Care and Health,ASCH,Third Party Payments,ECA,05/10/2015,9-10297,496,Woodthorpe Manor Nursing Home,,,,,,,
Nottinghamshire County Council,1111/1001,Adult Social Care and Health,ASCH,Third Party Payments,ECA,05/10/2015,9-10299,176,The Moorlands Nursing Home,,,,,,,
Nottinghamshire County Council,1111/1001,Adult Social Care and Health,ASCH,Third Party Payments,ECA,05/10/2015,9-10302,112,Wren Hall Nursing Home,,,,,,,
Nottinghamshire County Council,1111/1001,Adult Social Care and Health,ASCH,Third Party Payments,ECA,05/10/2015,9-10306,1888,Mansfield Manor Care Home,,,,,,,
Nottinghamshire County Council,1111/1001,Adult Social Care and Health,ASCH,Third Party Payments,ECA,05/10/2015,9-10324,80,Pathfinders Neurological Care Centr,,,,,,,
Nottinghamshire County Council,1111/1001,Adult Social Care and Health,ASCH,Third Party Payments,ECA,05/10/2015,9-10326,1104,Westvilla Nursing Home,,,,,,,
Nottinghamshire County Council,1111/1001,Adult Social Care and Health,ASCH,Third Party Payments,ECA,05/10/2015,9-10329,1212.35,Forest Manor Care Home,,,,,,,
Nottinghamshire County Council,1111/1001,Adult Social Care and Health,ASCH,Third Party Payments,ECA,05/10/2015,9-10334,704.64,Ashfield Nursing Home,,,,,,,
Nottinghamshire County Council,1111/1001,Adult Social Care and Health,ASCH,Third Party Payments,ECA,05/10/2015,9-10349,448,Bramcote Hills Care Home,,,,,,,
Nottinghamshire County Council,1111/1001,Adult Social Care and Health,ASCH,Third Party Payments,ECA,05/10/2015,9-10351,448,Bramcote Hills Care Home,,,,,,,
Nottinghamshire County Council,1111/1001,Adult Social Care and Health,ASCH,Third Party Payments,ECA,05/10/2015,9-10354,448,Bramcote Hills Care Home,,,,,,,
Nottinghamshire County Council,1111/1001,Adult Social Care and Health,ASCH,Third Party Payments,ECA,05/10/2015,9-10357,448,Bramcote Hills Care Home,,,,,,,
Nottinghamshire County Council,1111/1001,Adult Social Care and Health,ASCH,Third Party Payments,ECA,05/10/2015,9-10359,448,Bramcote Hills Care Home,,,,,,,
Nottinghamshire County Council,1111/1001,Adult Social Care and Health,ASCH,Third Party Payments,ECA,05/10/2015,9-10361,448,Bramcote Hills Care Home,,,,,,,
Nottinghamshire County Council,1111/1001,Adult Social Care and Health,ASCH,Third Party Payments,ECA,05/10/2015,9-10378,448,The Grange Nursing Home,,,,,,,
Nottinghamshire County Council,1111/1001,Adult Social Care and Health,ASCH,Third Party Payments,ECA,05/10/2015,9-10381,448,The Grange Nursing Home,,,,,,,
Nottinghamshire County Council,1111/1001,Adult Social Care and Health,ASCH,Third Party Payments,ECA,05/10/2015,9-10384,448,The Grange Nursing Home,,,,,,,
Nottinghamshire County Council,1111/1001,Adult Social Care and Health,ASCH,Third Party Payments,ECA,05/10/2015,9-10388,448,The Grange Nursing Home,,,,,,,
Nottinghamshire County Council,1111/1001,Adult Social Care and Health,ASCH,Third Party Payments,ECA,05/10/2015,9-10399,448,Belvoir Vale,,,,,,,
Nottinghamshire County Council,1111/1001,Adult Social Care and Health,ASCH,Third Party Payments,ECA,05/10/2015,9-10409,448,Belle Vue,,,,,,,
Nottinghamshire County Council,1111/1001,Adult Social Care and Health,ASCH,Third Party Payments,ECA,05/10/2015,9-10411,448,Belle Vue,,,,,,,
Nottinghamshire County Council,1111/1001,Adult Social Care and Health,ASCH,Third Party Payments,ECA,05/10/2015,9-10414,448,Belle Vue,,,,,,,
Nottinghamshire County Council,1111/1001,Adult Social Care and Health,ASCH,Third Party Payments,ECA,05/10/2015,9-10419,448,Belle Vue,,,,,,,
Nottinghamshire County Council,1111/1001,Adult Social Care and Health,ASCH,Third Party Payments,ECA,05/10/2015,9-10422,448,Belle Vue,,,,,,,
Nottinghamshire County Council,1111/1001,Adult Social Care and Health,ASCH,Third Party Payments,ECA,05/10/2015,9-10424,448,Ashcroft,,,,,,,
Nottinghamshire County Council,1111/1001,Adult Social Care and Health,ASCH,Third Party Payments,ECA,05/10/2015,9-10426,448,Ashcroft,,,,,,,
Nottinghamshire County Council,1111/1001,Adult Social Care and Health,ASCH,Third Party Payments,ECA,05/10/2015,9-10429,448,Ashcroft,,,,,,,
Nottinghamshire County Council,1111/1001,Adult Social Care and Health,ASCH,Third Party Payments,ECA,05/10/2015,9-10432,448,Ashcroft,,,,,,,
Nottinghamshire County Council,1111/1001,Adult Social Care and Health,ASCH,Third Party Payments,ECA,05/10/2015,9-10435,848,Ashcroft,,,,,,,
Nottinghamshire County Council,1111/1001,Adult Social Care and Health,ASCH,Third Party Payments,ECA,05/10/2015,9-10437,448,Ashcroft,,,,,,,
Nottinghamshire County Council,1111/1001,Adult Social Care and Health,ASCH,Third Party Payments,ECA,05/10/2015,9-10441,448,Ashcroft,,,,,,,
Nottinghamshire County Council,1111/1001,Adult Social Care and Health,ASCH,Third Party Payments,ECA,05/10/2015,9-10443,448,Ashcroft,,,,,,,
Nottinghamshire County Council,1111/1001,Adult Social Care and Health,ASCH,Third Party Payments,ECA,05/10/2015,9-10448,448,Ashcroft,,,,,,,
Nottinghamshire County Council,1111/1001,Adult Social Care and Health,ASCH,Third Party Payments,ECA,05/10/2015,9-10453,448,Ashcroft,,,,,,,
Nottinghamshire County Council,1111/1001,Adult Social Care and Health,ASCH,Third Party Payments,ECA,05/10/2015,9-10456,448,Ashcroft,,,,,,,
Nottinghamshire County Council,1111/1001,Adult Social Care and Health,ASCH,Third Party Payments,ECA,05/10/2015,9-10458,448,Ashcroft,,,,,,,
Nottinghamshire County Council,1111/1001,Adult Social Care and Health,ASCH,Third Party Payments,ECA,05/10/2015,9-10460,448,Ashcroft,,,,,,,
Nottinghamshire County Council,1111/1001,Adult Social Care and Health,ASCH,Third Party Payments,ECA,05/10/2015,9-10464,448,Kingsthorpe View Nursing Home,,,,,,,
Nottinghamshire County Council,1111/1001,Adult Social Care and Health,ASCH,Third Party Payments,ECA,05/10/2015,9-10468,448,Kingsthorpe View Nursing Home,,,,,,,
Nottinghamshire County Council,1111/1001,Adult Social Care and Health,ASCH,Third Party Payments,ECA,05/10/2015,9-10471,448,Kingsthorpe View Nursing Home,,,,,,,
Nottinghamshire County Council,1111/1001,Adult Social Care and Health,ASCH,Third Party Payments,ECA,05/10/2015,9-10473,448,Kingsthorpe View Nursing Home,,,,,,,
Nottinghamshire County Council,1111/1001,Adult Social Care and Health,ASCH,Third Party Payments,ECA,05/10/2015,9-10482,448,Beauvale Nursing Home,,,,,,,
Nottinghamshire County Council,1111/1001,Adult Social Care and Health,ASCH,Third Party Payments,ECA,05/10/2015,9-10485,448,Beauvale Nursing Home,,,,,,,
Nottinghamshire County Council,1111/1001,Adult Social Care and Health,ASCH,Third Party Payments,ECA,05/10/2015,9-10491,1504,Beauvale Nursing Home,,,,,,,
Nottinghamshire County Council,1111/1001,Adult Social Care and Health,ASCH,Third Party Payments,ECA,05/10/2015,9-10492,448,Beauvale Nursing Home,,,,,,,
Nottinghamshire County Council,1111/1001,Adult Social Care and Health,ASCH,Third Party Payments,ECA,05/10/2015,9-10496,448,Beauvale Nursing Home,,,,,,,
Nottinghamshire County Council,1111/1001,Adult Social Care and Health,ASCH,Third Party Payments,ECA,05/10/2015,9-10498,448,Beauvale Nursing Home,,,,,,,
Nottinghamshire County Council,1111/1001,Adult Social Care and Health,ASCH,Third Party Payments,ECA,05/10/2015,9-10501,448,Beauvale Nursing Home,,,,,,,
Nottinghamshire County Council,1111/1001,Adult Social Care and Health,ASCH,Third Party Payments,ECA,05/10/2015,9-10505,448,Beauvale Nursing Home,,,,,,,
Nottinghamshire County Council,1111/1001,Adult Social Care and Health,ASCH,Third Party Payments,ECA,05/10/2015,9-10508,448,Beauvale Nursing Home,,,,,,,
Nottinghamshire County Council,1111/1001,Adult Social Care and Health,ASCH,Third Party Payments,ECA,05/10/2015,9-10520,448,Avalon Nursing Home,,,,,,,
Nottinghamshire County Council,1111/1001,Adult Social Care and Health,ASCH,Third Party Payments,ECA,05/10/2015,9-10522,448,Avalon Nursing Home,,,,,,,
Nottinghamshire County Council,1111/1001,Adult Social Care and Health,ASCH,Third Party Payments,ECA,05/10/2015,9-10527,448,Avalon Nursing Home,,,,,,,
Nottinghamshire County Council,1111/1001,Adult Social Care and Health,ASCH,Third Party Payments,ECA,05/10/2015,9-10529,448,Avalon Nursing Home,,,,,,,
Nottinghamshire County Council,1111/1001,Adult Social Care and Health,ASCH,Third Party Payments,ECA,05/10/2015,9-10531,448,Avalon Nursing Home,,,,,,,
Nottinghamshire County Council,1111/1001,Adult Social Care and Health,ASCH,Third Party Payments,ECA,05/10/2015,9-10535,448,Avalon Nursing Home,,,,,,,
Nottinghamshire County Council,1111/1001,Adult Social Care and Health,ASCH,Third Party Payments,ECA,05/10/2015,9-10537,448,Avalon Nursing Home,,,,,,,
Nottinghamshire County Council,1111/1001,Adult Social Care and Health,ASCH,Third Party Payments,ECA,05/10/2015,9-10542,448,Avalon Nursing Home,,,,,,,
Nottinghamshire County Council,1111/1001,Adult Social Care and Health,ASCH,Third Party Payments,ECA,05/10/2015,9-10544,448,Avalon Nursing Home,,,,,,,
Nottinghamshire County Council,1111/1001,Adult Social Care and Health,ASCH,Third Party Payments,ECA,05/10/2015,9-10546,448,Avalon Nursing Home,,,,,,,
Nottinghamshire County Council,1111/1001,Adult Social Care and Health,ASCH,Third Party Payments,ECA,05/10/2015,9-10548,448,Avalon Nursing Home,,,,,,,
Nottinghamshire County Council,1111/1001,Adult Social Care and Health,ASCH,Third Party Payments,ECA,05/10/2015,9-10550,448,Avalon Nursing Home,,,,,,,
Nottinghamshire County Council,1111/1001,Adult Social Care and Health,ASCH,Third Party Payments,ECA,05/10/2015,9-10554,448,Silverwood Care Home,,,,,,,
Nottinghamshire County Council,1111/1001,Adult Social Care and Health,ASCH,Third Party Payments,ECA,05/10/2015,9-10557,448,Silverwood Care Home,,,,,,,
Nottinghamshire County Council,1111/1001,Adult Social Care and Health,ASCH,Third Party Payments,ECA,05/10/2015,9-10560,448,Silverwood Care Home,,,,,,,
Nottinghamshire County Council,1111/1001,Adult Social Care and Health,ASCH,Third Party Payments,ECA,05/10/2015,9-10563,448,Silverwood Care Home,,,,,,,
Nottinghamshire County Council,1111/1001,Adult Social Care and Health,ASCH,Third Party Payments,ECA,05/10/2015,9-10565,448,Silverwood Care Home,,,,,,,
Nottinghamshire County Council,1111/1001,Adult Social Care and Health,ASCH,Third Party Payments,ECA,05/10/2015,9-10568,448,Silverwood Care Home,,,,,,,
Nottinghamshire County Council,1111/1001,Adult Social Care and Health,ASCH,Third Party Payments,ECA,05/10/2015,9-10571,448,Silverwood Care Home,,,,,,,
Nottinghamshire County Council,1111/1001,Adult Social Care and Health,ASCH,Third Party Payments,ECA,05/10/2015,9-10574,448,Silverwood Care Home,,,,,,,
Nottinghamshire County Council,1111/1001,Adult Social Care and Health,ASCH,Third Party Payments,ECA,05/10/2015,9-10576,448,Silverwood Care Home,,,,,,,
Nottinghamshire County Council,1111/1001,Adult Social Care and Health,ASCH,Third Party Payments,ECA,05/10/2015,9-10579,448,Silverwood Care Home,,,,,,,
Nottinghamshire County Council,1111/1001,Adult Social Care and Health,ASCH,Third Party Payments,ECA,05/10/2015,9-10581,448,Silverwood Care Home,,,,,,,
Nottinghamshire County Council,1111/1001,Adult Social Care and Health,ASCH,Third Party Payments,ECA,05/10/2015,9-10584,448,Silverwood Care Home,,,,,,,
Nottinghamshire County Council,1111/1001,Adult Social Care and Health,ASCH,Third Party Payments,ECA,05/10/2015,9-10588,448,Silverwood Care Home,,,,,,,
Nottinghamshire County Council,1111/1001,Adult Social Care and Health,ASCH,Third Party Payments,ECA,05/10/2015,9-10590,448,Silverwood Care Home,,,,,,,
Nottinghamshire County Council,1111/1001,Adult Social Care and Health,ASCH,Third Party Payments,ECA,05/10/2015,9-10593,448,Silverwood Care Home,,,,,,,
Nottinghamshire County Council,1111/1001,Adult Social Care and Health,ASCH,Third Party Payments,ECA,05/10/2015,9-10597,448,Silverwood Care Home,,,,,,,
Nottinghamshire County Council,1111/1001,Adult Social Care and Health,ASCH,Third Party Payments,ECA,05/10/2015,9-10605,448,Spring Water Lodge,,,,,,,
Nottinghamshire County Council,1111/1001,Adult Social Care and Health,ASCH,Third Party Payments,ECA,05/10/2015,9-10614,448,Spring Water Lodge,,,,,,,
Nottinghamshire County Council,1111/1001,Adult Social Care and Health,ASCH,Third Party Payments,ECA,05/10/2015,9-10648,448,Howson Care Centre,,,,,,,
Nottinghamshire County Council,1111/1001,Adult Social Care and Health,ASCH,Third Party Payments,ECA,05/10/2015,9-10650,448,Howson Care Centre,,,,,,,
Nottinghamshire County Council,1111/1001,Adult Social Care and Health,ASCH,Third Party Payments,ECA,05/10/2015,9-10652,616.56,Howson Care Centre,,,,,,,
Nottinghamshire County Council,1111/1001,Adult Social Care and Health,ASCH,Third Party Payments,ECA,05/10/2015,9-10655,616.56,Howson Care Centre,,,,,,,
Nottinghamshire County Council,1111/1001,Adult Social Care and Health,ASCH,Third Party Payments,ECA,05/10/2015,9-10657,448,Howson Care Centre,,,,,,,
Nottinghamshire County Council,1111/1001,Adult Social Care and Health,ASCH,Third Party Payments,ECA,05/10/2015,9-10659,448,Howson Care Centre,,,,,,,
Nottinghamshire County Council,1111/1001,Adult Social Care and Health,ASCH,Third Party Payments,ECA,05/10/2015,9-10663,448,Eastlands Care Home,,,,,,,
Nottinghamshire County Council,1111/1001,Adult Social Care and Health,ASCH,Third Party Payments,ECA,05/10/2015,9-10689,448,Stoneyford Christian Nursing Home,,,,,,,
Nottinghamshire County Council,1111/1001,Adult Social Care and Health,ASCH,Third Party Payments,ECA,05/10/2015,9-10691,448,Stoneyford Christian Nursing Home,,,,,,,
Nottinghamshire County Council,1111/1001,Adult Social Care and Health,ASCH,Third Party Payments,ECA,05/10/2015,9-10695,448,Stoneyford Christian Nursing Home,,,,,,,
Nottinghamshire County Council,1111/1001,Adult Social Care and Health,ASCH,Third Party Payments,ECA,05/10/2015,9-10698,448,Stoneyford Christian Nursing Home,,,,,,,
Nottinghamshire County Council,1111/1001,Adult Social Care and Health,ASCH,Third Party Payments,ECA,05/10/2015,9-10701,448,Stoneyford Christian Nursing Home,,,,,,,
Nottinghamshire County Council,1111/1001,Adult Social Care and Health,ASCH,Third Party Payments,ECA,05/10/2015,9-10705,448,Stoneyford Christian Nursing Home,,,,,,,
Nottinghamshire County Council,1111/1001,Adult Social Care and Health,ASCH,Third Party Payments,ECA,05/10/2015,9-10707,448,Stoneyford Christian Nursing Home,,,,,,,
Nottinghamshire County Council,1111/1001,Adult Social Care and Health,ASCH,Third Party Payments,ECA,05/10/2015,9-10709,448,Stoneyford Christian Nursing Home,,,,,,,
Nottinghamshire County Council,1111/1001,Adult Social Care and Health,ASCH,Third Party Payments,ECA,05/10/2015,9-10711,448,Stoneyford Christian Nursing Home,,,,,,,
Nottinghamshire County Council,1111/1001,Adult Social Care and Health,ASCH,Third Party Payments,ECA,05/10/2015,9-10718,448,Stoneyford Christian Nursing Home,,,,,,,
Nottinghamshire County Council,1111/1001,Adult Social Care and Health,ASCH,Third Party Payments,ECA,05/10/2015,9-10720,448,Stoneyford Christian Nursing Home,,,,,,,
Nottinghamshire County Council,1111/1001,Adult Social Care and Health,ASCH,Third Party Payments,ECA,05/10/2015,9-10725,448,Stoneyford Christian Nursing Home,,,,,,,
Nottinghamshire County Council,1111/1001,Adult Social Care and Health,ASCH,Third Party Payments,ECA,05/10/2015,9-10731,448,Beeches Nursing Home,,,,,,,
Nottinghamshire County Council,1111/1001,Adult Social Care and Health,ASCH,Third Party Payments,ECA,05/10/2015,9-10736,448,Beeches Nursing Home,,,,,,,
Nottinghamshire County Council,1111/1001,Adult Social Care and Health,ASCH,Third Party Payments,ECA,05/10/2015,9-10742,448,Beeches Nursing Home,,,,,,,
Nottinghamshire County Council,1111/1001,Adult Social Care and Health,ASCH,Third Party Payments,ECA,05/10/2015,9-10745,448,Beeches Nursing Home,,,,,,,
Nottinghamshire County Council,1111/1001,Adult Social Care and Health,ASCH,Third Party Payments,ECA,05/10/2015,9-10747,448,Beeches Nursing Home,,,,,,,
Nottinghamshire County Council,1111/1001,Adult Social Care and Health,ASCH,Third Party Payments,ECA,05/10/2015,9-10751,448,Berry Hill Park,,,,,,,
Nottinghamshire County Council,1111/1001,Adult Social Care and Health,ASCH,Third Party Payments,ECA,05/10/2015,9-10754,448,Berry Hill Park,,,,,,,
Nottinghamshire County Council,1111/1001,Adult Social Care and Health,ASCH,Third Party Payments,ECA,05/10/2015,9-10756,448,Berry Hill Park,,,,,,,
Nottinghamshire County Council,1111/1001,Adult Social Care and Health,ASCH,Third Party Payments,ECA,05/10/2015,9-10758,448,Berry Hill Park,,,,,,,
Nottinghamshire County Council,1111/1001,Adult Social Care and Health,ASCH,Third Party Payments,ECA,05/10/2015,9-10760,448,Berry Hill Park,,,,,,,
Nottinghamshire County Council,1111/1001,Adult Social Care and Health,ASCH,Third Party Payments,ECA,05/10/2015,9-10763,448,Berry Hill Park,,,,,,,
Nottinghamshire County Council,1111/1001,Adult Social Care and Health,ASCH,Third Party Payments,ECA,05/10/2015,9-10765,448,Berry Hill Park,,,,,,,
Nottinghamshire County Council,1111/1001,Adult Social Care and Health,ASCH,Third Party Payments,ECA,05/10/2015,9-10768,448,Berry Hill Park,,,,,,,
Nottinghamshire County Council,1111/1001,Adult Social Care and Health,ASCH,Third Party Payments,ECA,05/10/2015,9-10770,448,Berry Hill Park,,,,,,,
Nottinghamshire County Council,1111/1001,Adult Social Care and Health,ASCH,Third Party Payments,ECA,05/10/2015,9-10772,448,Berry Hill Park,,,,,,,
Nottinghamshire County Council,1111/1001,Adult Social Care and Health,ASCH,Third Party Payments,ECA,05/10/2015,9-10774,448,Berry Hill Park,,,,,,,
Nottinghamshire County Council,1111/1001,Adult Social Care and Health,ASCH,Third Party Payments,ECA,05/10/2015,9-10776,448,Berry Hill Park,,,,,,,
Nottinghamshire County Council,1111/1001,Adult Social Care and Health,ASCH,Third Party Payments,ECA,05/10/2015,9-10780,448,Berry Hill Park,,,,,,,
Nottinghamshire County Council,1111/1001,Adult Social Care and Health,ASCH,Third Party Payments,ECA,05/10/2015,9-10782,448,Berry Hill Park,,,,,,,
Nottinghamshire County Council,1111/1001,Adult Social Care and Health,ASCH,Third Party Payments,ECA,05/10/2015,9-10797,448,Countrywide Care Homes Ltd T/A Clum,,,,,,,
Nottinghamshire County Council,1111/1001,Adult Social Care and Health,ASCH,Third Party Payments,ECA,05/10/2015,9-10799,448,Countrywide Care Homes Ltd T/A Clum,,,,,,,
Nottinghamshire County Council,1111/1001,Adult Social Care and Health,ASCH,Third Party Payments,ECA,05/10/2015,9-10801,448,Countrywide Care Homes Ltd T/A Clum,,,,,,,
Nottinghamshire County Council,1111/1001,Adult Social Care and Health,ASCH,Third Party Payments,ECA,05/10/2015,9-10803,448,Countrywide Care Homes Ltd T/A Clum,,,,,,,
Nottinghamshire County Council,1111/1001,Adult Social Care and Health,ASCH,Third Party Payments,ECA,05/10/2015,9-10805,448,Countrywide Care Homes Ltd T/A Clum,,,,,,,
Nottinghamshire County Council,1111/1001,Adult Social Care and Health,ASCH,Third Party Payments,ECA,05/10/2015,9-10807,448,Countrywide Care Homes Ltd T/A Clum,,,,,,,
Nottinghamshire County Council,1111/1001,Adult Social Care and Health,ASCH,Third Party Payments,ECA,05/10/2015,9-10811,448,Countrywide Care Homes Ltd T/A Clum,,,,,,,
Nottinghamshire County Council,1111/1001,Adult Social Care and Health,ASCH,Third Party Payments,ECA,05/10/2015,9-10813,448,Countrywide Care Homes Ltd T/A Clum,,,,,,,
Nottinghamshire County Council,1111/1001,Adult Social Care and Health,ASCH,Third Party Payments,ECA,05/10/2015,9-10815,448,Countrywide Care Homes Ltd T/A Clum,,,,,,,
Nottinghamshire County Council,1111/1001,Adult Social Care and Health,ASCH,Third Party Payments,ECA,05/10/2015,9-10819,448,Countrywide Care Homes Ltd T/A Clum,,,,,,,
Nottinghamshire County Council,1111/1001,Adult Social Care and Health,ASCH,Third Party Payments,ECA,05/10/2015,9-10821,616.56,Countrywide Care Homes Ltd T/A Clum,,,,,,,
Nottinghamshire County Council,1111/1001,Adult Social Care and Health,ASCH,Third Party Payments,ECA,05/10/2015,9-10822,448,Countrywide Care Homes Ltd T/A Clum,,,,,,,
Nottinghamshire County Council,1111/1001,Adult Social Care and Health,ASCH,Third Party Payments,ECA,05/10/2015,9-10824,448,Countrywide Care Homes Ltd T/A Clum,,,,,,,
Nottinghamshire County Council,1111/1001,Adult Social Care and Health,ASCH,Third Party Payments,ECA,05/10/2015,9-10826,448,Countrywide Care Homes Ltd T/A Clum,,,,,,,
Nottinghamshire County Council,1111/1001,Adult Social Care and Health,ASCH,Third Party Payments,ECA,05/10/2015,9-10828,448,Countrywide Care Homes Ltd T/A Clum,,,,,,,
Nottinghamshire County Council,1111/1001,Adult Social Care and Health,ASCH,Third Party Payments,ECA,05/10/2015,9-10831,448,Countrywide Care Homes Ltd T/A Clum,,,,,,,
Nottinghamshire County Council,1111/1001,Adult Social Care and Health,ASCH,Third Party Payments,ECA,05/10/2015,9-10833,448,Countrywide Care Homes Ltd T/A Clum,,,,,,,
Nottinghamshire County Council,1111/1001,Adult Social Care and Health,ASCH,Third Party Payments,ECA,05/10/2015,9-10835,448,Countrywide Care Homes Ltd T/A Clum,,,,,,,
Nottinghamshire County Council,1111/1001,Adult Social Care and Health,ASCH,Third Party Payments,ECA,05/10/2015,9-10901,448,Albemarle Hall Nursing Home,,,,,,,
Nottinghamshire County Council,1111/1001,Adult Social Care and Health,ASCH,Third Party Payments,ECA,05/10/2015,9-10903,448,Albemarle Hall Nursing Home,,,,,,,
Nottinghamshire County Council,1111/1001,Adult Social Care and Health,ASCH,Third Party Payments,ECA,05/10/2015,9-10905,448,Albemarle Hall Nursing Home,,,,,,,
Nottinghamshire County Council,1111/1001,Adult Social Care and Health,ASCH,Third Party Payments,ECA,05/10/2015,9-10908,448,Alexandra House Nursing Home,,,,,,,
Nottinghamshire County Council,1111/1001,Adult Social Care and Health,ASCH,Third Party Payments,ECA,05/10/2015,9-10912,448,Alexandra House Nursing Home,,,,,,,
Nottinghamshire County Council,1111/1001,Adult Social Care and Health,ASCH,Third Party Payments,ECA,05/10/2015,9-10916,448,Alexandra House Nursing Home,,,,,,,
Nottinghamshire County Council,1111/1001,Adult Social Care and Health,ASCH,Third Party Payments,ECA,05/10/2015,9-10918,448,Alexandra House Nursing Home,,,,,,,
Nottinghamshire County Council,1111/1001,Adult Social Care and Health,ASCH,Third Party Payments,ECA,05/10/2015,9-10920,112,Alexandra House Nursing Home,,,,,,,
Nottinghamshire County Council,1111/1001,Adult Social Care and Health,ASCH,Third Party Payments,ECA,05/10/2015,9-10923,448,Alexandra House Nursing Home,,,,,,,
Nottinghamshire County Council,1111/1001,Adult Social Care and Health,ASCH,Third Party Payments,ECA,05/10/2015,9-10925,448,Alexandra House Nursing Home,,,,,,,
Nottinghamshire County Council,1111/1001,Adult Social Care and Health,ASCH,Third Party Payments,ECA,05/10/2015,9-10934,1072,Eliot House,,,,,,,
Nottinghamshire County Council,1111/1001,Adult Social Care and Health,ASCH,Third Party Payments,ECA,05/10/2015,9-10940,448,Bluebell Lodge,,,,,,,
Nottinghamshire County Council,1111/1001,Adult Social Care and Health,ASCH,Third Party Payments,ECA,05/10/2015,9-10972,448,Ashley House Nursing Home,,,,,,,
Nottinghamshire County Council,1111/1001,Adult Social Care and Health,ASCH,Third Party Payments,ECA,05/10/2015,9-10974,448,Ashley House Nursing Home,,,,,,,
Nottinghamshire County Council,1111/1001,Adult Social Care and Health,ASCH,Third Party Payments,ECA,05/10/2015,9-10976,448,Ashley House Nursing Home,,,,,,,
Nottinghamshire County Council,1111/1001,Adult Social Care and Health,ASCH,Third Party Payments,ECA,05/10/2015,9-10978,448,Ashley House Nursing Home,,,,,,,
Nottinghamshire County Council,1111/1001,Adult Social Care and Health,ASCH,Third Party Payments,ECA,05/10/2015,9-10980,448,Ashley House Nursing Home,,,,,,,
Nottinghamshire County Council,1111/1001,Adult Social Care and Health,ASCH,Third Party Payments,ECA,05/10/2015,9-10982,448,Ashley House Nursing Home,,,,,,,
Nottinghamshire County Council,1111/1001,Adult Social Care and Health,ASCH,Third Party Payments,ECA,05/10/2015,9-10984,616.56,Ashley House Nursing Home,,,,,,,
Nottinghamshire County Council,1111/1001,Adult Social Care and Health,ASCH,Third Party Payments,ECA,05/10/2015,9-10987,448,Ashley House Nursing Home,,,,,,,
Nottinghamshire County Council,1111/1001,Adult Social Care and Health,ASCH,Third Party Payments,ECA,05/10/2015,9-10989,448,Ashley House Nursing Home,,,,,,,
Nottinghamshire County Council,1111/1001,Adult Social Care and Health,ASCH,Third Party Payments,ECA,05/10/2015,9-10991,448,Ashley House Nursing Home,,,,,,,
Nottinghamshire County Council,1111/1001,Adult Social Care and Health,ASCH,Third Party Payments,ECA,05/10/2015,9-10993,448,Ashley House Nursing Home,,,,,,,
Nottinghamshire County Council,1111/1001,Adult Social Care and Health,ASCH,Third Party Payments,ECA,05/10/2015,9-10995,448,Ashley House Nursing Home,,,,,,,
Nottinghamshire County Council,1111/1001,Adult Social Care and Health,ASCH,Third Party Payments,ECA,05/10/2015,9-10997,448,Ashley House Nursing Home,,,,,,,
Nottinghamshire County Council,1111/1001,Adult Social Care and Health,ASCH,Third Party Payments,ECA,05/10/2015,9-11000,448,Ashley House Nursing Home,,,,,,,
Nottinghamshire County Council,1111/1001,Adult Social Care and Health,ASCH,Third Party Payments,ECA,05/10/2015,9-11003,616.56,Ashley House Nursing Home,,,,,,,
Nottinghamshire County Council,1111/1001,Adult Social Care and Health,ASCH,Third Party Payments,ECA,05/10/2015,9-11004,616.56,Ashley House Nursing Home,,,,,,,
Nottinghamshire County Council,1111/1001,Adult Social Care and Health,ASCH,Third Party Payments,ECA,05/10/2015,9-11005,448,Ashley House Nursing Home,,,,,,,
Nottinghamshire County Council,1111/1001,Adult Social Care and Health,ASCH,Third Party Payments,ECA,05/10/2015,9-11007,448,Ashley House Nursing Home,,,,,,,
Nottinghamshire County Council,1111/1001,Adult Social Care and Health,ASCH,Third Party Payments,ECA,05/10/2015,9-11010,448,Ashley House Nursing Home,,,,,,,
Nottinghamshire County Council,1111/1001,Adult Social Care and Health,ASCH,Third Party Payments,ECA,05/10/2015,9-11014,448,Ashley House Nursing Home,,,,,,,
Nottinghamshire County Council,1111/1001,Adult Social Care and Health,ASCH,Third Party Payments,ECA,05/10/2015,9-11018,448,Ashley House Nursing Home,,,,,,,
Nottinghamshire County Council,1111/1001,Adult Social Care and Health,ASCH,Third Party Payments,ECA,05/10/2015,9-11020,616.56,Ashley House Nursing Home,,,,,,,
Nottinghamshire County Council,1111/1001,Adult Social Care and Health,ASCH,Third Party Payments,ECA,05/10/2015,9-11021,448,Ashley House Nursing Home,,,,,,,
Nottinghamshire County Council,1111/1001,Adult Social Care and Health,ASCH,Third Party Payments,ECA,05/10/2015,9-11023,448,Ashley House Nursing Home,,,,,,,
Nottinghamshire County Council,1111/1001,Adult Social Care and Health,ASCH,Third Party Payments,ECA,05/10/2015,9-11025,448,Ashley House Nursing Home,,,,,,,
Nottinghamshire County Council,1111/1001,Adult Social Care and Health,ASCH,Third Party Payments,ECA,05/10/2015,9-11028,448,Aslockton Hall Nursing Home,,,,,,,
Nottinghamshire County Council,1111/1001,Adult Social Care and Health,ASCH,Third Party Payments,ECA,05/10/2015,9-11031,448,Aslockton Hall Nursing Home,,,,,,,
Nottinghamshire County Council,1111/1001,Adult Social Care and Health,ASCH,Third Party Payments,ECA,05/10/2015,9-11033,448,Aslockton Hall Nursing Home,,,,,,,
Nottinghamshire County Council,1111/1001,Adult Social Care and Health,ASCH,Third Party Payments,ECA,05/10/2015,9-11035,448,Aslockton Hall Nursing Home,,,,,,,
Nottinghamshire County Council,1111/1001,Adult Social Care and Health,ASCH,Third Party Payments,ECA,05/10/2015,9-11037,448,Aslockton Hall Nursing Home,,,,,,,
Nottinghamshire County Council,1111/1001,Adult Social Care and Health,ASCH,Third Party Payments,ECA,05/10/2015,9-11039,448,Aslockton Hall Nursing Home,,,,,,,
Nottinghamshire County Council,1111/1001,Adult Social Care and Health,ASCH,Third Party Payments,ECA,05/10/2015,9-11069,448,Pinxton Manor,,,,,,,
Nottinghamshire County Council,1111/1001,Adult Social Care and Health,ASCH,Third Party Payments,ECA,05/10/2015,9-11071,448,Pinxton Manor,,,,,,,
Nottinghamshire County Council,1111/1001,Adult Social Care and Health,ASCH,Third Party Payments,ECA,05/10/2015,9-11073,448,Rodenvine Nottm Ltd T/A Parker Hous,,,,,,,
Nottinghamshire County Council,1111/1001,Adult Social Care and Health,ASCH,Third Party Payments,ECA,05/10/2015,9-11075,448,Rodenvine Nottm Ltd T/A Parker Hous,,,,,,,
Nottinghamshire County Council,1111/1001,Adult Social Care and Health,ASCH,Third Party Payments,ECA,05/10/2015,9-11077,448,Rodenvine Nottm Ltd T/A Parker Hous,,,,,,,
Nottinghamshire County Council,1111/1001,Adult Social Care and Health,ASCH,Third Party Payments,ECA,05/10/2015,9-11079,448,Rodenvine Nottm Ltd T/A Parker Hous,,,,,,,
Nottinghamshire County Council,1111/1001,Adult Social Care and Health,ASCH,Third Party Payments,ECA,05/10/2015,9-11082,448,Rodenvine Nottm Ltd T/A Parker Hous,,,,,,,
Nottinghamshire County Council,1111/1001,Adult Social Care and Health,ASCH,Third Party Payments,ECA,05/10/2015,9-11084,448,Rodenvine Nottm Ltd T/A Parker Hous,,,,,,,
Nottinghamshire County Council,1111/1001,Adult Social Care and Health,ASCH,Third Party Payments,ECA,05/10/2015,9-11086,448,Rodenvine Nottm Ltd T/A Parker Hous,,,,,,,
Nottinghamshire County Council,1111/1001,Adult Social Care and Health,ASCH,Third Party Payments,ECA,05/10/2015,9-11088,448,Rodenvine Nottm Ltd T/A Parker Hous,,,,,,,
Nottinghamshire County Council,1111/1001,Adult Social Care and Health,ASCH,Third Party Payments,ECA,05/10/2015,9-11090,448,Gables Nursing Home,,,,,,,
Nottinghamshire County Council,1111/1001,Adult Social Care and Health,ASCH,Third Party Payments,ECA,05/10/2015,9-11093,448,Gables Nursing Home,,,,,,,
Nottinghamshire County Council,1111/1001,Adult Social Care and Health,ASCH,Third Party Payments,ECA,05/10/2015,9-11095,448,Gables Nursing Home,,,,,,,
Nottinghamshire County Council,1111/1001,Adult Social Care and Health,ASCH,Third Party Payments,ECA,05/10/2015,9-11097,448,Gables Nursing Home,,,,,,,
Nottinghamshire County Council,1111/1001,Adult Social Care and Health,ASCH,Third Party Payments,ECA,05/10/2015,9-11099,448,Gables Nursing Home,,,,,,,
Nottinghamshire County Council,1111/1001,Adult Social Care and Health,ASCH,Third Party Payments,ECA,05/10/2015,9-11101,448,Gables Nursing Home,,,,,,,
Nottinghamshire County Council,1111/1001,Adult Social Care and Health,ASCH,Third Party Payments,ECA,05/10/2015,9-11103,448,Gables Nursing Home,,,,,,,
Nottinghamshire County Council,1111/1001,Adult Social Care and Health,ASCH,Third Party Payments,ECA,05/10/2015,9-11105,448,Gables Nursing Home,,,,,,,
Nottinghamshire County Council,1111/1001,Adult Social Care and Health,ASCH,Third Party Payments,ECA,05/10/2015,9-11124,448,The Firs Nursing Home,,,,,,,
Nottinghamshire County Council,1111/1001,Adult Social Care and Health,ASCH,Third Party Payments,ECA,05/10/2015,9-11127,896,Forest Hill Nursing Home,,,,,,,
Nottinghamshire County Council,1111/1001,Adult Social Care and Health,ASCH,Third Party Payments,ECA,05/10/2015,9-11129,896,Forest Hill Nursing Home,,,,,,,
Nottinghamshire County Council,1111/1001,Adult Social Care and Health,ASCH,Third Party Payments,ECA,05/10/2015,9-11131,896,Forest Hill Nursing Home,,,,,,,
Nottinghamshire County Council,1111/1001,Adult Social Care and Health,ASCH,Third Party Payments,ECA,05/10/2015,9-11133,896,Forest Hill Nursing Home,,,,,,,
Nottinghamshire County Council,1111/1001,Adult Social Care and Health,ASCH,Third Party Payments,ECA,05/10/2015,9-11134,896,Forest Hill Nursing Home,,,,,,,
Nottinghamshire County Council,1111/1001,Adult Social Care and Health,ASCH,Third Party Payments,ECA,05/10/2015,9-11136,896,Forest Hill Nursing Home,,,,,,,
Nottinghamshire County Council,1111/1001,Adult Social Care and Health,ASCH,Third Party Payments,ECA,05/10/2015,9-11138,896,Forest Hill Nursing Home,,,,,,,
Nottinghamshire County Council,1111/1001,Adult Social Care and Health,ASCH,Third Party Payments,ECA,05/10/2015,9-11140,896,Forest Hill Nursing Home,,,,,,,
Nottinghamshire County Council,1111/1001,Adult Social Care and Health,ASCH,Third Party Payments,ECA,05/10/2015,9-11143,896,Forest Hill Nursing Home,,,,,,,
Nottinghamshire County Council,1111/1001,Adult Social Care and Health,ASCH,Third Party Payments,ECA,05/10/2015,9-11145,896,Forest Hill Nursing Home,,,,,,,
Nottinghamshire County Council,1111/1001,Adult Social Care and Health,ASCH,Third Party Payments,ECA,05/10/2015,9-11147,896,Forest Hill Nursing Home,,,,,,,
Nottinghamshire County Council,1111/1001,Adult Social Care and Health,ASCH,Third Party Payments,ECA,05/10/2015,9-11149,896,Forest Hill Nursing Home,,,,,,,
Nottinghamshire County Council,1111/1001,Adult Social Care and Health,ASCH,Third Party Payments,ECA,05/10/2015,9-11151,896,Forest Hill Nursing Home,,,,,,,
Nottinghamshire County Council,1111/1001,Adult Social Care and Health,ASCH,Third Party Payments,ECA,05/10/2015,9-11153,896,Forest Hill Nursing Home,,,,,,,
Nottinghamshire County Council,1111/1001,Adult Social Care and Health,ASCH,Third Party Payments,ECA,05/10/2015,9-11155,896,Forest Hill Nursing Home,,,,,,,
Nottinghamshire County Council,1111/1001,Adult Social Care and Health,ASCH,Third Party Payments,ECA,05/10/2015,9-11157,896,Forest Hill Nursing Home,,,,,,,
Nottinghamshire County Council,1111/1001,Adult Social Care and Health,ASCH,Third Party Payments,ECA,05/10/2015,9-11159,896,Forest Hill Nursing Home,,,,,,,
Nottinghamshire County Council,1111/1001,Adult Social Care and Health,ASCH,Third Party Payments,ECA,05/10/2015,9-11162,896,Forest Hill Nursing Home,,,,,,,
Nottinghamshire County Council,1111/1001,Adult Social Care and Health,ASCH,Third Party Payments,ECA,05/10/2015,9-11163,896,Forest Hill Nursing Home,,,,,,,
Nottinghamshire County Council,1111/1001,Adult Social Care and Health,ASCH,Third Party Payments,ECA,05/10/2015,9-11165,896,Forest Hill Nursing Home,,,,,,,
Nottinghamshire County Council,1111/1001,Adult Social Care and Health,ASCH,Third Party Payments,ECA,05/10/2015,9-11167,896,Forest Hill Nursing Home,,,,,,,
Nottinghamshire County Council,1111/1001,Adult Social Care and Health,ASCH,Third Party Payments,ECA,05/10/2015,9-11169,896,Forest Hill Nursing Home,,,,,,,
Nottinghamshire County Council,1111/1001,Adult Social Care and Health,ASCH,Third Party Payments,ECA,05/10/2015,9-11171,896,Forest Hill Nursing Home,,,,,,,
Nottinghamshire County Council,1111/1001,Adult Social Care and Health,ASCH,Third Party Payments,ECA,05/10/2015,9-11173,896,Forest Hill Nursing Home,,,,,,,
Nottinghamshire County Council,1111/1001,Adult Social Care and Health,ASCH,Third Party Payments,ECA,05/10/2015,9-11184,448,Woodhall Park Nursing Home,,,,,,,
Nottinghamshire County Council,1111/1001,Adult Social Care and Health,ASCH,Third Party Payments,ECA,05/10/2015,9-11186,448,Woodthorpe Manor Nursing Home,,,,,,,
Nottinghamshire County Council,1111/1001,Adult Social Care and Health,ASCH,Third Party Payments,ECA,05/10/2015,9-11188,448,Woodthorpe Manor Nursing Home,,,,,,,
Nottinghamshire County Council,1111/1001,Adult Social Care and Health,ASCH,Third Party Payments,ECA,05/10/2015,9-11190,448,Woodthorpe Manor Nursing Home,,,,,,,
Nottinghamshire County Council,1111/1001,Adult Social Care and Health,ASCH,Third Party Payments,ECA,05/10/2015,9-11192,448,Woodthorpe Manor Nursing Home,,,,,,,
Nottinghamshire County Council,1111/1001,Adult Social Care and Health,ASCH,Third Party Payments,ECA,05/10/2015,9-11205,448,The Moorlands Nursing Home,,,,,,,
Nottinghamshire County Council,1111/1001,Adult Social Care and Health,ASCH,Third Party Payments,ECA,05/10/2015,9-11207,448,The Moorlands Nursing Home,,,,,,,
Nottinghamshire County Council,1111/1001,Adult Social Care and Health,ASCH,Third Party Payments,ECA,05/10/2015,9-11209,448,The Moorlands Nursing Home,,,,,,,
Nottinghamshire County Council,1111/1001,Adult Social Care and Health,ASCH,Third Party Payments,ECA,05/10/2015,9-11215,448,The Moorlands Nursing Home,,,,,,,
Nottinghamshire County Council,1111/1001,Adult Social Care and Health,ASCH,Third Party Payments,ECA,05/10/2015,9-11217,448,The Moorlands Nursing Home,,,,,,,
Nottinghamshire County Council,1111/1001,Adult Social Care and Health,ASCH,Third Party Payments,ECA,05/10/2015,9-11219,448,The Moorlands Nursing Home,,,,,,,
Nottinghamshire County Council,1111/1001,Adult Social Care and Health,ASCH,Third Party Payments,ECA,05/10/2015,9-11236,448,Church Farm Nursing Home Ltd,,,,,,,
Nottinghamshire County Council,1111/1001,Adult Social Care and Health,ASCH,Third Party Payments,ECA,05/10/2015,9-11238,448,Church Farm Nursing Home Ltd,,,,,,,
Nottinghamshire County Council,1111/1001,Adult Social Care and Health,ASCH,Third Party Payments,ECA,05/10/2015,9-11240,448,Church Farm Nursing Home Ltd,,,,,,,
Nottinghamshire County Council,1111/1001,Adult Social Care and Health,ASCH,Third Party Payments,ECA,05/10/2015,9-11242,616.56,Church Farm Nursing Home Ltd,,,,,,,
Nottinghamshire County Council,1111/1001,Adult Social Care and Health,ASCH,Third Party Payments,ECA,05/10/2015,9-11243,448,Church Farm Nursing Home Ltd,,,,,,,
Nottinghamshire County Council,1111/1001,Adult Social Care and Health,ASCH,Third Party Payments,ECA,05/10/2015,9-11245,-864,Church Farm Nursing Home Ltd,,,,,,,
Nottinghamshire County Council,1111/1001,Adult Social Care and Health,ASCH,Third Party Payments,ECA,05/10/2015,9-11247,448,Church Farm Nursing Home Ltd,,,,,,,
Nottinghamshire County Council,1111/1001,Adult Social Care and Health,ASCH,Third Party Payments,ECA,05/10/2015,9-11249,448,Church Farm Nursing Home Ltd,,,,,,,
Nottinghamshire County Council,1111/1001,Adult Social Care and Health,ASCH,Third Party Payments,ECA,05/10/2015,9-11251,448,Church Farm Nursing Home Ltd,,,,,,,
Nottinghamshire County Council,1111/1001,Adult Social Care and Health,ASCH,Third Party Payments,ECA,05/10/2015,9-11256,448,Countrywide Care Homes Ltd T/A Gate,,,,,,,
Nottinghamshire County Council,1111/1001,Adult Social Care and Health,ASCH,Third Party Payments,ECA,05/10/2015,9-11259,448,Countrywide Care Homes Ltd T/A Gate,,,,,,,
Nottinghamshire County Council,1111/1001,Adult Social Care and Health,ASCH,Third Party Payments,ECA,05/10/2015,9-11261,616.56,Countrywide Care Homes Ltd T/A Gate,,,,,,,
Nottinghamshire County Council,1111/1001,Adult Social Care and Health,ASCH,Third Party Payments,ECA,05/10/2015,9-11263,448,Countrywide Care Homes Ltd T/A Gate,,,,,,,
Nottinghamshire County Council,1111/1001,Adult Social Care and Health,ASCH,Third Party Payments,ECA,05/10/2015,9-11265,448,Countrywide Care Homes Ltd T/A Gate,,,,,,,
Nottinghamshire County Council,1111/1001,Adult Social Care and Health,ASCH,Third Party Payments,ECA,05/10/2015,9-11268,448,Countrywide Care Homes Ltd T/A Gate,,,,,,,
Nottinghamshire County Council,1111/1001,Adult Social Care and Health,ASCH,Third Party Payments,ECA,05/10/2015,9-11270,448,Countrywide Care Homes Ltd T/A Gate,,,,,,,
Nottinghamshire County Council,1111/1001,Adult Social Care and Health,ASCH,Third Party Payments,ECA,05/10/2015,9-11273,448,Countrywide Care Homes Ltd T/A Gate,,,,,,,
Nottinghamshire County Council,1111/1001,Adult Social Care and Health,ASCH,Third Party Payments,ECA,05/10/2015,9-11277,448,Countrywide Care Homes Ltd T/A Gate,,,,,,,
Nottinghamshire County Council,1111/1001,Adult Social Care and Health,ASCH,Third Party Payments,ECA,05/10/2015,9-11280,448,Countrywide Care Homes Ltd T/A Gate,,,,,,,
Nottinghamshire County Council,1111/1001,Adult Social Care and Health,ASCH,Third Party Payments,ECA,05/10/2015,9-11282,448,Countrywide Care Homes Ltd T/A Gate,,,,,,,
Nottinghamshire County Council,1111/1001,Adult Social Care and Health,ASCH,Third Party Payments,ECA,05/10/2015,9-11286,448,Countrywide Care Homes Ltd T/A Gate,,,,,,,
Nottinghamshire County Council,1111/1001,Adult Social Care and Health,ASCH,Third Party Payments,ECA,05/10/2015,9-11291,448,Countrywide Care Homes Ltd T/A Gate,,,,,,,
Nottinghamshire County Council,1111/1001,Adult Social Care and Health,ASCH,Third Party Payments,ECA,05/10/2015,9-11293,448,Countrywide Care Homes Ltd T/A Gate,,,,,,,
Nottinghamshire County Council,1111/1001,Adult Social Care and Health,ASCH,Third Party Payments,ECA,05/10/2015,9-11295,448,Countrywide Care Homes Ltd T/A Gate,,,,,,,
Nottinghamshire County Council,1111/1001,Adult Social Care and Health,ASCH,Third Party Payments,ECA,05/10/2015,9-11309,448,Red Rose Nursing Home,,,,,,,
Nottinghamshire County Council,1111/1001,Adult Social Care and Health,ASCH,Third Party Payments,ECA,05/10/2015,9-11311,448,Red Rose Nursing Home,,,,,,,
Nottinghamshire County Council,1111/1001,Adult Social Care and Health,ASCH,Third Party Payments,ECA,05/10/2015,9-11314,448,Red Rose Nursing Home,,,,,,,
Nottinghamshire County Council,1111/1001,Adult Social Care and Health,ASCH,Third Party Payments,ECA,05/10/2015,9-11316,448,Red Rose Nursing Home,,,,,,,
Nottinghamshire County Council,1111/1001,Adult Social Care and Health,ASCH,Third Party Payments,ECA,05/10/2015,9-11319,448,Red Rose Nursing Home,,,,,,,
Nottinghamshire County Council,1111/1001,Adult Social Care and Health,ASCH,Third Party Payments,ECA,05/10/2015,9-11321,656,Red Rose Nursing Home,,,,,,,
Nottinghamshire County Council,1111/1001,Adult Social Care and Health,ASCH,Third Party Payments,ECA,05/10/2015,9-11322,448,Red Rose Nursing Home,,,,,,,
Nottinghamshire County Council,1111/1001,Adult Social Care and Health,ASCH,Third Party Payments,ECA,05/10/2015,9-11325,448,Red Rose Nursing Home,,,,,,,
Nottinghamshire County Council,1111/1001,Adult Social Care and Health,ASCH,Third Party Payments,ECA,05/10/2015,9-11328,448,Red Rose Nursing Home,,,,,,,
Nottinghamshire County Council,1111/1001,Adult Social Care and Health,ASCH,Third Party Payments,ECA,05/10/2015,9-11330,448,Red Rose Nursing Home,,,,,,,
Nottinghamshire County Council,1111/1001,Adult Social Care and Health,ASCH,Third Party Payments,ECA,05/10/2015,9-11332,448,Red Rose Nursing Home,,,,,,,
Nottinghamshire County Council,1111/1001,Adult Social Care and Health,ASCH,Third Party Payments,ECA,05/10/2015,9-11387,448,The Grange Nursing Home,,,,,,,
Nottinghamshire County Council,1111/1001,Adult Social Care and Health,ASCH,Third Party Payments,ECA,05/10/2015,9-11465,448,Hazel Grove Nursing Home,,,,,,,
Nottinghamshire County Council,1111/1001,Adult Social Care and Health,ASCH,Third Party Payments,ECA,05/10/2015,9-11468,448,Hazel Grove Nursing Home,,,,,,,
Nottinghamshire County Council,1111/1001,Adult Social Care and Health,ASCH,Third Party Payments,ECA,05/10/2015,9-11471,448,Hazel Grove Nursing Home,,,,,,,
Nottinghamshire County Council,1111/1001,Adult Social Care and Health,ASCH,Third Party Payments,ECA,05/10/2015,9-11473,616.56,Hazel Grove Nursing Home,,,,,,,
Nottinghamshire County Council,1111/1001,Adult Social Care and Health,ASCH,Third Party Payments,ECA,05/10/2015,9-11476,448,Hazel Grove Nursing Home,,,,,,,
Nottinghamshire County Council,1111/1001,Adult Social Care and Health,ASCH,Third Party Payments,ECA,05/10/2015,9-11478,448,Hazel Grove Nursing Home,,,,,,,
Nottinghamshire County Council,1111/1001,Adult Social Care and Health,ASCH,Third Party Payments,ECA,05/10/2015,9-11481,448,Hazel Grove Nursing Home,,,,,,,
Nottinghamshire County Council,1111/1001,Adult Social Care and Health,ASCH,Third Party Payments,ECA,05/10/2015,9-11484,448,Hazel Grove Nursing Home,,,,,,,
Nottinghamshire County Council,1111/1001,Adult Social Care and Health,ASCH,Third Party Payments,ECA,05/10/2015,9-11486,448,Hazel Grove Nursing Home,,,,,,,
Nottinghamshire County Council,1111/1001,Adult Social Care and Health,ASCH,Third Party Payments,ECA,05/10/2015,9-11491,448,Hazel Grove Nursing Home,,,,,,,
Nottinghamshire County Council,1111/1001,Adult Social Care and Health,ASCH,Third Party Payments,ECA,05/10/2015,9-11497,475.72,Newton House Nursing Home,,,,,,,
Nottinghamshire County Council,1111/1001,Adult Social Care and Health,ASCH,Third Party Payments,ECA,05/10/2015,9-11510,1313.76,Craegmoor Healthcare,,,,,,,
Nottinghamshire County Council,1111/1001,Adult Social Care and Health,ASCH,Third Party Payments,ECA,05/10/2015,9-11529,616.56,Four Seasons Homes (Ilkeston) Limit,,,,,,,
Nottinghamshire County Council,1111/1001,Adult Social Care and Health,ASCH,Third Party Payments,ECA,05/10/2015,9-11531,448,Four Seasons Homes (Ilkeston) Limit,,,,,,,
Nottinghamshire County Council,1111/1001,Adult Social Care and Health,ASCH,Third Party Payments,ECA,05/10/2015,9-11535,448,Four Seasons Homes (Ilkeston) Limit,,,,,,,
Nottinghamshire County Council,1111/1001,Adult Social Care and Health,ASCH,Third Party Payments,ECA,05/10/2015,9-11619,448,Adbolton Hall Nursing Home,,,,,,,
Nottinghamshire County Council,1111/1001,Adult Social Care and Health,ASCH,Third Party Payments,ECA,05/10/2015,9-11622,448,Adbolton Hall Nursing Home,,,,,,,
Nottinghamshire County Council,1111/1001,Adult Social Care and Health,ASCH,Third Party Payments,ECA,05/10/2015,9-11625,448,Adbolton Hall Nursing Home,,,,,,,
Nottinghamshire County Council,1111/1001,Adult Social Care and Health,ASCH,Third Party Payments,ECA,05/10/2015,9-11627,448,Adbolton Hall Nursing Home,,,,,,,
Nottinghamshire County Council,1111/1001,Adult Social Care and Health,ASCH,Third Party Payments,ECA,05/10/2015,9-11629,448,Adbolton Hall Nursing Home,,,,,,,
Nottinghamshire County Council,1111/1001,Adult Social Care and Health,ASCH,Third Party Payments,ECA,05/10/2015,9-11631,448,Adbolton Hall Nursing Home,,,,,,,
Nottinghamshire County Council,1111/1001,Adult Social Care and Health,ASCH,Third Party Payments,ECA,05/10/2015,9-11634,448,Adbolton Hall Nursing Home,,,,,,,
Nottinghamshire County Council,1111/1001,Adult Social Care and Health,ASCH,Third Party Payments,ECA,05/10/2015,9-11636,448,Adbolton Hall Nursing Home,,,,,,,
Nottinghamshire County Council,1111/1001,Adult Social Care and Health,ASCH,Third Party Payments,ECA,05/10/2015,9-11638,448,Adbolton Hall Nursing Home,,,,,,,
Nottinghamshire County Council,1111/1001,Adult Social Care and Health,ASCH,Third Party Payments,ECA,05/10/2015,9-11640,448,Adbolton Hall Nursing Home,,,,,,,
Nottinghamshire County Council,1111/1001,Adult Social Care and Health,ASCH,Third Party Payments,ECA,05/10/2015,9-11642,448,Adbolton Hall Nursing Home,,,,,,,
Nottinghamshire County Council,1111/1001,Adult Social Care and Health,ASCH,Third Party Payments,ECA,05/10/2015,9-11644,448,Adbolton Hall Nursing Home,,,,,,,
Nottinghamshire County Council,1111/1001,Adult Social Care and Health,ASCH,Third Party Payments,ECA,05/10/2015,9-11646,448,Adbolton Hall Nursing Home,,,,,,,
Nottinghamshire County Council,1111/1001,Adult Social Care and Health,ASCH,Third Party Payments,ECA,05/10/2015,9-11648,448,Adbolton Hall Nursing Home,,,,,,,
Nottinghamshire County Council,1111/1001,Adult Social Care and Health,ASCH,Third Party Payments,ECA,05/10/2015,9-11705,448,Elmbank Nursing Home,,,,,,,
Nottinghamshire County Council,1111/1001,Adult Social Care and Health,ASCH,Third Party Payments,ECA,05/10/2015,9-11707,448,Elmbank Nursing Home,,,,,,,
Nottinghamshire County Council,1111/1001,Adult Social Care and Health,ASCH,Third Party Payments,ECA,05/10/2015,9-11752,448,Mansfield Manor Care Home,,,,,,,
Nottinghamshire County Council,1111/1001,Adult Social Care and Health,ASCH,Third Party Payments,ECA,05/10/2015,9-11754,448,Mansfield Manor Care Home,,,,,,,
Nottinghamshire County Council,1111/1001,Adult Social Care and Health,ASCH,Third Party Payments,ECA,05/10/2015,9-11756,448,Mansfield Manor Care Home,,,,,,,
Nottinghamshire County Council,1111/1001,Adult Social Care and Health,ASCH,Third Party Payments,ECA,05/10/2015,9-11758,448,Mansfield Manor Care Home,,,,,,,
Nottinghamshire County Council,1111/1001,Adult Social Care and Health,ASCH,Third Party Payments,ECA,05/10/2015,9-11761,448,Mansfield Manor Care Home,,,,,,,
Nottinghamshire County Council,1111/1001,Adult Social Care and Health,ASCH,Third Party Payments,ECA,05/10/2015,9-11765,-1440,Mansfield Manor Care Home,,,,,,,
Nottinghamshire County Council,1111/1001,Adult Social Care and Health,ASCH,Third Party Payments,ECA,05/10/2015,9-11767,448,Mansfield Manor Care Home,,,,,,,
Nottinghamshire County Council,1111/1001,Adult Social Care and Health,ASCH,Third Party Payments,ECA,05/10/2015,9-11771,448,Mansfield Manor Care Home,,,,,,,
Nottinghamshire County Council,1111/1001,Adult Social Care and Health,ASCH,Third Party Payments,ECA,05/10/2015,9-11773,448,Mansfield Manor Care Home,,,,,,,
Nottinghamshire County Council,1111/1001,Adult Social Care and Health,ASCH,Third Party Payments,ECA,05/10/2015,9-11775,448,Mansfield Manor Care Home,,,,,,,
Nottinghamshire County Council,1111/1001,Adult Social Care and Health,ASCH,Third Party Payments,ECA,05/10/2015,9-11777,448,Mansfield Manor Care Home,,,,,,,
Nottinghamshire County Council,1111/1001,Adult Social Care and Health,ASCH,Third Party Payments,ECA,05/10/2015,9-11779,448,Mansfield Manor Care Home,,,,,,,
Nottinghamshire County Council,1111/1001,Adult Social Care and Health,ASCH,Third Party Payments,ECA,05/10/2015,9-11782,448,Mansfield Manor Care Home,,,,,,,
Nottinghamshire County Council,1111/1001,Adult Social Care and Health,ASCH,Third Party Payments,ECA,05/10/2015,9-11784,448,Mansfield Manor Care Home,,,,,,,
Nottinghamshire County Council,1111/1001,Adult Social Care and Health,ASCH,Third Party Payments,ECA,05/10/2015,9-11786,448,Mansfield Manor Care Home,,,,,,,
Nottinghamshire County Council,1111/1001,Adult Social Care and Health,ASCH,Third Party Payments,ECA,05/10/2015,9-11788,448,Mansfield Manor Care Home,,,,,,,
Nottinghamshire County Council,1111/1001,Adult Social Care and Health,ASCH,Third Party Payments,ECA,05/10/2015,9-11790,448,Mansfield Manor Care Home,,,,,,,
Nottinghamshire County Council,1111/1001,Adult Social Care and Health,ASCH,Third Party Payments,ECA,05/10/2015,9-11807,896,Balmore Country House,,,,,,,
Nottinghamshire County Council,1111/1001,Adult Social Care and Health,ASCH,Third Party Payments,ECA,05/10/2015,9-11808,896,Balmore Country House,,,,,,,
Nottinghamshire County Council,1111/1001,Adult Social Care and Health,ASCH,Third Party Payments,ECA,05/10/2015,9-11809,896,Balmore Country House,,,,,,,
Nottinghamshire County Council,1111/1001,Adult Social Care and Health,ASCH,Third Party Payments,ECA,05/10/2015,9-11810,896,Balmore Country House,,,,,,,
Nottinghamshire County Council,1111/1001,Adult Social Care and Health,ASCH,Third Party Payments,ECA,05/10/2015,9-11811,896,Balmore Country House,,,,,,,
Nottinghamshire County Council,1111/1001,Adult Social Care and Health,ASCH,Third Party Payments,ECA,05/10/2015,9-11812,896,Balmore Country House,,,,,,,
Nottinghamshire County Council,1111/1001,Adult Social Care and Health,ASCH,Third Party Payments,ECA,05/10/2015,9-11814,896,Balmore Country House,,,,,,,
Nottinghamshire County Council,1111/1001,Adult Social Care and Health,ASCH,Third Party Payments,ECA,05/10/2015,9-11816,896,Balmore Country House,,,,,,,
Nottinghamshire County Council,1111/1001,Adult Social Care and Health,ASCH,Third Party Payments,ECA,05/10/2015,9-11819,896,Balmore Country House,,,,,,,
Nottinghamshire County Council,1111/1001,Adult Social Care and Health,ASCH,Third Party Payments,ECA,05/10/2015,9-11820,896,Balmore Country House,,,,,,,
Nottinghamshire County Council,1111/1001,Adult Social Care and Health,ASCH,Third Party Payments,ECA,05/10/2015,9-11822,896,Balmore Country House,,,,,,,
Nottinghamshire County Council,1111/1001,Adult Social Care and Health,ASCH,Third Party Payments,ECA,05/10/2015,9-11824,896,Balmore Country House,,,,,,,
Nottinghamshire County Council,1111/1001,Adult Social Care and Health,ASCH,Third Party Payments,ECA,05/10/2015,9-11834,448,Field House Nursing Home,,,,,,,
Nottinghamshire County Council,1111/1001,Adult Social Care and Health,ASCH,Third Party Payments,ECA,05/10/2015,9-11836,448,Field House Nursing Home,,,,,,,
Nottinghamshire County Council,1111/1001,Adult Social Care and Health,ASCH,Third Party Payments,ECA,05/10/2015,9-11839,448,Field House Nursing Home,,,,,,,
Nottinghamshire County Council,1111/1001,Adult Social Care and Health,ASCH,Third Party Payments,ECA,05/10/2015,9-11850,448,Giltbrook Health Care Ltd,,,,,,,
Nottinghamshire County Council,1111/1001,Adult Social Care and Health,ASCH,Third Party Payments,ECA,05/10/2015,9-11852,448,Giltbrook Health Care Ltd,,,,,,,
Nottinghamshire County Council,1111/1001,Adult Social Care and Health,ASCH,Third Party Payments,ECA,05/10/2015,9-11855,448,Giltbrook Health Care Ltd,,,,,,,
Nottinghamshire County Council,1111/1001,Adult Social Care and Health,ASCH,Third Party Payments,ECA,05/10/2015,9-11857,448,Giltbrook Health Care Ltd,,,,,,,
Nottinghamshire County Council,1111/1001,Adult Social Care and Health,ASCH,Third Party Payments,ECA,05/10/2015,9-11860,1232,Giltbrook Health Care Ltd,,,,,,,
Nottinghamshire County Council,1111/1001,Adult Social Care and Health,ASCH,Third Party Payments,ECA,05/10/2015,9-11862,448,Giltbrook Health Care Ltd,,,,,,,
Nottinghamshire County Council,1111/1001,Adult Social Care and Health,ASCH,Third Party Payments,ECA,05/10/2015,9-11864,448,Giltbrook Health Care Ltd,,,,,,,
Nottinghamshire County Council,1111/1001,Adult Social Care and Health,ASCH,Third Party Payments,ECA,05/10/2015,9-11866,448,Giltbrook Health Care Ltd,,,,,,,
Nottinghamshire County Council,1111/1001,Adult Social Care and Health,ASCH,Third Party Payments,ECA,05/10/2015,9-11868,448,Giltbrook Health Care Ltd,,,,,,,
Nottinghamshire County Council,1111/1001,Adult Social Care and Health,ASCH,Third Party Payments,ECA,05/10/2015,9-11871,448,Giltbrook Health Care Ltd,,,,,,,
Nottinghamshire County Council,1111/1001,Adult Social Care and Health,ASCH,Third Party Payments,ECA,05/10/2015,9-11873,448,Giltbrook Health Care Ltd,,,,,,,
Nottinghamshire County Council,1111/1001,Adult Social Care and Health,ASCH,Third Party Payments,ECA,05/10/2015,9-11877,448,The Firs,,,,,,,
Nottinghamshire County Council,1111/1001,Adult Social Care and Health,ASCH,Third Party Payments,ECA,05/10/2015,9-11882,448,Clifton Manor Care Complex,,,,,,,
Nottinghamshire County Council,1111/1001,Adult Social Care and Health,ASCH,Third Party Payments,ECA,05/10/2015,9-11909,448,Lowmoor Nursing Home,,,,,,,
Nottinghamshire County Council,1111/1001,Adult Social Care and Health,ASCH,Third Party Payments,ECA,05/10/2015,9-11911,448,Lowmoor Nursing Home,,,,,,,
Nottinghamshire County Council,1111/1001,Adult Social Care and Health,ASCH,Third Party Payments,ECA,05/10/2015,9-11913,448,Lowmoor Nursing Home,,,,,,,
Nottinghamshire County Council,1111/1001,Adult Social Care and Health,ASCH,Third Party Payments,ECA,05/10/2015,9-11917,448,Lowmoor Nursing Home,,,,,,,
Nottinghamshire County Council,1111/1001,Adult Social Care and Health,ASCH,Third Party Payments,ECA,05/10/2015,9-11922,448,Lowmoor Nursing Home,,,,,,,
Nottinghamshire County Council,1111/1001,Adult Social Care and Health,ASCH,Third Party Payments,ECA,05/10/2015,9-11924,448,Lowmoor Nursing Home,,,,,,,
Nottinghamshire County Council,1111/1001,Adult Social Care and Health,ASCH,Third Party Payments,ECA,05/10/2015,9-11926,616.56,Lowmoor Nursing Home,,,,,,,
Nottinghamshire County Council,1111/1001,Adult Social Care and Health,ASCH,Third Party Payments,ECA,05/10/2015,9-11928,448,Lowmoor Nursing Home,,,,,,,
Nottinghamshire County Council,1111/1001,Adult Social Care and Health,ASCH,Third Party Payments,ECA,05/10/2015,9-11931,448,Lowmoor Nursing Home,,,,,,,
Nottinghamshire County Council,1111/1001,Adult Social Care and Health,ASCH,Third Party Payments,ECA,05/10/2015,9-11933,448,Lowmoor Nursing Home,,,,,,,
Nottinghamshire County Council,1111/1001,Adult Social Care and Health,ASCH,Third Party Payments,ECA,05/10/2015,9-12010,896,Broadgate Nursing Home,,,,,,,
Nottinghamshire County Council,1111/1001,Adult Social Care and Health,ASCH,Third Party Payments,ECA,05/10/2015,9-12013,896,Broadgate Nursing Home,,,,,,,
Nottinghamshire County Council,1111/1001,Adult Social Care and Health,ASCH,Third Party Payments,ECA,05/10/2015,9-12015,896,Broadgate Nursing Home,,,,,,,
Nottinghamshire County Council,1111/1001,Adult Social Care and Health,ASCH,Third Party Payments,ECA,05/10/2015,9-12017,896,Broadgate Nursing Home,,,,,,,
Nottinghamshire County Council,1111/1001,Adult Social Care and Health,ASCH,Third Party Payments,ECA,05/10/2015,9-12019,896,Broadgate Nursing Home,,,,,,,
Nottinghamshire County Council,1111/1001,Adult Social Care and Health,ASCH,Third Party Payments,ECA,05/10/2015,9-12021,896,Broadgate Nursing Home,,,,,,,
Nottinghamshire County Council,1111/1001,Adult Social Care and Health,ASCH,Third Party Payments,ECA,05/10/2015,9-12024,896,Broadgate Nursing Home,,,,,,,
Nottinghamshire County Council,1111/1001,Adult Social Care and Health,ASCH,Third Party Payments,ECA,05/10/2015,9-12026,896,Broadgate Nursing Home,,,,,,,
Nottinghamshire County Council,1111/1001,Adult Social Care and Health,ASCH,Third Party Payments,ECA,05/10/2015,9-12028,1264,Broadgate Nursing Home,,,,,,,
Nottinghamshire County Council,1111/1001,Adult Social Care and Health,ASCH,Third Party Payments,ECA,05/10/2015,9-12029,896,Broadgate Nursing Home,,,,,,,
Nottinghamshire County Council,1111/1001,Adult Social Care and Health,ASCH,Third Party Payments,ECA,05/10/2015,9-12030,896,Broadgate Nursing Home,,,,,,,
Nottinghamshire County Council,1111/1001,Adult Social Care and Health,ASCH,Third Party Payments,ECA,05/10/2015,9-12031,448,Byars Nursing Home,,,,,,,
Nottinghamshire County Council,1111/1001,Adult Social Care and Health,ASCH,Third Party Payments,ECA,05/10/2015,9-12033,448,Byars Nursing Home,,,,,,,
Nottinghamshire County Council,1111/1001,Adult Social Care and Health,ASCH,Third Party Payments,ECA,05/10/2015,9-12035,448,Byars Nursing Home,,,,,,,
Nottinghamshire County Council,1111/1001,Adult Social Care and Health,ASCH,Third Party Payments,ECA,05/10/2015,9-12037,448,Byars Nursing Home,,,,,,,
Nottinghamshire County Council,1111/1001,Adult Social Care and Health,ASCH,Third Party Payments,ECA,05/10/2015,9-12039,448,Byars Nursing Home,,,,,,,
Nottinghamshire County Council,1111/1001,Adult Social Care and Health,ASCH,Third Party Payments,ECA,05/10/2015,9-12041,448,Byars Nursing Home,,,,,,,
Nottinghamshire County Council,1111/1001,Adult Social Care and Health,ASCH,Third Party Payments,ECA,05/10/2015,9-12046,448,Victoria Care Home,,,,,,,
Nottinghamshire County Council,1111/1001,Adult Social Care and Health,ASCH,Third Party Payments,ECA,05/10/2015,9-12050,448,Victoria Care Home,,,,,,,
Nottinghamshire County Council,1111/1001,Adult Social Care and Health,ASCH,Third Party Payments,ECA,05/10/2015,9-12052,448,Victoria Care Home,,,,,,,
Nottinghamshire County Council,1111/1001,Adult Social Care and Health,ASCH,Third Party Payments,ECA,05/10/2015,9-12057,448,Victoria Care Home,,,,,,,
Nottinghamshire County Council,1111/1001,Adult Social Care and Health,ASCH,Third Party Payments,ECA,05/10/2015,9-12063,1328,Victoria Care Home,,,,,,,
Nottinghamshire County Council,1111/1001,Adult Social Care and Health,ASCH,Third Party Payments,ECA,05/10/2015,9-12068,448,Victoria Care Home,,,,,,,
Nottinghamshire County Council,1111/1001,Adult Social Care and Health,ASCH,Third Party Payments,ECA,05/10/2015,9-12071,448,Victoria Care Home,,,,,,,
Nottinghamshire County Council,1111/1001,Adult Social Care and Health,ASCH,Third Party Payments,ECA,05/10/2015,9-12073,448,Victoria Care Home,,,,,,,
Nottinghamshire County Council,1111/1001,Adult Social Care and Health,ASCH,Third Party Payments,ECA,05/10/2015,9-12079,448,Victoria Care Home,,,,,,,
